Department Family,Entity,Date,Expense Type,Expense Area,Supplier,Transaction Number, Amount ,Item Description
BEIS,UKRI - AHRC,23/08/2018,Catering Contracts,HR,1st Biotech Ltd,98263685,518.40,Catering Contracts
BEIS,UKRI - AHRC,23/08/2018,Catering Contracts,HR,1st Biotech Ltd,98263685,17.94,Catering Contracts
BEIS,UKRI - AHRC,23/08/2018,Health & Safety (inc. Medicals & Opticians),Corporate Services,Abbey Business Equipment Ltd,98266598,838.80,Health & Safety (inc. Medicals & Opticians)
BEIS,UKRI - AHRC,23/08/2018,Health & Safety (inc. Medicals & Opticians),Corporate Services,Abbey Business Equipment Ltd,98266598,50.40,Health & Safety (inc. Medicals & Opticians)
BEIS,UKRI - AHRC,23/08/2018,Health & Safety (inc. Medicals & Opticians),Corporate Services,Abbey Business Equipment Ltd,98266598,50.40,Health & Safety (inc. Medicals & Opticians)
BEIS,UKRI - AHRC,23/08/2018,Health & Safety (inc. Medicals & Opticians),Corporate Services,Abbey Business Equipment Ltd,98266598,25.20,Health & Safety (inc. Medicals & Opticians)
BEIS,UKRI - AHRC,23/08/2018,Health & Safety (inc. Medicals & Opticians),Corporate Services,Abbey Business Equipment Ltd,98266598,300.00,Health & Safety (inc. Medicals & Opticians)
BEIS,UKRI - AHRC,23/08/2018,Health & Safety (inc. Medicals & Opticians),Corporate Services,Abbey Business Equipment Ltd,98266598,165.60,Health & Safety (inc. Medicals & Opticians)
BEIS,UKRI - AHRC,07/08/2018,Recruitment Costs,Corporate Services,Agenda Resource Management Ltd,98253858,155.91,Recruitment Costs
BEIS,UKRI - AHRC,07/08/2018,Recruitment Costs,Corporate Services,Agenda Resource Management Ltd,98253859,155.91,Recruitment Costs
BEIS,UKRI - AHRC,23/08/2018,Recruitment Costs,Corporate Services,Agenda Resource Management Ltd,98265398,155.91,Recruitment Costs
BEIS,UKRI - AHRC,23/08/2018,Recruitment Costs,Corporate Services,Agenda Resource Management Ltd,98266334,155.91,Recruitment Costs
BEIS,UKRI - AHRC,01/08/2018,Recruitment Costs,HR,Agenda Resource Management Ltd,98250971,56.11,Recruitment Costs
BEIS,UKRI - AHRC,01/08/2018,Recruitment Costs,HR,Agenda Resource Management Ltd,98250979,56.11,Recruitment Costs
BEIS,UKRI - AHRC,01/08/2018,Recruitment Costs,HR,Agenda Resource Management Ltd,98250980,56.11,Recruitment Costs
BEIS,UKRI - AHRC,02/08/2018,Recruitment Costs,HR,Agenda Resource Management Ltd,98250236,155.91,Recruitment Costs
BEIS,UKRI - AHRC,02/08/2018,Recruitment Costs,HR,Agenda Resource Management Ltd,98250978,45.67,Recruitment Costs
BEIS,UKRI - AHRC,02/08/2018,Recruitment Costs,HR,Agenda Resource Management Ltd,98250978,157.04,Recruitment Costs
BEIS,UKRI - AHRC,02/08/2018,Recruitment Costs,Secretariat,Agenda Resource Management Ltd,98251312,33.40,Recruitment Costs
BEIS,UKRI - AHRC,23/08/2018,Recruitment Costs,Secretariat,Agenda Resource Management Ltd,98265382,33.40,Recruitment Costs
BEIS,UKRI - AHRC,10/08/2018,Agency Staff,IS,Alexander Mann Solutions Limited,98255867,4006.18,Agency Staff
BEIS,UKRI - AHRC,16/08/2018,Agency Staff,IS,Alexander Mann Solutions Limited,98260138,2503.86,Agency Staff
BEIS,UKRI - AHRC,15/08/2018,Contract Staff,PSU JRS,Alexander Mann Solutions Limited,98261189,3418.46,Contract Staff
BEIS,UKRI - AHRC,29/08/2018,Contract Staff,PSU JRS,Alexander Mann Solutions Limited,98268522,3418.46,Contract Staff
BEIS,UKRI - AHRC,01/08/2018,Agency Staff,PSU Project Office,Alexander Mann Solutions Limited,98246989,3364.51,Agency Staff
BEIS,UKRI - AHRC,09/08/2018,Agency Staff,PSU Project Office,Alexander Mann Solutions Limited,98255866,7570.15,Agency Staff
BEIS,UKRI - AHRC,23/08/2018,Agency Staff,PSU Project Office,Alexander Mann Solutions Limited,98260140,4205.64,Agency Staff
BEIS,UKRI - AHRC,23/08/2018,Agency Staff,PSU Project Office,Alexander Mann Solutions Limited,98266290,1682.26,Agency Staff
BEIS,UKRI - AHRC,09/08/2018,Contract Staff,PSU Project Office,Alexander Mann Solutions Limited,98255865,3096.96,Contract Staff
BEIS,UKRI - AHRC,15/08/2018,Contract Staff,PSU Project Office,Alexander Mann Solutions Limited,98260139,3096.96,Contract Staff
BEIS,UKRI - AHRC,15/08/2018,Contract Staff,PSU Project Office,Alexander Mann Solutions Limited,98261191,3096.96,Contract Staff
BEIS,UKRI - AHRC,22/08/2018,Contract Staff,PSU Project Office,Alexander Mann Solutions Limited,98266291,3096.96,Contract Staff
BEIS,UKRI - AHRC,28/08/2018,Contract Staff,PSU Project Office,Alexander Mann Solutions Limited,98268520,3096.96,Contract Staff
BEIS,UKRI - AHRC,30/08/2018,Contract Staff,PSU Project Office,Alexander Mann Solutions Limited,98268521,25613.02,Contract Staff
BEIS,UKRI - AHRC,20/08/2018,Printing & Stationery,Finance,Allied Publicity Services (Manchester) Ltd t/a APS Group,98262509,455.52,Printing & Stationery
BEIS,UKRI - AHRC,20/08/2018,Provisions ( Food etc),HR,Arco Limited,98260557,93.42,Provisions ( Food etc)
BEIS,UKRI - AHRC,15/08/2018,Contract Staff,IS,Automated Intelligence Ltd,98254166,990.00,Contract Staff
BEIS,UKRI - AHRC,15/08/2018,Contract Staff,IS,Automated Intelligence Ltd,98254166,742.50,Contract Staff
BEIS,UKRI - AHRC,15/08/2018,Legal & Professional Services,PSU Project Office,Automated Intelligence Ltd,98231174,43.50,Legal & Professional Services
BEIS,UKRI - AHRC,13/08/2018,Printing & Stationery,HR,Banner Group Ltd,98258783,15.89,Printing & Stationery
BEIS,UKRI - AHRC,13/08/2018,Printing & Stationery,HR,Banner Group Ltd,98258783,15.89,Printing & Stationery
BEIS,UKRI - AHRC,13/08/2018,Printing & Stationery,HR,Banner Group Ltd,98258783,47.52,Printing & Stationery
BEIS,UKRI - AHRC,23/08/2018,Provisions ( Food etc),HR,Banner Group Ltd,98260558,3.74,Provisions ( Food etc)
BEIS,UKRI - AHRC,09/08/2018,Printing & Stationery,Secretariat,Banner Group Ltd,98227688,11.92,Printing & Stationery
BEIS,UKRI - AHRC,09/08/2018,Printing & Stationery,Secretariat,Banner Group Ltd,98227688,2.58,Printing & Stationery
BEIS,UKRI - AHRC,09/08/2018,Printing & Stationery,Secretariat,Banner Group Ltd,98227688,2.03,Printing & Stationery
BEIS,UKRI - AHRC,09/08/2018,Printing & Stationery,Secretariat,Banner Group Ltd,98227688,2.03,Printing & Stationery
BEIS,UKRI - AHRC,09/08/2018,Printing & Stationery,Secretariat,Banner Group Ltd,98227688,2.03,Printing & Stationery
BEIS,UKRI - AHRC,13/08/2018,Meetings & Catering,Creative Arts & Digital Humanities,Baxter Storey Ltd,98258616,32.16,Meetings & Catering
BEIS,UKRI - AHRC,14/08/2018,Meetings & Catering,SMT,Baxter Storey Ltd,98259513,53.70,Meetings & Catering
BEIS,UKRI - AHRC,16/08/2018,UK - Professional Memberships & Subscriptions,Communications,Biotechnology and Biological Sciences Research Council (BBSRC),98244631,2656.61,UK - Professional Memberships & Subscriptions
BEIS,UKRI - AHRC,16/08/2018,Research Grant Expenditure,Global Challenges Research Fund (GCRF),Biotechnology and Biological Sciences Research Council (BBSRC),98224306,11018.82,Research Grant Expenditure
BEIS,UKRI - AHRC,23/08/2018,Conferences & Seminars,Industrial Strategy Challenge Fund (ISCF) - Creative Clusters,Calder Conference Ltd,98265431,396.44,Conferences & Seminars
BEIS,UKRI - AHRC,21/08/2018,Hospitality,PSU Project Office,Calder Conference Ltd,98264891,3435.00,Hospitality
BEIS,UKRI - AHRC,14/08/2018,Financial Services,Corporate Services,CCI Credit Management Ltd,98259534,3.72,Financial Services
BEIS,UKRI - AHRC,15/08/2018,Voluntary Deductions,Balance Sheet,Chargive,98258331,7.00,Voluntary Deductions
BEIS,UKRI - AHRC,15/08/2018,Voluntary Deductions,Balance Sheet,Civil Service Benevolent Fund,98258330,7.33,Voluntary Deductions
BEIS,UKRI - AHRC,10/08/2018,Conferences & Seminars,Secretariat,Clio Enterprises Ltd,98256576,-17.07,Conferences & Seminars
BEIS,UKRI - AHRC,10/08/2018,Conferences & Seminars,Secretariat,Clio Enterprises Ltd,98256576,1965.27,Conferences & Seminars
BEIS,UKRI - AHRC,10/08/2018,Conferences & Seminars,Secretariat,Clio Enterprises Ltd,98256576,-166.00,Conferences & Seminars
BEIS,UKRI - AHRC,31/08/2018,T&S UK - Public Transport,"AHRC - Strategic Planning, Evidence & Impact",Corporate Travel Management (North) Ltd,98271933,90.90,T&S UK - Public Transport
BEIS,UKRI - AHRC,31/08/2018,T&S UK - Accommodation,Business Process & Analysis,Corporate Travel Management (North) Ltd,98271933,0.50,T&S UK - Accommodation
BEIS,UKRI - AHRC,31/08/2018,T&S UK - Accommodation,Business Process & Analysis,Corporate Travel Management (North) Ltd,98271933,260.00,T&S UK - Accommodation
BEIS,UKRI - AHRC,31/08/2018,T&S UK - Accommodation,Business Process & Analysis,Corporate Travel Management (North) Ltd,98271933,0.10,T&S UK - Accommodation
BEIS,UKRI - AHRC,31/08/2018,T&S UK - Public Transport,Business Process & Analysis,Corporate Travel Management (North) Ltd,98271933,35.90,T&S UK - Public Transport
BEIS,UKRI - AHRC,31/08/2018,T&S UK - Public Transport,Communications,Corporate Travel Management (North) Ltd,98271933,99.80,T&S UK - Public Transport
BEIS,UKRI - AHRC,31/08/2018,T&S UK - Public Transport,Communications,Corporate Travel Management (North) Ltd,98271933,79.80,T&S UK - Public Transport
BEIS,UKRI - AHRC,31/08/2018,T&S UK - Public Transport,Communications,Corporate Travel Management (North) Ltd,98271933,79.80,T&S UK - Public Transport
BEIS,UKRI - AHRC,31/08/2018,T&S UK - Public Transport,Communications,Corporate Travel Management (North) Ltd,98271933,140.60,T&S UK - Public Transport
BEIS,UKRI - AHRC,31/08/2018,T&S UK - Public Transport,Communications,Corporate Travel Management (North) Ltd,98271933,2.00,T&S UK - Public Transport
BEIS,UKRI - AHRC,31/08/2018,T&S UK - Public Transport,Communications,Corporate Travel Management (North) Ltd,98271933,13.90,T&S UK - Public Transport
BEIS,UKRI - AHRC,31/08/2018,T&S UK - Public Transport,Communications,Corporate Travel Management (North) Ltd,98271933,63.20,T&S UK - Public Transport
BEIS,UKRI - AHRC,31/08/2018,T&S UK - Public Transport,Communications,Corporate Travel Management (North) Ltd,98271933,139.60,T&S UK - Public Transport
BEIS,UKRI - AHRC,31/08/2018,T&S UK - Public Transport,Communications,Corporate Travel Management (North) Ltd,98271933,139.60,T&S UK - Public Transport
BEIS,UKRI - AHRC,31/08/2018,T&S UK - Accommodation,Creative Arts & Digital Humanities,Corporate Travel Management (North) Ltd,98271933,0.50,T&S UK - Accommodation
BEIS,UKRI - AHRC,31/08/2018,T&S UK - Accommodation,Creative Arts & Digital Humanities,Corporate Travel Management (North) Ltd,98271933,72.00,T&S UK - Accommodation
BEIS,UKRI - AHRC,31/08/2018,T&S UK - Accommodation,Creative Arts & Digital Humanities,Corporate Travel Management (North) Ltd,98271933,0.50,T&S UK - Accommodation
BEIS,UKRI - AHRC,31/08/2018,T&S UK - Accommodation,Creative Arts & Digital Humanities,Corporate Travel Management (North) Ltd,98271933,184.95,T&S UK - Accommodation
BEIS,UKRI - AHRC,31/08/2018,T&S UK - Accommodation,Creative Arts & Digital Humanities,Corporate Travel Management (North) Ltd,98271933,0.20,T&S UK - Accommodation
BEIS,UKRI - AHRC,31/08/2018,T&S UK - Public Transport,Creative Arts & Digital Humanities,Corporate Travel Management (North) Ltd,98271933,217.40,T&S UK - Public Transport
BEIS,UKRI - AHRC,31/08/2018,T&S UK - Public Transport,Creative Arts & Digital Humanities,Corporate Travel Management (North) Ltd,98271933,1.00,T&S UK - Public Transport
BEIS,UKRI - AHRC,31/08/2018,T&S UK - Public Transport,Creative Arts & Digital Humanities,Corporate Travel Management (North) Ltd,98271933,217.40,T&S UK - Public Transport
BEIS,UKRI - AHRC,31/08/2018,T&S UK - Public Transport,Creative Arts & Digital Humanities,Corporate Travel Management (North) Ltd,98271933,139.60,T&S UK - Public Transport
BEIS,UKRI - AHRC,31/08/2018,T&S UK - Public Transport,Creative Arts & Digital Humanities,Corporate Travel Management (North) Ltd,98271933,61.20,T&S UK - Public Transport
BEIS,UKRI - AHRC,31/08/2018,T&S UK - Public Transport,Creative Arts & Digital Humanities,Corporate Travel Management (North) Ltd,98271933,-41.90,T&S UK - Public Transport
BEIS,UKRI - AHRC,31/08/2018,T&S UK - Public Transport,Creative Arts & Digital Humanities,Corporate Travel Management (North) Ltd,98271933,1.00,T&S UK - Public Transport
BEIS,UKRI - AHRC,31/08/2018,T&S UK - Public Transport,Creative Arts & Digital Humanities,Corporate Travel Management (North) Ltd,98271933,217.40,T&S UK - Public Transport
BEIS,UKRI - AHRC,31/08/2018,T&S UK - Public Transport,Creative Arts & Digital Humanities,Corporate Travel Management (North) Ltd,98271933,133.60,T&S UK - Public Transport
BEIS,UKRI - AHRC,31/08/2018,T&S UK - Public Transport,Creative Arts & Digital Humanities,Corporate Travel Management (North) Ltd,98271933,139.60,T&S UK - Public Transport
BEIS,UKRI - AHRC,31/08/2018,T&S UK - Public Transport,Finance,Corporate Travel Management (North) Ltd,98271933,100.70,T&S UK - Public Transport
BEIS,UKRI - AHRC,31/08/2018,T&S UK - Public Transport,Finance,Corporate Travel Management (North) Ltd,98271933,67.90,T&S UK - Public Transport
BEIS,UKRI - AHRC,31/08/2018,T&S UK - Public Transport,Finance,Corporate Travel Management (North) Ltd,98271933,23.00,T&S UK - Public Transport
BEIS,UKRI - AHRC,31/08/2018,T&S Overseas - Flights,HERA JRP Project,Corporate Travel Management (North) Ltd,98271933,2.16,T&S Overseas - Flights
BEIS,UKRI - AHRC,31/08/2018,T&S Overseas - Flights,HERA JRP Project,Corporate Travel Management (North) Ltd,98271933,1173.61,T&S Overseas - Flights
BEIS,UKRI - AHRC,31/08/2018,Non-staff travel and subsistance,"Histories,Culture & Heritage",Corporate Travel Management (North) Ltd,98271933,0.50,Non-staff travel and subsistance
BEIS,UKRI - AHRC,31/08/2018,Non-staff travel and subsistance,"Histories,Culture & Heritage",Corporate Travel Management (North) Ltd,98271933,73.00,Non-staff travel and subsistance
BEIS,UKRI - AHRC,31/08/2018,Non-staff travel and subsistance,"Histories,Culture & Heritage",Corporate Travel Management (North) Ltd,98271933,0.50,Non-staff travel and subsistance
BEIS,UKRI - AHRC,31/08/2018,Non-staff travel and subsistance,"Histories,Culture & Heritage",Corporate Travel Management (North) Ltd,98271933,73.00,Non-staff travel and subsistance
BEIS,UKRI - AHRC,31/08/2018,Non-staff travel and subsistance,"Histories,Culture & Heritage",Corporate Travel Management (North) Ltd,98271933,0.50,Non-staff travel and subsistance
BEIS,UKRI - AHRC,31/08/2018,Non-staff travel and subsistance,"Histories,Culture & Heritage",Corporate Travel Management (North) Ltd,98271933,73.00,Non-staff travel and subsistance
BEIS,UKRI - AHRC,31/08/2018,Non-staff travel and subsistance,"Histories,Culture & Heritage",Corporate Travel Management (North) Ltd,98271933,0.30,Non-staff travel and subsistance
BEIS,UKRI - AHRC,31/08/2018,T&S UK - Accommodation,"Histories,Culture & Heritage",Corporate Travel Management (North) Ltd,98271933,0.50,T&S UK - Accommodation
BEIS,UKRI - AHRC,31/08/2018,T&S UK - Accommodation,"Histories,Culture & Heritage",Corporate Travel Management (North) Ltd,98271933,68.53,T&S UK - Accommodation
BEIS,UKRI - AHRC,31/08/2018,T&S UK - Accommodation,"Histories,Culture & Heritage",Corporate Travel Management (North) Ltd,98271933,0.10,T&S UK - Accommodation
BEIS,UKRI - AHRC,31/08/2018,T&S UK - Public Transport,"Histories,Culture & Heritage",Corporate Travel Management (North) Ltd,98271933,160.90,T&S UK - Public Transport
BEIS,UKRI - AHRC,31/08/2018,T&S UK - Public Transport,"Histories,Culture & Heritage",Corporate Travel Management (North) Ltd,98271933,144.70,T&S UK - Public Transport
BEIS,UKRI - AHRC,31/08/2018,T&S UK - Public Transport,"Histories,Culture & Heritage",Corporate Travel Management (North) Ltd,98271933,139.60,T&S UK - Public Transport
BEIS,UKRI - AHRC,31/08/2018,T&S UK - Public Transport,"Histories,Culture & Heritage",Corporate Travel Management (North) Ltd,98271933,120.90,T&S UK - Public Transport
BEIS,UKRI - AHRC,31/08/2018,T&S UK - Public Transport,"Histories,Culture & Heritage",Corporate Travel Management (North) Ltd,98271933,139.60,T&S UK - Public Transport
BEIS,UKRI - AHRC,31/08/2018,T&S UK - Public Transport,"Histories,Culture & Heritage",Corporate Travel Management (North) Ltd,98271933,23.00,T&S UK - Public Transport
BEIS,UKRI - AHRC,31/08/2018,T&S UK - Public Transport,"Histories,Culture & Heritage",Corporate Travel Management (North) Ltd,98271933,23.00,T&S UK - Public Transport
BEIS,UKRI - AHRC,31/08/2018,T&S UK - Public Transport,"Histories,Culture & Heritage",Corporate Travel Management (North) Ltd,98271933,164.00,T&S UK - Public Transport
BEIS,UKRI - AHRC,31/08/2018,T&S UK - Public Transport,"Histories,Culture & Heritage",Corporate Travel Management (North) Ltd,98271933,139.60,T&S UK - Public Transport
BEIS,UKRI - AHRC,31/08/2018,T&S UK - Public Transport,"Histories,Culture & Heritage",Corporate Travel Management (North) Ltd,98271933,100.70,T&S UK - Public Transport
BEIS,UKRI - AHRC,31/08/2018,T&S UK - Public Transport,"Histories,Culture & Heritage",Corporate Travel Management (North) Ltd,98271933,139.60,T&S UK - Public Transport
BEIS,UKRI - AHRC,31/08/2018,T&S UK - Public Transport,"Histories,Culture & Heritage",Corporate Travel Management (North) Ltd,98271933,154.20,T&S UK - Public Transport
BEIS,UKRI - AHRC,31/08/2018,T&S UK - Public Transport,HR,Corporate Travel Management (North) Ltd,98271933,23.00,T&S UK - Public Transport
BEIS,UKRI - AHRC,31/08/2018,T&S UK - Public Transport,HR,Corporate Travel Management (North) Ltd,98271933,100.70,T&S UK - Public Transport
BEIS,UKRI - AHRC,31/08/2018,T&S UK - Public Transport,HR,Corporate Travel Management (North) Ltd,98271933,135.30,T&S UK - Public Transport
BEIS,UKRI - AHRC,31/08/2018,T&S UK - Public Transport,HR,Corporate Travel Management (North) Ltd,98271933,23.00,T&S UK - Public Transport
BEIS,UKRI - AHRC,31/08/2018,T&S UK - Public Transport,HR,Corporate Travel Management (North) Ltd,98271933,135.30,T&S UK - Public Transport
BEIS,UKRI - AHRC,31/08/2018,T&S UK - Public Transport,HR,Corporate Travel Management (North) Ltd,98271933,77.30,T&S UK - Public Transport
BEIS,UKRI - AHRC,31/08/2018,T&S UK - Public Transport,HR,Corporate Travel Management (North) Ltd,98271933,46.80,T&S UK - Public Transport
BEIS,UKRI - AHRC,31/08/2018,T&S UK - Public Transport,HR,Corporate Travel Management (North) Ltd,98271933,23.00,T&S UK - Public Transport
BEIS,UKRI - AHRC,31/08/2018,T&S UK - Public Transport,HR,Corporate Travel Management (North) Ltd,98271933,129.30,T&S UK - Public Transport
BEIS,UKRI - AHRC,31/08/2018,T&S UK - Public Transport,HR,Corporate Travel Management (North) Ltd,98271933,23.00,T&S UK - Public Transport
BEIS,UKRI - AHRC,31/08/2018,T&S UK - Public Transport,HR,Corporate Travel Management (North) Ltd,98271933,-18.00,T&S UK - Public Transport
BEIS,UKRI - AHRC,31/08/2018,T&S UK - Public Transport,HR,Corporate Travel Management (North) Ltd,98271933,23.00,T&S UK - Public Transport
BEIS,UKRI - AHRC,31/08/2018,T&S UK - Public Transport,HR,Corporate Travel Management (North) Ltd,98271933,23.00,T&S UK - Public Transport
BEIS,UKRI - AHRC,31/08/2018,T&S UK - Public Transport,HR,Corporate Travel Management (North) Ltd,98271933,-18.00,T&S UK - Public Transport
BEIS,UKRI - AHRC,31/08/2018,T&S UK - Public Transport,HR,Corporate Travel Management (North) Ltd,98271933,-18.00,T&S UK - Public Transport
BEIS,UKRI - AHRC,31/08/2018,T&S UK - Public Transport,HR,Corporate Travel Management (North) Ltd,98271933,23.00,T&S UK - Public Transport
BEIS,UKRI - AHRC,31/08/2018,T&S UK - Public Transport,HR,Corporate Travel Management (North) Ltd,98271933,23.00,T&S UK - Public Transport
BEIS,UKRI - AHRC,31/08/2018,T&S UK - Public Transport,HR,Corporate Travel Management (North) Ltd,98271933,23.00,T&S UK - Public Transport
BEIS,UKRI - AHRC,31/08/2018,T&S UK - Public Transport,Industrial Strategy Challenge Fund (ISCF) - Creative Clusters,Corporate Travel Management (North) Ltd,98271933,-100.70,T&S UK - Public Transport
BEIS,UKRI - AHRC,31/08/2018,T&S UK - Public Transport,International,Corporate Travel Management (North) Ltd,98271933,102.00,T&S UK - Public Transport
BEIS,UKRI - AHRC,31/08/2018,T&S UK - Public Transport,International,Corporate Travel Management (North) Ltd,98271933,23.50,T&S UK - Public Transport
BEIS,UKRI - AHRC,31/08/2018,T&S UK - Public Transport,IS,Corporate Travel Management (North) Ltd,98271933,72.10,T&S UK - Public Transport
BEIS,UKRI - AHRC,31/08/2018,T&S Overseas - Flights,"Languages,Literature & International Engagement",Corporate Travel Management (North) Ltd,98271933,1368.70,T&S Overseas - Flights
BEIS,UKRI - AHRC,31/08/2018,T&S Overseas - Flights,"Languages,Literature & International Engagement",Corporate Travel Management (North) Ltd,98271933,0.50,T&S Overseas - Flights
BEIS,UKRI - AHRC,31/08/2018,T&S Overseas - Flights,"Languages,Literature & International Engagement",Corporate Travel Management (North) Ltd,98271933,1.44,T&S Overseas - Flights
BEIS,UKRI - AHRC,31/08/2018,T&S Overseas - Flights,"Languages,Literature & International Engagement",Corporate Travel Management (North) Ltd,98271933,390.75,T&S Overseas - Flights
BEIS,UKRI - AHRC,31/08/2018,T&S Overseas - Flights,"Languages,Literature & International Engagement",Corporate Travel Management (North) Ltd,98271933,0.39,T&S Overseas - Flights
BEIS,UKRI - AHRC,31/08/2018,T&S UK - Accommodation,"Languages,Literature & International Engagement",Corporate Travel Management (North) Ltd,98271933,0.50,T&S UK - Accommodation
BEIS,UKRI - AHRC,31/08/2018,T&S UK - Accommodation,"Languages,Literature & International Engagement",Corporate Travel Management (North) Ltd,98271933,0.10,T&S UK - Accommodation
BEIS,UKRI - AHRC,31/08/2018,T&S UK - Flights,"Languages,Literature & International Engagement",Corporate Travel Management (North) Ltd,98271933,110.87,T&S UK - Flights
BEIS,UKRI - AHRC,31/08/2018,T&S UK - Public Transport,"Languages,Literature & International Engagement",Corporate Travel Management (North) Ltd,98271933,139.60,T&S UK - Public Transport
BEIS,UKRI - AHRC,31/08/2018,T&S UK - Public Transport,"Languages,Literature & International Engagement",Corporate Travel Management (North) Ltd,98271933,139.60,T&S UK - Public Transport
BEIS,UKRI - AHRC,31/08/2018,T&S UK - Public Transport,"Languages,Literature & International Engagement",Corporate Travel Management (North) Ltd,98271933,67.90,T&S UK - Public Transport
BEIS,UKRI - AHRC,31/08/2018,T&S UK - Public Transport,"Languages,Literature & International Engagement",Corporate Travel Management (North) Ltd,98271933,170.60,T&S UK - Public Transport
BEIS,UKRI - AHRC,31/08/2018,T&S UK - Public Transport,"Languages,Literature & International Engagement",Corporate Travel Management (North) Ltd,98271933,139.60,T&S UK - Public Transport
BEIS,UKRI - AHRC,31/08/2018,T&S UK - Public Transport,"Languages,Literature & International Engagement",Corporate Travel Management (North) Ltd,98271933,139.60,T&S UK - Public Transport
BEIS,UKRI - AHRC,31/08/2018,T&S UK - Public Transport,Newton Programme Delivery,Corporate Travel Management (North) Ltd,98271933,121.70,T&S UK - Public Transport
BEIS,UKRI - AHRC,31/08/2018,T&S UK - Public Transport,Newton Programme Delivery,Corporate Travel Management (North) Ltd,98271933,-86.80,T&S UK - Public Transport
BEIS,UKRI - AHRC,31/08/2018,T&S UK - Public Transport,Newton Programme Delivery,Corporate Travel Management (North) Ltd,98271933,-23.50,T&S UK - Public Transport
BEIS,UKRI - AHRC,31/08/2018,T&S UK - Parking Tolls Congestion Charges,PSU JRS,Corporate Travel Management (North) Ltd,98271933,2.16,T&S UK - Parking Tolls Congestion Charges
BEIS,UKRI - AHRC,31/08/2018,T&S UK - Parking Tolls Congestion Charges,PSU JRS,Corporate Travel Management (North) Ltd,98271933,71.99,T&S UK - Parking Tolls Congestion Charges
BEIS,UKRI - AHRC,31/08/2018,T&S UK - Public Transport,PSU Project Office,Corporate Travel Management (North) Ltd,98271933,-64.80,T&S UK - Public Transport
BEIS,UKRI - AHRC,31/08/2018,T&S UK - Public Transport,PSU Project Office,Corporate Travel Management (North) Ltd,98271933,128.70,T&S UK - Public Transport
BEIS,UKRI - AHRC,31/08/2018,T&S UK - Public Transport,PSU Project Office,Corporate Travel Management (North) Ltd,98271933,-7.70,T&S UK - Public Transport
BEIS,UKRI - AHRC,31/08/2018,T&S UK - Public Transport,PSU Project Office,Corporate Travel Management (North) Ltd,98271933,-128.60,T&S UK - Public Transport
BEIS,UKRI - AHRC,31/08/2018,T&S UK - Public Transport,PSU Project Office,Corporate Travel Management (North) Ltd,98271933,1.00,T&S UK - Public Transport
BEIS,UKRI - AHRC,31/08/2018,T&S UK - Public Transport,PSU Project Office,Corporate Travel Management (North) Ltd,98271933,139.60,T&S UK - Public Transport
BEIS,UKRI - AHRC,31/08/2018,T&S UK - Public Transport,PSU Project Office,Corporate Travel Management (North) Ltd,98271933,96.70,T&S UK - Public Transport
BEIS,UKRI - AHRC,31/08/2018,T&S UK - Accommodation,Secretariat,Corporate Travel Management (North) Ltd,98271933,0.50,T&S UK - Accommodation
BEIS,UKRI - AHRC,31/08/2018,T&S UK - Accommodation,Secretariat,Corporate Travel Management (North) Ltd,98271933,0.50,T&S UK - Accommodation
BEIS,UKRI - AHRC,31/08/2018,T&S UK - Accommodation,Secretariat,Corporate Travel Management (North) Ltd,98271933,0.50,T&S UK - Accommodation
BEIS,UKRI - AHRC,31/08/2018,T&S UK - Accommodation,Secretariat,Corporate Travel Management (North) Ltd,98271933,0.50,T&S UK - Accommodation
BEIS,UKRI - AHRC,31/08/2018,T&S UK - Accommodation,Secretariat,Corporate Travel Management (North) Ltd,98271933,0.40,T&S UK - Accommodation
BEIS,UKRI - AHRC,31/08/2018,T&S Overseas - Flights,SMT,Corporate Travel Management (North) Ltd,98271933,2.16,T&S Overseas - Flights
BEIS,UKRI - AHRC,31/08/2018,T&S Overseas - Flights,SMT,Corporate Travel Management (North) Ltd,98271933,210.10,T&S Overseas - Flights
BEIS,UKRI - AHRC,31/08/2018,T&S UK - Accommodation,SMT,Corporate Travel Management (North) Ltd,98271933,0.50,T&S UK - Accommodation
BEIS,UKRI - AHRC,31/08/2018,T&S UK - Accommodation,SMT,Corporate Travel Management (North) Ltd,98271933,65.00,T&S UK - Accommodation
BEIS,UKRI - AHRC,31/08/2018,T&S UK - Accommodation,SMT,Corporate Travel Management (North) Ltd,98271933,0.50,T&S UK - Accommodation
BEIS,UKRI - AHRC,31/08/2018,T&S UK - Accommodation,SMT,Corporate Travel Management (North) Ltd,98271933,630.00,T&S UK - Accommodation
BEIS,UKRI - AHRC,31/08/2018,T&S UK - Accommodation,SMT,Corporate Travel Management (North) Ltd,98271933,0.50,T&S UK - Accommodation
BEIS,UKRI - AHRC,31/08/2018,T&S UK - Accommodation,SMT,Corporate Travel Management (North) Ltd,98271933,65.00,T&S UK - Accommodation
BEIS,UKRI - AHRC,31/08/2018,T&S UK - Accommodation,SMT,Corporate Travel Management (North) Ltd,98271933,0.50,T&S UK - Accommodation
BEIS,UKRI - AHRC,31/08/2018,T&S UK - Accommodation,SMT,Corporate Travel Management (North) Ltd,98271933,160.50,T&S UK - Accommodation
BEIS,UKRI - AHRC,31/08/2018,T&S UK - Accommodation,SMT,Corporate Travel Management (North) Ltd,98271933,9.50,T&S UK - Accommodation
BEIS,UKRI - AHRC,31/08/2018,T&S UK - Accommodation,SMT,Corporate Travel Management (North) Ltd,98271933,1.73,T&S UK - Accommodation
BEIS,UKRI - AHRC,31/08/2018,T&S UK - Accommodation,SMT,Corporate Travel Management (North) Ltd,98271933,156.00,T&S UK - Accommodation
BEIS,UKRI - AHRC,31/08/2018,T&S UK - Accommodation,SMT,Corporate Travel Management (North) Ltd,98271933,0.50,T&S UK - Accommodation
BEIS,UKRI - AHRC,31/08/2018,T&S UK - Accommodation,SMT,Corporate Travel Management (North) Ltd,98271933,130.00,T&S UK - Accommodation
BEIS,UKRI - AHRC,31/08/2018,T&S UK - Accommodation,SMT,Corporate Travel Management (North) Ltd,98271933,0.50,T&S UK - Accommodation
BEIS,UKRI - AHRC,31/08/2018,T&S UK - Accommodation,SMT,Corporate Travel Management (North) Ltd,98271933,195.00,T&S UK - Accommodation
BEIS,UKRI - AHRC,31/08/2018,T&S UK - Accommodation,SMT,Corporate Travel Management (North) Ltd,98271933,0.50,T&S UK - Accommodation
BEIS,UKRI - AHRC,31/08/2018,T&S UK - Accommodation,SMT,Corporate Travel Management (North) Ltd,98271933,0.50,T&S UK - Accommodation
BEIS,UKRI - AHRC,31/08/2018,T&S UK - Accommodation,SMT,Corporate Travel Management (North) Ltd,98271933,144.00,T&S UK - Accommodation
BEIS,UKRI - AHRC,31/08/2018,T&S UK - Accommodation,SMT,Corporate Travel Management (North) Ltd,98271933,0.50,T&S UK - Accommodation
BEIS,UKRI - AHRC,31/08/2018,T&S UK - Accommodation,SMT,Corporate Travel Management (North) Ltd,98271933,65.00,T&S UK - Accommodation
BEIS,UKRI - AHRC,31/08/2018,T&S UK - Accommodation,SMT,Corporate Travel Management (North) Ltd,98271933,1.25,T&S UK - Accommodation
BEIS,UKRI - AHRC,31/08/2018,T&S UK - Flights,SMT,Corporate Travel Management (North) Ltd,98271933,361.52,T&S UK - Flights
BEIS,UKRI - AHRC,31/08/2018,T&S UK - Flights,SMT,Corporate Travel Management (North) Ltd,98271933,60.99,T&S UK - Flights
BEIS,UKRI - AHRC,31/08/2018,T&S UK - Public Transport,SMT,Corporate Travel Management (North) Ltd,98271933,-22.90,T&S UK - Public Transport
BEIS,UKRI - AHRC,31/08/2018,T&S UK - Public Transport,SMT,Corporate Travel Management (North) Ltd,98271933,86.00,T&S UK - Public Transport
BEIS,UKRI - AHRC,31/08/2018,T&S UK - Public Transport,SMT,Corporate Travel Management (North) Ltd,98271933,27.90,T&S UK - Public Transport
BEIS,UKRI - AHRC,31/08/2018,T&S UK - Public Transport,SMT,Corporate Travel Management (North) Ltd,98271933,-10.30,T&S UK - Public Transport
BEIS,UKRI - AHRC,31/08/2018,T&S UK - Public Transport,SMT,Corporate Travel Management (North) Ltd,98271933,45.20,T&S UK - Public Transport
BEIS,UKRI - AHRC,31/08/2018,T&S UK - Public Transport,SMT,Corporate Travel Management (North) Ltd,98271933,59.30,T&S UK - Public Transport
BEIS,UKRI - AHRC,31/08/2018,T&S UK - Public Transport,SMT,Corporate Travel Management (North) Ltd,98271933,105.00,T&S UK - Public Transport
BEIS,UKRI - AHRC,31/08/2018,T&S UK - Public Transport,SMT,Corporate Travel Management (North) Ltd,98271933,5.00,T&S UK - Public Transport
BEIS,UKRI - AHRC,31/08/2018,T&S UK - Public Transport,SMT,Corporate Travel Management (North) Ltd,98271933,-5.40,T&S UK - Public Transport
BEIS,UKRI - AHRC,31/08/2018,T&S UK - Public Transport,SMT,Corporate Travel Management (North) Ltd,98271933,5.00,T&S UK - Public Transport
BEIS,UKRI - AHRC,31/08/2018,T&S UK - Public Transport,SMT,Corporate Travel Management (North) Ltd,98271933,-55.20,T&S UK - Public Transport
BEIS,UKRI - AHRC,31/08/2018,T&S UK - Public Transport,SMT,Corporate Travel Management (North) Ltd,98271933,117.50,T&S UK - Public Transport
BEIS,UKRI - AHRC,31/08/2018,T&S UK - Public Transport,SMT,Corporate Travel Management (North) Ltd,98271933,1.00,T&S UK - Public Transport
BEIS,UKRI - AHRC,31/08/2018,T&S UK - Public Transport,SMT,Corporate Travel Management (North) Ltd,98271933,61.50,T&S UK - Public Transport
BEIS,UKRI - AHRC,31/08/2018,T&S UK - Public Transport,SMT,Corporate Travel Management (North) Ltd,98271933,94.70,T&S UK - Public Transport
BEIS,UKRI - AHRC,31/08/2018,T&S UK - Public Transport,SMT,Corporate Travel Management (North) Ltd,98271933,31.50,T&S UK - Public Transport
BEIS,UKRI - AHRC,31/08/2018,T&S UK - Public Transport,SMT,Corporate Travel Management (North) Ltd,98271933,27.90,T&S UK - Public Transport
BEIS,UKRI - AHRC,31/08/2018,T&S UK - Public Transport,SMT,Corporate Travel Management (North) Ltd,98271933,1.00,T&S UK - Public Transport
BEIS,UKRI - AHRC,31/08/2018,T&S UK - Public Transport,SMT,Corporate Travel Management (North) Ltd,98271933,20.80,T&S UK - Public Transport
BEIS,UKRI - AHRC,31/08/2018,T&S UK - Public Transport,SMT,Corporate Travel Management (North) Ltd,98271933,72.30,T&S UK - Public Transport
BEIS,UKRI - AHRC,31/08/2018,T&S UK - Public Transport,SMT,Corporate Travel Management (North) Ltd,98271933,27.90,T&S UK - Public Transport
BEIS,UKRI - AHRC,31/08/2018,T&S UK - Public Transport,SMT,Corporate Travel Management (North) Ltd,98271933,5.00,T&S UK - Public Transport
BEIS,UKRI - AHRC,31/08/2018,T&S UK - Public Transport,SMT,Corporate Travel Management (North) Ltd,98271933,-50.80,T&S UK - Public Transport
BEIS,UKRI - AHRC,31/08/2018,T&S UK - Public Transport,SMT,Corporate Travel Management (North) Ltd,98271933,55.00,T&S UK - Public Transport
BEIS,UKRI - AHRC,31/08/2018,T&S UK - Public Transport,SMT,Corporate Travel Management (North) Ltd,98271933,94.70,T&S UK - Public Transport
BEIS,UKRI - AHRC,31/08/2018,T&S UK - Public Transport,SMT,Corporate Travel Management (North) Ltd,98271933,79.00,T&S UK - Public Transport
BEIS,UKRI - AHRC,31/08/2018,T&S UK - Public Transport,SMT,Corporate Travel Management (North) Ltd,98271933,94.70,T&S UK - Public Transport
BEIS,UKRI - AHRC,31/08/2018,T&S UK - Public Transport,SMT,Corporate Travel Management (North) Ltd,98271933,63.20,T&S UK - Public Transport
BEIS,UKRI - AHRC,31/08/2018,T&S UK - Public Transport,SMT,Corporate Travel Management (North) Ltd,98271933,94.70,T&S UK - Public Transport
BEIS,UKRI - AHRC,31/08/2018,T&S UK - Public Transport,SMT,Corporate Travel Management (North) Ltd,98271933,1.00,T&S UK - Public Transport
BEIS,UKRI - AHRC,31/08/2018,T&S UK - Public Transport,SMT,Corporate Travel Management (North) Ltd,98271933,133.60,T&S UK - Public Transport
BEIS,UKRI - AHRC,31/08/2018,T&S UK - Public Transport,SMT,Corporate Travel Management (North) Ltd,98271933,37.00,T&S UK - Public Transport
BEIS,UKRI - AHRC,31/08/2018,T&S UK - Public Transport,SMT,Corporate Travel Management (North) Ltd,98271933,15.90,T&S UK - Public Transport
BEIS,UKRI - AHRC,31/08/2018,T&S UK - Public Transport,SMT,Corporate Travel Management (North) Ltd,98271933,1.00,T&S UK - Public Transport
BEIS,UKRI - AHRC,31/08/2018,T&S UK - Public Transport,SMT,Corporate Travel Management (North) Ltd,98271933,15.20,T&S UK - Public Transport
BEIS,UKRI - AHRC,31/08/2018,T&S UK - Public Transport,SMT,Corporate Travel Management (North) Ltd,98271933,-33.20,T&S UK - Public Transport
BEIS,UKRI - AHRC,31/08/2018,T&S UK - Public Transport,SMT,Corporate Travel Management (North) Ltd,98271933,1.00,T&S UK - Public Transport
BEIS,UKRI - AHRC,31/08/2018,T&S UK - Public Transport,SMT,Corporate Travel Management (North) Ltd,98271933,15.20,T&S UK - Public Transport
BEIS,UKRI - AHRC,31/08/2018,T&S UK - Public Transport,SMT,Corporate Travel Management (North) Ltd,98271933,27.90,T&S UK - Public Transport
BEIS,UKRI - AHRC,31/08/2018,T&S UK - Public Transport,SMT,Corporate Travel Management (North) Ltd,98271933,108.50,T&S UK - Public Transport
BEIS,UKRI - AHRC,31/08/2018,T&S UK - Public Transport,SMT,Corporate Travel Management (North) Ltd,98271933,94.70,T&S UK - Public Transport
BEIS,UKRI - AHRC,31/08/2018,T&S UK - Public Transport,SMT,Corporate Travel Management (North) Ltd,98271933,27.90,T&S UK - Public Transport
BEIS,UKRI - AHRC,31/08/2018,T&S UK - Public Transport,SMT,Corporate Travel Management (North) Ltd,98271933,-31.00,T&S UK - Public Transport
BEIS,UKRI - AHRC,31/08/2018,T&S UK - Public Transport,SMT,Corporate Travel Management (North) Ltd,98271933,94.70,T&S UK - Public Transport
BEIS,UKRI - AHRC,31/08/2018,T&S UK - Public Transport,SMT,Corporate Travel Management (North) Ltd,98271933,68.70,T&S UK - Public Transport
BEIS,UKRI - AHRC,31/08/2018,T&S UK - Public Transport,SMT,Corporate Travel Management (North) Ltd,98271933,94.70,T&S UK - Public Transport
BEIS,UKRI - AHRC,31/08/2018,T&S UK - Public Transport,SMT,Corporate Travel Management (North) Ltd,98271933,45.00,T&S UK - Public Transport
BEIS,UKRI - AHRC,31/08/2018,T&S UK - Public Transport,SMT,Corporate Travel Management (North) Ltd,98271933,27.90,T&S UK - Public Transport
BEIS,UKRI - AHRC,31/08/2018,T&S UK - Public Transport,SMT,Corporate Travel Management (North) Ltd,98271933,30.60,T&S UK - Public Transport
BEIS,UKRI - AHRC,31/08/2018,T&S UK - Public Transport,SMT,Corporate Travel Management (North) Ltd,98271933,139.60,T&S UK - Public Transport
BEIS,UKRI - AHRC,31/08/2018,T&S UK - Public Transport,SMT,Corporate Travel Management (North) Ltd,98271933,1.00,T&S UK - Public Transport
BEIS,UKRI - AHRC,31/08/2018,T&S UK - Public Transport,SMT,Corporate Travel Management (North) Ltd,98271933,153.40,T&S UK - Public Transport
BEIS,UKRI - AHRC,31/08/2018,T&S UK - Public Transport,SMT,Corporate Travel Management (North) Ltd,98271933,1.00,T&S UK - Public Transport
BEIS,UKRI - AHRC,31/08/2018,T&S UK - Public Transport,SMT,Corporate Travel Management (North) Ltd,98271933,94.00,T&S UK - Public Transport
BEIS,UKRI - AHRC,13/08/2018,Nursery Deductions,Balance Sheet,EDENRED (UK GROUP) LTD,98259201,6034.00,Nursery Deductions
BEIS,UKRI - AHRC,16/08/2018,Nursery Deductions,Balance Sheet,EDENRED (UK GROUP) LTD,98261775,4544.22,Nursery Deductions
BEIS,UKRI - AHRC,20/08/2018,Other Staff Benefits,Corporate Services,EDENRED (UK GROUP) LTD,98261758,9.82,Other Staff Benefits
BEIS,UKRI - AHRC,16/08/2018,Research Grant Expenditure,New Dynamics of Aging,Engineering & Physical Sciences Research Council,98164140,-2558.11,Research Grant Expenditure
BEIS,UKRI - AHRC,16/08/2018,Other Programme Costs,RCUK Other,Engineering & Physical Sciences Research Council,98226202,232758.16,Other Programme Costs
BEIS,UKRI - AHRC,23/08/2018,Employers Superannuation Contribution,Secretariat,Engineering & Physical Sciences Research Council,98262218,1946.38,Employers Superannuation Contribution
BEIS,UKRI - AHRC,31/08/2018,Staff Training,HR,Genius Within C.I.C.,98262526,-25.60,Staff Training
BEIS,UKRI - AHRC,31/08/2018,Staff Training,HR,Genius Within C.I.C.,98262526,921.60,Staff Training
BEIS,UKRI - AHRC,31/08/2018,Staff Training,HR,Genius Within C.I.C.,98262526,-128.00,Staff Training
BEIS,UKRI - AHRC,23/08/2018,Advertising & Promotion,Communications,Gerard Silverstone t/a Geri Silverstone Communications Consultants,98266629,2940.00,Advertising & Promotion
BEIS,UKRI - AHRC,02/08/2018,Agency Staff,Finance,Hays Specialist Recruitment Ltd,98251310,2672.76,Agency Staff
BEIS,UKRI - AHRC,24/08/2018,Agency Staff,Finance,Hays Specialist Recruitment Ltd,98266813,2672.76,Agency Staff
BEIS,UKRI - AHRC,24/08/2018,Agency Staff,Finance,Hays Specialist Recruitment Ltd,98266815,2672.76,Agency Staff
BEIS,UKRI - AHRC,24/08/2018,Agency Staff,Finance,Hays Specialist Recruitment Ltd,98266832,2672.76,Agency Staff
BEIS,UKRI - AHRC,01/08/2018,Contract Staff,Finance,Hays Specialist Recruitment Ltd,98250518,1816.50,Contract Staff
BEIS,UKRI - AHRC,01/08/2018,Contract Staff,Finance,Hays Specialist Recruitment Ltd,98251308,1816.50,Contract Staff
BEIS,UKRI - AHRC,08/08/2018,Contract Staff,Finance,Hays Specialist Recruitment Ltd,98253604,1566.24,Contract Staff
BEIS,UKRI - AHRC,15/08/2018,Contract Staff,Finance,Hays Specialist Recruitment Ltd,98261184,1816.50,Contract Staff
BEIS,UKRI - AHRC,30/08/2018,Contract Staff,Finance,Hays Specialist Recruitment Ltd,98263749,1566.24,Contract Staff
BEIS,UKRI - AHRC,30/08/2018,Contract Staff,Finance,Hays Specialist Recruitment Ltd,98263753,1566.24,Contract Staff
BEIS,UKRI - AHRC,30/08/2018,Contract Staff,Finance,Hays Specialist Recruitment Ltd,98268451,1566.24,Contract Staff
BEIS,UKRI - AHRC,01/08/2018,Recruitment Costs,Finance,Hays Specialist Recruitment Ltd,98251304,1634.86,Recruitment Costs
BEIS,UKRI - AHRC,09/08/2018,Recruitment Costs,Finance,Hays Specialist Recruitment Ltd,98256193,1816.50,Recruitment Costs
BEIS,UKRI - AHRC,06/08/2018,Agency Staff,PSU Project Office,Hays Specialist Recruitment Ltd,98253605,790.62,Agency Staff
BEIS,UKRI - AHRC,07/08/2018,Agency Staff,PSU Project Office,Hays Specialist Recruitment Ltd,98255013,768.96,Agency Staff
BEIS,UKRI - AHRC,08/08/2018,Agency Staff,PSU Project Office,Hays Specialist Recruitment Ltd,98256716,790.62,Agency Staff
BEIS,UKRI - AHRC,08/08/2018,Agency Staff,PSU Project Office,Hays Specialist Recruitment Ltd,98256718,790.62,Agency Staff
BEIS,UKRI - AHRC,08/08/2018,Agency Staff,PSU Project Office,Hays Specialist Recruitment Ltd,98256720,790.62,Agency Staff
BEIS,UKRI - AHRC,08/08/2018,Agency Staff,PSU Project Office,Hays Specialist Recruitment Ltd,98256722,790.62,Agency Staff
BEIS,UKRI - AHRC,10/08/2018,Agency Staff,PSU Project Office,Hays Specialist Recruitment Ltd,98257575,693.14,Agency Staff
BEIS,UKRI - AHRC,20/08/2018,Agency Staff,PSU Project Office,Hays Specialist Recruitment Ltd,98263759,806.99,Agency Staff
BEIS,UKRI - AHRC,28/08/2018,Agency Staff,PSU Project Office,Hays Specialist Recruitment Ltd,98268457,426.60,Agency Staff
BEIS,UKRI - AHRC,02/08/2018,Contract Staff,PSU Project Office,Hays Specialist Recruitment Ltd,98251985,3027.78,Contract Staff
BEIS,UKRI - AHRC,06/08/2018,Contract Staff,PSU Project Office,Hays Specialist Recruitment Ltd,98253602,3027.78,Contract Staff
BEIS,UKRI - AHRC,09/08/2018,Contract Staff,PSU Project Office,Hays Specialist Recruitment Ltd,98255003,3027.78,Contract Staff
BEIS,UKRI - AHRC,30/08/2018,Contract Staff,PSU Project Office,Hays Specialist Recruitment Ltd,98261227,3027.78,Contract Staff
BEIS,UKRI - AHRC,30/08/2018,Contract Staff,PSU Project Office,Hays Specialist Recruitment Ltd,98268989,3027.78,Contract Staff
BEIS,UKRI - AHRC,10/08/2018,Health & Safety (inc. Medicals & Opticians),Corporate Services,Health Assured Ltd,98258306,396.00,Health & Safety (inc. Medicals & Opticians)
BEIS,UKRI - AHRC,14/08/2018,NI Payable Salaries,Balance Sheet,HM Revenue & Customs,98258324,89095.43,NI Payable Salaries
BEIS,UKRI - AHRC,14/08/2018,PAYE Payable Salaries,Balance Sheet,HM Revenue & Customs,98258325,63444.98,PAYE Payable Salaries
BEIS,UKRI - AHRC,14/08/2018,Student Loans,Balance Sheet,HM Revenue & Customs,98258326,3932.00,Student Loans
BEIS,UKRI - AHRC,14/08/2018,Apprenticeship Levy,Corporate Services,HM Revenue & Customs,98258327,2374.00,Apprenticeship Levy
BEIS,UKRI - AHRC,30/08/2018,Conferences & Seminars,Communications,House of Commons,98269430,2193.00,Conferences & Seminars
BEIS,UKRI - AHRC,08/08/2018,T&S UK - Accommodation,Creative Arts & Digital Humanities,In Any Event UK Solutions Ltd,98041981,204.00,T&S UK - Accommodation
BEIS,UKRI - AHRC,08/08/2018,T&S UK - Accommodation,Creative Arts & Digital Humanities,In Any Event UK Solutions Ltd,98041981,1680.00,T&S UK - Accommodation
BEIS,UKRI - AHRC,09/08/2018,Data Storage & Recovery,Corporate Services,Iron Mountain (UK) PLC,98255834,154.92,Data Storage & Recovery
BEIS,UKRI - AHRC,16/08/2018,Contract Staff,IS,JC Web Services Ltd,98261570,8400.00,Contract Staff
BEIS,UKRI - AHRC,10/08/2018,Legal & Professional Services,Industrial Strategy Challenge Fund (ISCF) - Creative Clusters,Lilley Associates Ltd,98253174,9000.00,Legal & Professional Services
BEIS,UKRI - AHRC,16/08/2018,Research Grant Expenditure,Global Challenges Research Fund (GCRF),Medical Research Council,98224179,8331.63,Research Grant Expenditure
BEIS,UKRI - AHRC,16/08/2018,Secondments,PSU Project Office,Medical Research Council,98154821,601.25,Secondments
BEIS,UKRI - AHRC,16/08/2018,Secondments,PSU Project Office,Medical Research Council,98154821,27000.00,Secondments
BEIS,UKRI - AHRC,29/08/2018,Non-staff travel and subsistance,"AHRC - Strategic Planning, Evidence & Impact",Non Employee Expenses Supplier,98269785,92.00,Non-staff travel and subsistance
BEIS,UKRI - AHRC,29/08/2018,Non-staff travel and subsistance,"AHRC - Strategic Planning, Evidence & Impact",Non Employee Expenses Supplier,98269786,62.20,Non-staff travel and subsistance
BEIS,UKRI - AHRC,07/08/2018,Other Programme Costs,Commissioned Research,Non Employee Expenses Supplier,98254262,876.75,Other Programme Costs
BEIS,UKRI - AHRC,13/08/2018,Non-staff travel and subsistance,Communications,Non Employee Expenses Supplier,98259647,38.40,Non-staff travel and subsistance
BEIS,UKRI - AHRC,13/08/2018,Non-staff travel and subsistance,Communications,Non Employee Expenses Supplier,98259650,189.95,Non-staff travel and subsistance
BEIS,UKRI - AHRC,13/08/2018,Non-staff travel and subsistance,Creative Arts & Digital Humanities,Non Employee Expenses Supplier,98259637,303.20,Non-staff travel and subsistance
BEIS,UKRI - AHRC,07/08/2018,Non-staff travel and subsistance,GCRF - Programme Delivery,Non Employee Expenses Supplier,98254263,89.00,Non-staff travel and subsistance
BEIS,UKRI - AHRC,13/08/2018,Non-staff travel and subsistance,GCRF - Programme Delivery,Non Employee Expenses Supplier,98259636,1721.05,Non-staff travel and subsistance
BEIS,UKRI - AHRC,13/08/2018,Non-staff travel and subsistance,GCRF - Programme Delivery,Non Employee Expenses Supplier,98259653,109.60,Non-staff travel and subsistance
BEIS,UKRI - AHRC,13/08/2018,Non-staff travel and subsistance,"Histories,Culture & Heritage",Non Employee Expenses Supplier,98259633,69.20,Non-staff travel and subsistance
BEIS,UKRI - AHRC,13/08/2018,Non-staff travel and subsistance,"Histories,Culture & Heritage",Non Employee Expenses Supplier,98259634,182.35,Non-staff travel and subsistance
BEIS,UKRI - AHRC,13/08/2018,Non-staff travel and subsistance,"Histories,Culture & Heritage",Non Employee Expenses Supplier,98259635,262.65,Non-staff travel and subsistance
BEIS,UKRI - AHRC,13/08/2018,Non-staff travel and subsistance,"Histories,Culture & Heritage",Non Employee Expenses Supplier,98259643,79.66,Non-staff travel and subsistance
BEIS,UKRI - AHRC,13/08/2018,Non-staff travel and subsistance,"Histories,Culture & Heritage",Non Employee Expenses Supplier,98259648,131.90,Non-staff travel and subsistance
BEIS,UKRI - AHRC,13/08/2018,Fees (Including College Members),Industrial Strategy Challenge Fund (ISCF) - Creative Clusters,Non Employee Expenses Supplier,98259644,340.00,Fees (Including College Members)
BEIS,UKRI - AHRC,13/08/2018,Non-staff travel and subsistance,Industrial Strategy Challenge Fund (ISCF) - Creative Clusters,Non Employee Expenses Supplier,98259645,463.00,Non-staff travel and subsistance
BEIS,UKRI - AHRC,21/08/2018,Non-staff travel and subsistance,Industrial Strategy Challenge Fund (ISCF) - Creative Clusters,Non Employee Expenses Supplier,98265717,1000.00,Non-staff travel and subsistance
BEIS,UKRI - AHRC,13/08/2018,Non-staff travel and subsistance,"Languages,Literature & International Engagement",Non Employee Expenses Supplier,98259641,92.70,Non-staff travel and subsistance
BEIS,UKRI - AHRC,13/08/2018,Non-staff travel and subsistance,"Languages,Literature & International Engagement",Non Employee Expenses Supplier,98259642,79.80,Non-staff travel and subsistance
BEIS,UKRI - AHRC,13/08/2018,Non-staff travel and subsistance,"Languages,Literature & International Engagement",Non Employee Expenses Supplier,98259649,237.29,Non-staff travel and subsistance
BEIS,UKRI - AHRC,07/08/2018,Non-staff travel and subsistance,Newton Programme,Non Employee Expenses Supplier,98254257,815.51,Non-staff travel and subsistance
BEIS,UKRI - AHRC,07/08/2018,Non-staff travel and subsistance,Newton Programme,Non Employee Expenses Supplier,98254258,1064.67,Non-staff travel and subsistance
BEIS,UKRI - AHRC,07/08/2018,Non-staff travel and subsistance,Newton Programme,Non Employee Expenses Supplier,98254259,1034.75,Non-staff travel and subsistance
BEIS,UKRI - AHRC,07/08/2018,Non-staff travel and subsistance,Newton Programme,Non Employee Expenses Supplier,98254260,845.35,Non-staff travel and subsistance
BEIS,UKRI - AHRC,07/08/2018,Non-staff travel and subsistance,Newton Programme,Non Employee Expenses Supplier,98254261,1006.86,Non-staff travel and subsistance
BEIS,UKRI - AHRC,13/08/2018,Non-staff travel and subsistance,Newton Programme,Non Employee Expenses Supplier,98259638,1004.30,Non-staff travel and subsistance
BEIS,UKRI - AHRC,13/08/2018,Non-staff travel and subsistance,Newton Programme,Non Employee Expenses Supplier,98259652,690.92,Non-staff travel and subsistance
BEIS,UKRI - AHRC,13/08/2018,Non-staff travel and subsistance,Newton Programme,Non Employee Expenses Supplier,98259654,718.85,Non-staff travel and subsistance
BEIS,UKRI - AHRC,21/08/2018,Non-staff travel and subsistance,Newton Programme,Non Employee Expenses Supplier,98265718,664.59,Non-staff travel and subsistance
BEIS,UKRI - AHRC,29/08/2018,Non-staff travel and subsistance,Newton Programme,Non Employee Expenses Supplier,98269784,829.39,Non-staff travel and subsistance
BEIS,UKRI - AHRC,13/08/2018,Non-staff travel and subsistance,Newton Programme Delivery,Non Employee Expenses Supplier,98259640,292.26,Non-staff travel and subsistance
BEIS,UKRI - AHRC,13/08/2018,Non-staff travel and subsistance,Newton Programme Delivery,Non Employee Expenses Supplier,98259646,630.48,Non-staff travel and subsistance
BEIS,UKRI - AHRC,07/08/2018,Non-staff travel and subsistance,SMT,Non Employee Expenses Supplier,98254244,129.86,Non-staff travel and subsistance
BEIS,UKRI - AHRC,07/08/2018,Non-staff travel and subsistance,SMT,Non Employee Expenses Supplier,98254245,26.95,Non-staff travel and subsistance
BEIS,UKRI - AHRC,07/08/2018,Non-staff travel and subsistance,SMT,Non Employee Expenses Supplier,98254246,61.89,Non-staff travel and subsistance
BEIS,UKRI - AHRC,07/08/2018,Non-staff travel and subsistance,SMT,Non Employee Expenses Supplier,98254247,69.60,Non-staff travel and subsistance
BEIS,UKRI - AHRC,07/08/2018,Non-staff travel and subsistance,SMT,Non Employee Expenses Supplier,98254248,139.07,Non-staff travel and subsistance
BEIS,UKRI - AHRC,07/08/2018,Non-staff travel and subsistance,SMT,Non Employee Expenses Supplier,98254249,63.16,Non-staff travel and subsistance
BEIS,UKRI - AHRC,07/08/2018,Non-staff travel and subsistance,SMT,Non Employee Expenses Supplier,98254250,21.25,Non-staff travel and subsistance
BEIS,UKRI - AHRC,07/08/2018,Non-staff travel and subsistance,SMT,Non Employee Expenses Supplier,98254251,254.25,Non-staff travel and subsistance
BEIS,UKRI - AHRC,07/08/2018,Non-staff travel and subsistance,SMT,Non Employee Expenses Supplier,98254252,54.60,Non-staff travel and subsistance
BEIS,UKRI - AHRC,07/08/2018,Non-staff travel and subsistance,SMT,Non Employee Expenses Supplier,98254253,149.41,Non-staff travel and subsistance
BEIS,UKRI - AHRC,07/08/2018,Non-staff travel and subsistance,SMT,Non Employee Expenses Supplier,98254254,104.19,Non-staff travel and subsistance
BEIS,UKRI - AHRC,07/08/2018,Non-staff travel and subsistance,SMT,Non Employee Expenses Supplier,98254255,233.20,Non-staff travel and subsistance
BEIS,UKRI - AHRC,07/08/2018,Non-staff travel and subsistance,SMT,Non Employee Expenses Supplier,98254256,244.63,Non-staff travel and subsistance
BEIS,UKRI - AHRC,13/08/2018,Non-staff travel and subsistance,SMT,Non Employee Expenses Supplier,98259639,849.95,Non-staff travel and subsistance
BEIS,UKRI - AHRC,13/08/2018,Non-staff travel and subsistance,SMT,Non Employee Expenses Supplier,98259651,907.60,Non-staff travel and subsistance
BEIS,UKRI - AHRC,30/08/2018,Catering Contracts,HR,Officedrop Ltd,98269058,192.00,Catering Contracts
BEIS,UKRI - AHRC,09/08/2018,Recruitment Costs,Corporate Services,Onefix Recruitment Ltd,98256670,648.00,Recruitment Costs
BEIS,UKRI - AHRC,09/08/2018,Recruitment Costs,Corporate Services,Onefix Recruitment Ltd,98257095,436.50,Recruitment Costs
BEIS,UKRI - AHRC,28/08/2018,Recruitment Costs,Corporate Services,Onefix Recruitment Ltd,98268814,1098.00,Recruitment Costs
BEIS,UKRI - AHRC,31/08/2018,Recruitment Costs,HR,Onefix Recruitment Ltd,98270747,316.50,Recruitment Costs
BEIS,UKRI - AHRC,31/08/2018,Recruitment Costs,HR,Onefix Recruitment Ltd,98270751,166.50,Recruitment Costs
BEIS,UKRI - AHRC,15/08/2018,Union Deductions,Balance Sheet,PCS Union,98258333,205.29,Union Deductions
BEIS,UKRI - AHRC,28/08/2018,Health & Safety (inc. Medicals & Opticians),Corporate Services,Posturite Ltd,98268329,25.20,Health & Safety (inc. Medicals & Opticians)
BEIS,UKRI - AHRC,28/08/2018,Health & Safety (inc. Medicals & Opticians),Corporate Services,Posturite Ltd,98268329,25.20,Health & Safety (inc. Medicals & Opticians)
BEIS,UKRI - AHRC,28/08/2018,Health & Safety (inc. Medicals & Opticians),Corporate Services,Posturite Ltd,98268329,50.40,Health & Safety (inc. Medicals & Opticians)
BEIS,UKRI - AHRC,02/08/2018,T&S Overseas - Flights,Creative Arts & Digital Humanities,"Royal Holloway, University of London",98219782,3537.00,T&S Overseas - Flights
BEIS,UKRI - AHRC,10/08/2018,Hospitality,Industrial Strategy Challenge Fund (ISCF) - Creative Clusters,"Royal Holloway, University of London",98251866,1247.88,Hospitality
BEIS,UKRI - AHRC,09/08/2018,Council & Committee Honoraria,New Programme Development,Stefan Manz,98255673,170.00,Council & Committee Honoraria
BEIS,UKRI - AHRC,09/08/2018,Conferences & Seminars,Corporate Services,Swindon Borough Council,98255915,2709.22,Conferences & Seminars
BEIS,UKRI - AHRC,02/08/2018,Health & Safety (inc. Medicals & Opticians),Corporate Services,Swindon Occupational Medical Services Ltd,98252820,1650.00,Health & Safety (inc. Medicals & Opticians)
BEIS,UKRI - AHRC,28/08/2018,Voluntary Deductions,Balance Sheet,Swindon Office Sports and Social Club,98258332,102.00,Voluntary Deductions
BEIS,UKRI - AHRC,01/08/2018,Legal & Professional Services,Communications,Tamasine McCaig T/A Mighty Oaks Digital,98249900,1200.00,Legal & Professional Services
BEIS,UKRI - AHRC,01/08/2018,Legal & Professional Services,Communications,Tamasine McCaig T/A Mighty Oaks Digital,98249901,400.00,Legal & Professional Services
BEIS,UKRI - AHRC,20/08/2018,Research Grant Expenditure,TSB Collaborations,Technology Strategy Board (Innovate UK),98222424,68874.00,Research Grant Expenditure
BEIS,UKRI - AHRC,29/08/2018,Research Grant Expenditure,TSB Knowledge Transfer Partnerships,Technology Strategy Board (Innovate UK),98083065,35175.00,Research Grant Expenditure
BEIS,UKRI - AHRC,29/08/2018,Research Grant Expenditure,TSB Knowledge Transfer Partnerships,Technology Strategy Board (Innovate UK),98222427,50747.58,Research Grant Expenditure
BEIS,UKRI - AHRC,29/08/2018,Research Grant Expenditure,TSB Knowledge Transfer Partnerships,Technology Strategy Board (Innovate UK),98222427,13961.86,Research Grant Expenditure
BEIS,UKRI - AHRC,31/08/2018,Hospitality,SMT,The Athenaeum,98272023,1067.98,Hospitality
BEIS,UKRI - AHRC,31/08/2018,Hospitality,SMT,The Athenaeum,98272023,-177.98,Hospitality
BEIS,UKRI - AHRC,31/08/2018,Hospitality,SMT,The Athenaeum,98272034,-146.60,Hospitality
BEIS,UKRI - AHRC,31/08/2018,Hospitality,SMT,The Athenaeum,98272034,879.65,Hospitality
BEIS,UKRI - AHRC,22/08/2018,Other Programme Costs,GCRF - Programme Delivery,The British Council,98265472,20000.00,Other Programme Costs
BEIS,UKRI - AHRC,29/08/2018,Other Programme Costs,GCRF - Programme Delivery,The British Council,98270619,-20000.00,Other Programme Costs
BEIS,UKRI - AHRC,01/08/2018,International Subscriptions,Communications,The Copyright Licensing Agency Ltd,98250240,2326.46,International Subscriptions
BEIS,UKRI - AHRC,16/08/2018,Staff Training,Corporate Services,UK Shared Business Services Ltd,98244670,8790.73,Staff Training
BEIS,UKRI - AHRC,16/08/2018,Staff Training,Corporate Services,UK Shared Business Services Ltd,98261598,420.57,Staff Training
BEIS,UKRI - AHRC,16/08/2018,Staff Training,Corporate Services,UK Shared Business Services Ltd,98262635,98.36,Staff Training
BEIS,UKRI - AHRC,16/08/2018,Staff Training,Corporate Services,UK Shared Business Services Ltd,98262661,1155.04,Staff Training
BEIS,UKRI - AHRC,17/08/2018,Advertising & Promotion,Communications,Unspecified,98263474,299.99,Advertising & Promotion
BEIS,UKRI - AHRC,22/08/2018,Books Professional Journals & Guides,Communications,Unspecified,98254865,1250.00,Books Professional Journals & Guides
BEIS,UKRI - AHRC,10/08/2018,Marketing & PR,Communications,Unspecified,98256355,2400.00,Marketing & PR
BEIS,UKRI - AHRC,13/08/2018,T&S UK - Other Charges,Communications,Unspecified,98259252,4.70,T&S UK - Other Charges
BEIS,UKRI - AHRC,10/08/2018,T&S UK - Public Transport,Corporate Services,Unspecified,98258364,9.00,T&S UK - Public Transport
BEIS,UKRI - AHRC,07/08/2018,Council & Committee Honoraria,Creative Arts & Digital Humanities,Unspecified,98255080,340.00,Council & Committee Honoraria
BEIS,UKRI - AHRC,07/08/2018,Council & Committee Honoraria,Creative Arts & Digital Humanities,Unspecified,98255088,340.00,Council & Committee Honoraria
BEIS,UKRI - AHRC,08/08/2018,Council & Committee Honoraria,Creative Arts & Digital Humanities,Unspecified,98255078,340.00,Council & Committee Honoraria
BEIS,UKRI - AHRC,08/08/2018,Council & Committee Honoraria,Creative Arts & Digital Humanities,Unspecified,98255079,340.00,Council & Committee Honoraria
BEIS,UKRI - AHRC,08/08/2018,Council & Committee Honoraria,Creative Arts & Digital Humanities,Unspecified,98255081,340.00,Council & Committee Honoraria
BEIS,UKRI - AHRC,08/08/2018,Council & Committee Honoraria,Creative Arts & Digital Humanities,Unspecified,98255082,340.00,Council & Committee Honoraria
BEIS,UKRI - AHRC,08/08/2018,Council & Committee Honoraria,Creative Arts & Digital Humanities,Unspecified,98255083,340.00,Council & Committee Honoraria
BEIS,UKRI - AHRC,08/08/2018,Council & Committee Honoraria,Creative Arts & Digital Humanities,Unspecified,98255084,460.00,Council & Committee Honoraria
BEIS,UKRI - AHRC,08/08/2018,Council & Committee Honoraria,Creative Arts & Digital Humanities,Unspecified,98255085,340.00,Council & Committee Honoraria
BEIS,UKRI - AHRC,08/08/2018,Council & Committee Honoraria,Creative Arts & Digital Humanities,Unspecified,98255086,340.00,Council & Committee Honoraria
BEIS,UKRI - AHRC,08/08/2018,Council & Committee Honoraria,Creative Arts & Digital Humanities,Unspecified,98255087,340.00,Council & Committee Honoraria
BEIS,UKRI - AHRC,08/08/2018,Council & Committee Honoraria,Creative Arts & Digital Humanities,Unspecified,98255089,340.00,Council & Committee Honoraria
BEIS,UKRI - AHRC,02/08/2018,T&S UK - Parking Tolls Congestion Charges,Creative Arts & Digital Humanities,Unspecified,98252852,16.80,T&S UK - Parking Tolls Congestion Charges
BEIS,UKRI - AHRC,07/08/2018,T&S UK - Parking Tolls Congestion Charges,Creative Arts & Digital Humanities,Unspecified,98246519,8.00,T&S UK - Parking Tolls Congestion Charges
BEIS,UKRI - AHRC,02/08/2018,T&S UK - Public Transport,Creative Arts & Digital Humanities,Unspecified,98252852,222.80,T&S UK - Public Transport
BEIS,UKRI - AHRC,15/08/2018,T&S UK - Public Transport,Creative Arts & Digital Humanities,Unspecified,98261327,2.00,T&S UK - Public Transport
BEIS,UKRI - AHRC,02/08/2018,T&S UK - Subsistence,Creative Arts & Digital Humanities,Unspecified,98252852,23.65,T&S UK - Subsistence
BEIS,UKRI - AHRC,02/08/2018,T&S UK - Subsistence,Creative Arts & Digital Humanities,Unspecified,98252852,3.87,T&S UK - Subsistence
BEIS,UKRI - AHRC,02/08/2018,T&S UK - Subsistence,Creative Arts & Digital Humanities,Unspecified,98252852,10.00,T&S UK - Subsistence
BEIS,UKRI - AHRC,15/08/2018,T&S UK - Subsistence,Creative Arts & Digital Humanities,Unspecified,98261327,22.65,T&S UK - Subsistence
BEIS,UKRI - AHRC,10/08/2018,T&S UK - Public Transport,Finance,Unspecified,98258365,67.90,T&S UK - Public Transport
BEIS,UKRI - AHRC,30/08/2018,UK - Professional Memberships & Subscriptions,Finance,Unspecified,98270728,94.00,UK - Professional Memberships & Subscriptions
BEIS,UKRI - AHRC,14/08/2018,T&S UK - Subsistence,GCRF - Programme Delivery,Unspecified,98260734,48.74,T&S UK - Subsistence
BEIS,UKRI - AHRC,14/08/2018,T&S UK - Subsistence,GCRF - Programme Delivery,Unspecified,98260734,20.00,T&S UK - Subsistence
BEIS,UKRI - AHRC,06/08/2018,T&S UK - Subsistence,"Histories,Culture & Heritage",Unspecified,98248543,7.95,T&S UK - Subsistence
BEIS,UKRI - AHRC,30/08/2018,T&S UK - Other Charges,HR,Unspecified,98270727,13.28,T&S UK - Other Charges
BEIS,UKRI - AHRC,10/08/2018,UK - Professional Memberships & Subscriptions,HR,Unspecified,98258367,159.00,UK - Professional Memberships & Subscriptions
BEIS,UKRI - AHRC,10/08/2018,T&S UK - Public Transport,International,Unspecified,98258362,16.00,T&S UK - Public Transport
BEIS,UKRI - AHRC,10/08/2018,T&S UK - Subsistence,International,Unspecified,98258362,5.00,T&S UK - Subsistence
BEIS,UKRI - AHRC,07/08/2018,T&S UK - Public Transport,IS,Unspecified,98255197,21.00,T&S UK - Public Transport
BEIS,UKRI - AHRC,07/08/2018,T&S UK - Subsistence,IS,Unspecified,98255197,14.90,T&S UK - Subsistence
BEIS,UKRI - AHRC,07/08/2018,T&S UK - Subsistence,IS,Unspecified,98255197,4.49,T&S UK - Subsistence
BEIS,UKRI - AHRC,02/08/2018,T&S Overseas - Subsistence,"Languages,Literature & International Engagement",Unspecified,98252853,3.80,T&S Overseas - Subsistence
BEIS,UKRI - AHRC,02/08/2018,T&S Overseas - Subsistence,"Languages,Literature & International Engagement",Unspecified,98252853,9.38,T&S Overseas - Subsistence
BEIS,UKRI - AHRC,22/08/2018,T&S UK - Flights,"Languages,Literature & International Engagement",Unspecified,98266482,274.00,T&S UK - Flights
BEIS,UKRI - AHRC,03/08/2018,T&S UK - Other Charges,"Languages,Literature & International Engagement",Unspecified,98252593,40.98,T&S UK - Other Charges
BEIS,UKRI - AHRC,02/08/2018,T&S UK - Public Transport,"Languages,Literature & International Engagement",Unspecified,98252854,57.95,T&S UK - Public Transport
BEIS,UKRI - AHRC,02/08/2018,T&S UK - Subsistence,"Languages,Literature & International Engagement",Unspecified,98252854,5.20,T&S UK - Subsistence
BEIS,UKRI - AHRC,02/08/2018,T&S UK - Subsistence,"Languages,Literature & International Engagement",Unspecified,98252854,20.00,T&S UK - Subsistence
BEIS,UKRI - AHRC,23/08/2018,T&S UK - Subsistence,"Languages,Literature & International Engagement",Unspecified,98253968,7.45,T&S UK - Subsistence
BEIS,UKRI - AHRC,08/08/2018,Council & Committee Honoraria,New Programme Development,Unspecified,98255675,230.00,Council & Committee Honoraria
BEIS,UKRI - AHRC,08/08/2018,Council & Committee Honoraria,New Programme Development,Unspecified,98255726,170.00,Council & Committee Honoraria
BEIS,UKRI - AHRC,08/08/2018,Council & Committee Honoraria,New Programme Development,Unspecified,98255728,170.00,Council & Committee Honoraria
BEIS,UKRI - AHRC,08/08/2018,Council & Committee Honoraria,New Programme Development,Unspecified,98256799,170.00,Council & Committee Honoraria
BEIS,UKRI - AHRC,09/08/2018,Council & Committee Honoraria,New Programme Development,Unspecified,98255671,170.00,Council & Committee Honoraria
BEIS,UKRI - AHRC,09/08/2018,Council & Committee Honoraria,New Programme Development,Unspecified,98255672,170.00,Council & Committee Honoraria
BEIS,UKRI - AHRC,09/08/2018,Council & Committee Honoraria,New Programme Development,Unspecified,98255674,170.00,Council & Committee Honoraria
BEIS,UKRI - AHRC,09/08/2018,Council & Committee Honoraria,New Programme Development,Unspecified,98255676,170.00,Council & Committee Honoraria
BEIS,UKRI - AHRC,09/08/2018,Council & Committee Honoraria,New Programme Development,Unspecified,98255677,170.00,Council & Committee Honoraria
BEIS,UKRI - AHRC,09/08/2018,Council & Committee Honoraria,New Programme Development,Unspecified,98255678,170.00,Council & Committee Honoraria
BEIS,UKRI - AHRC,09/08/2018,Council & Committee Honoraria,New Programme Development,Unspecified,98255679,170.00,Council & Committee Honoraria
BEIS,UKRI - AHRC,09/08/2018,Council & Committee Honoraria,New Programme Development,Unspecified,98255720,170.00,Council & Committee Honoraria
BEIS,UKRI - AHRC,09/08/2018,Council & Committee Honoraria,New Programme Development,Unspecified,98255721,230.00,Council & Committee Honoraria
BEIS,UKRI - AHRC,09/08/2018,Council & Committee Honoraria,New Programme Development,Unspecified,98255722,170.00,Council & Committee Honoraria
BEIS,UKRI - AHRC,09/08/2018,Council & Committee Honoraria,New Programme Development,Unspecified,98255723,170.00,Council & Committee Honoraria
BEIS,UKRI - AHRC,09/08/2018,Council & Committee Honoraria,New Programme Development,Unspecified,98255724,170.00,Council & Committee Honoraria
BEIS,UKRI - AHRC,09/08/2018,Council & Committee Honoraria,New Programme Development,Unspecified,98255725,170.00,Council & Committee Honoraria
BEIS,UKRI - AHRC,09/08/2018,Council & Committee Honoraria,New Programme Development,Unspecified,98255727,170.00,Council & Committee Honoraria
BEIS,UKRI - AHRC,09/08/2018,Council & Committee Honoraria,New Programme Development,Unspecified,98255729,170.00,Council & Committee Honoraria
BEIS,UKRI - AHRC,09/08/2018,Council & Committee Honoraria,New Programme Development,Unspecified,98255730,170.00,Council & Committee Honoraria
BEIS,UKRI - AHRC,09/08/2018,Council & Committee Honoraria,New Programme Development,Unspecified,98255762,170.00,Council & Committee Honoraria
BEIS,UKRI - AHRC,09/08/2018,Council & Committee Honoraria,New Programme Development,Unspecified,98255763,170.00,Council & Committee Honoraria
BEIS,UKRI - AHRC,09/08/2018,Council & Committee Honoraria,New Programme Development,Unspecified,98255764,170.00,Council & Committee Honoraria
BEIS,UKRI - AHRC,09/08/2018,Council & Committee Honoraria,New Programme Development,Unspecified,98255765,170.00,Council & Committee Honoraria
BEIS,UKRI - AHRC,09/08/2018,Council & Committee Honoraria,New Programme Development,Unspecified,98255766,170.00,Council & Committee Honoraria
BEIS,UKRI - AHRC,09/08/2018,Council & Committee Honoraria,New Programme Development,Unspecified,98255767,170.00,Council & Committee Honoraria
BEIS,UKRI - AHRC,09/08/2018,Council & Committee Honoraria,New Programme Development,Unspecified,98255768,230.00,Council & Committee Honoraria
BEIS,UKRI - AHRC,09/08/2018,Council & Committee Honoraria,New Programme Development,Unspecified,98255769,170.00,Council & Committee Honoraria
BEIS,UKRI - AHRC,09/08/2018,Council & Committee Honoraria,New Programme Development,unspecified,98255770,170.00,Council & Committee Honoraria
BEIS,UKRI - AHRC,09/08/2018,Council & Committee Honoraria,New Programme Development,unspecified,98255771,170.00,Council & Committee Honoraria
BEIS,UKRI - AHRC,09/08/2018,Council & Committee Honoraria,New Programme Development,Unspecified,98255772,170.00,Council & Committee Honoraria
BEIS,UKRI - AHRC,09/08/2018,Council & Committee Honoraria,New Programme Development,Unspecified,98256755,170.00,Council & Committee Honoraria
BEIS,UKRI - AHRC,09/08/2018,Council & Committee Honoraria,New Programme Development,Unspecified,98256756,230.00,Council & Committee Honoraria
BEIS,UKRI - AHRC,09/08/2018,Council & Committee Honoraria,New Programme Development,Unspecified,98256757,170.00,Council & Committee Honoraria
BEIS,UKRI - AHRC,09/08/2018,Council & Committee Honoraria,New Programme Development,Unspecified,98256758,170.00,Council & Committee Honoraria
BEIS,UKRI - AHRC,09/08/2018,Council & Committee Honoraria,New Programme Development,Unspecified,98256776,170.00,Council & Committee Honoraria
BEIS,UKRI - AHRC,09/08/2018,Council & Committee Honoraria,New Programme Development,Unspecified,98256777,170.00,Council & Committee Honoraria
BEIS,UKRI - AHRC,09/08/2018,Council & Committee Honoraria,New Programme Development,Unspecified,98256778,170.00,Council & Committee Honoraria
BEIS,UKRI - AHRC,09/08/2018,Council & Committee Honoraria,New Programme Development,Unspecified,98256779,170.00,Council & Committee Honoraria
BEIS,UKRI - AHRC,09/08/2018,Council & Committee Honoraria,New Programme Development,Unspecified,98256780,230.00,Council & Committee Honoraria
BEIS,UKRI - AHRC,09/08/2018,Council & Committee Honoraria,New Programme Development,Unspecified,98256781,170.00,Council & Committee Honoraria
BEIS,UKRI - AHRC,09/08/2018,Council & Committee Honoraria,New Programme Development,Unspecified,98256782,170.00,Council & Committee Honoraria
BEIS,UKRI - AHRC,09/08/2018,Council & Committee Honoraria,New Programme Development,Unspecified,98256783,170.00,Council & Committee Honoraria
BEIS,UKRI - AHRC,09/08/2018,Council & Committee Honoraria,New Programme Development,Unspecified,98256784,170.00,Council & Committee Honoraria
BEIS,UKRI - AHRC,09/08/2018,Council & Committee Honoraria,New Programme Development,Unspecified,98256785,170.00,Council & Committee Honoraria
BEIS,UKRI - AHRC,09/08/2018,Council & Committee Honoraria,New Programme Development,Unspecified,98256786,170.00,Council & Committee Honoraria
BEIS,UKRI - AHRC,09/08/2018,Council & Committee Honoraria,New Programme Development,Unspecified,98256797,170.00,Council & Committee Honoraria
BEIS,UKRI - AHRC,09/08/2018,Council & Committee Honoraria,New Programme Development,unspecified,98256798,170.00,Council & Committee Honoraria
BEIS,UKRI - AHRC,09/08/2018,Council & Committee Honoraria,New Programme Development,Unspecified,98256800,170.00,Council & Committee Honoraria
BEIS,UKRI - AHRC,09/08/2018,Council & Committee Honoraria,New Programme Development,Unspecified,98256801,170.00,Council & Committee Honoraria
BEIS,UKRI - AHRC,09/08/2018,Council & Committee Honoraria,New Programme Development,Unspecified,98256802,230.00,Council & Committee Honoraria
BEIS,UKRI - AHRC,09/08/2018,Council & Committee Honoraria,New Programme Development,Unspecified,98256803,170.00,Council & Committee Honoraria
BEIS,UKRI - AHRC,09/08/2018,Council & Committee Honoraria,New Programme Development,Unspecified,98256804,170.00,Council & Committee Honoraria
BEIS,UKRI - AHRC,31/08/2018,Council & Committee Honoraria,New Programme Development,Unspecified,98270867,690.00,Council & Committee Honoraria
BEIS,UKRI - AHRC,31/08/2018,Council & Committee Honoraria,New Programme Development,Unspecified,98270868,510.00,Council & Committee Honoraria
BEIS,UKRI - AHRC,31/08/2018,Council & Committee Honoraria,New Programme Development,Unspecified,98270869,510.00,Council & Committee Honoraria
BEIS,UKRI - AHRC,31/08/2018,Council & Committee Honoraria,New Programme Development,Unspecified,98270870,510.00,Council & Committee Honoraria
BEIS,UKRI - AHRC,10/08/2018,T&S UK - Public Transport,Newton Programme Delivery,Unspecified,98258362,75.46,T&S UK - Public Transport
BEIS,UKRI - AHRC,10/08/2018,T&S UK - Subsistence,Newton Programme Delivery,Unspecified,98258362,15.00,T&S UK - Subsistence
BEIS,UKRI - AHRC,08/08/2018,T&S UK - Mileage,PSU Project Office,Unspecified,98251433,72.45,T&S UK - Mileage
BEIS,UKRI - AHRC,31/08/2018,T&S UK - Mileage,PSU Project Office,Unspecified,98272212,22.95,T&S UK - Mileage
BEIS,UKRI - AHRC,08/08/2018,UK - Professional Memberships & Subscriptions,PSU Project Office,Unspecified,98226518,159.00,UK - Professional Memberships & Subscriptions
BEIS,UKRI - AHRC,09/08/2018,Mobile Phone Costs,Corporate Services,West UC Ltd,98255837,1622.45,Mobile Phone Costs
BEIS,UKRI - BBSRC,10/08/2018,JBOS Health and Safety,Health & Safety (inc. Medicals & Opticians),Abbey Business Equipment Ltd,98258307,60.00,JBOS Health and Safety
BEIS,UKRI - BBSRC,14/08/2018,JBOS Health and Safety,Health & Safety (inc. Medicals & Opticians),Abbey Business Equipment Ltd,98259411,60.00,JBOS Health and Safety
BEIS,UKRI - BBSRC,15/08/2018,JBOS - Maintenance,Purchase of non capital equipment,Abbey Business Equipment Ltd,98253057,"7,176.00",JBOS - Maintenance
BEIS,UKRI - BBSRC,31/08/2018,JBOS - Maintenance,Purchase of non capital equipment,Abbey Business Equipment Ltd,98270938,"2,160.00",JBOS - Maintenance
BEIS,UKRI - BBSRC,31/08/2018,JBOS - Maintenance,Purchase of non capital equipment,Abbey Business Equipment Ltd,98270939,"1,500.00",JBOS - Maintenance
BEIS,UKRI - BBSRC,30/08/2018,IBERS,Research Institutes - Capital Grants: Major Works,ABERYSTWYTH INNOVATION AND ENTERPRISE CAMPUS LTD (AIEC),98267399,"154,947.08",IBERS
BEIS,UKRI - BBSRC,30/08/2018,IBERS,Research Institutes - Capital Grants: Major Works,ABERYSTWYTH INNOVATION AND ENTERPRISE CAMPUS LTD (AIEC),98267400,"11,840.54",IBERS
BEIS,UKRI - BBSRC,02/08/2018,PDG - Director,Recruitment Costs,Agenda Resource Management Ltd,98250981,155.91,PDG - Director
BEIS,UKRI - BBSRC,07/08/2018,PDG - Director,Recruitment Costs,Agenda Resource Management Ltd,98254682,155.91,PDG - Director
BEIS,UKRI - BBSRC,07/08/2018,PDG - Director,Recruitment Costs,Agenda Resource Management Ltd,98254683,155.91,PDG - Director
BEIS,UKRI - BBSRC,22/08/2018,PDG - Director,Recruitment Costs,Agenda Resource Management Ltd,98265000,155.91,PDG - Director
BEIS,UKRI - BBSRC,23/08/2018,PDG - Director,Recruitment Costs,Agenda Resource Management Ltd,98266249,155.91,PDG - Director
BEIS,UKRI - BBSRC,23/08/2018,PDG - Director,Recruitment Costs,Agenda Resource Management Ltd,98266391,155.91,PDG - Director
BEIS,UKRI - BBSRC,15/08/2018,CIMG - External Relations,Agency Staff,Alexander Mann Solutions Ltd,98260141,241.02,CIMG - External Relations
BEIS,UKRI - BBSRC,15/08/2018,CIMG - External Relations,Agency Staff,Alexander Mann Solutions Ltd,98260142,245.04,CIMG - External Relations
BEIS,UKRI - BBSRC,15/08/2018,CIMG - External Relations,Agency Staff,Alexander Mann Solutions Ltd,98260143,602.56,CIMG - External Relations
BEIS,UKRI - BBSRC,15/08/2018,CIMG - External Relations,Agency Staff,Alexander Mann Solutions Ltd,98260144,490.08,CIMG - External Relations
BEIS,UKRI - BBSRC,29/08/2018,JBOS Health and Safety,Health & Safety (inc. Medicals & Opticians),AM Health & Safety Ltd,98268882,99.00,JBOS Health and Safety
BEIS,UKRI - BBSRC,03/08/2018,PDG - Director,Health & Safety (inc. Medicals & Opticians),AM Health & Safety Ltd,98250618,198.00,PDG - Director
BEIS,UKRI - BBSRC,28/08/2018,PDG - Director,Health & Safety (inc. Medicals & Opticians),AM Health & Safety Ltd,98268887,90.00,PDG - Director
BEIS,UKRI - BBSRC,24/08/2018,PDG - Director,Staff Training,AoEC (Academy of Executive Coaching) Ltd,98268056,"5,994.00",PDG - Director
BEIS,UKRI - BBSRC,24/08/2018,JBOS - Maintenance,Mechanical & Electrical Maintenance,AR Electrical (Swindon) Ltd,98267831,"1,500.00",JBOS - Maintenance
BEIS,UKRI - BBSRC,24/08/2018,JBOS - Maintenance,Mechanical & Electrical Maintenance,AR Electrical (Swindon) Ltd,98267832,474.00,JBOS - Maintenance
BEIS,UKRI - BBSRC,28/08/2018,JBOS - Maintenance,Cleaning & Sterilisation,Arco Limited,98268268,218.88,JBOS - Maintenance
BEIS,UKRI - BBSRC,23/08/2018,JBOS Health and Safety,Health & Safety (inc. Medicals & Opticians),Banner Group Ltd,98265102,37.92,JBOS Health and Safety
BEIS,UKRI - BBSRC,03/08/2018,CIMG - Director,Printing & Stationery,Banner Group Ltd,98250007,8.02,CIMG - Director
BEIS,UKRI - BBSRC,03/08/2018,CIMG - Director,Printing & Stationery,Banner Group Ltd,98250007,28.22,CIMG - Director
BEIS,UKRI - BBSRC,24/08/2018,CIMG - Director,Printing & Stationery,Banner Group Ltd,98267287,14.72,CIMG - Director
BEIS,UKRI - BBSRC,01/08/2018,JBOS - Administration,Printing & Stationery,Banner Group Ltd,98250006,0.96,JBOS - Administration
BEIS,UKRI - BBSRC,01/08/2018,JBOS - Administration,Printing & Stationery,Banner Group Ltd,98250006,8.21,JBOS - Administration
BEIS,UKRI - BBSRC,01/08/2018,JBOS - Administration,Printing & Stationery,Banner Group Ltd,98250006,39.54,JBOS - Administration
BEIS,UKRI - BBSRC,10/08/2018,JBOS - Administration,Printing & Stationery,Banner Group Ltd,98227718,79.08,JBOS - Administration
BEIS,UKRI - BBSRC,10/08/2018,JBOS - Administration,Printing & Stationery,Banner Group Ltd,98227718,165.30,JBOS - Administration
BEIS,UKRI - BBSRC,10/08/2018,JBOS - Administration,Printing & Stationery,Banner Group Ltd,98227718,33.06,JBOS - Administration
BEIS,UKRI - BBSRC,10/08/2018,JBOS - Administration,Printing & Stationery,Banner Group Ltd,98227725,13.68,JBOS - Administration
BEIS,UKRI - BBSRC,10/08/2018,JBOS - Administration,Printing & Stationery,Banner Group Ltd,98227725,1.72,JBOS - Administration
BEIS,UKRI - BBSRC,10/08/2018,JBOS - Administration,Printing & Stationery,Banner Group Ltd,98227725,8.60,JBOS - Administration
BEIS,UKRI - BBSRC,10/08/2018,JBOS - Administration,Printing & Stationery,Banner Group Ltd,98227726,2.28,JBOS - Administration
BEIS,UKRI - BBSRC,10/08/2018,JBOS - Administration,Printing & Stationery,Banner Group Ltd,98227726,11.40,JBOS - Administration
BEIS,UKRI - BBSRC,23/08/2018,JBOS - Administration,Printing & Stationery,Banner Group Ltd,98251661,10.20,JBOS - Administration
BEIS,UKRI - BBSRC,23/08/2018,JBOS - Administration,Printing & Stationery,Banner Group Ltd,98257600,-198.36,JBOS - Administration
BEIS,UKRI - BBSRC,23/08/2018,JBOS - Administration,Printing & Stationery,Banner Group Ltd,98257602,-24.00,JBOS - Administration
BEIS,UKRI - BBSRC,23/08/2018,JBOS - Administration,Printing & Stationery,Banner Group Ltd,98262372,0.64,JBOS - Administration
BEIS,UKRI - BBSRC,23/08/2018,JBOS - Administration,Printing & Stationery,Banner Group Ltd,98265103,41.28,JBOS - Administration
BEIS,UKRI - BBSRC,23/08/2018,JBOS - Administration,Printing & Stationery,Banner Group Ltd,98265104,10.58,JBOS - Administration
BEIS,UKRI - BBSRC,23/08/2018,JBOS - Administration,Printing & Stationery,Banner Group Ltd,98265104,6.05,JBOS - Administration
BEIS,UKRI - BBSRC,23/08/2018,JBOS - Administration,Printing & Stationery,Banner Group Ltd,98265104,13.44,JBOS - Administration
BEIS,UKRI - BBSRC,23/08/2018,JBOS - Administration,Printing & Stationery,Banner Group Ltd,98265104,11.41,JBOS - Administration
BEIS,UKRI - BBSRC,23/08/2018,JBOS - Administration,Printing & Stationery,Banner Group Ltd,98265104,1.32,JBOS - Administration
BEIS,UKRI - BBSRC,23/08/2018,JBOS - Administration,Printing & Stationery,Banner Group Ltd,98265104,5.10,JBOS - Administration
BEIS,UKRI - BBSRC,23/08/2018,JBOS - Administration,Printing & Stationery,Banner Group Ltd,98265104,50.40,JBOS - Administration
BEIS,UKRI - BBSRC,23/08/2018,JBOS - Administration,Printing & Stationery,Banner Group Ltd,98265104,6.24,JBOS - Administration
BEIS,UKRI - BBSRC,23/08/2018,JBOS - Administration,Printing & Stationery,Banner Group Ltd,98265104,4.80,JBOS - Administration
BEIS,UKRI - BBSRC,23/08/2018,JBOS - Administration,Printing & Stationery,Banner Group Ltd,98265104,4.20,JBOS - Administration
BEIS,UKRI - BBSRC,23/08/2018,JBOS - Administration,Printing & Stationery,Banner Group Ltd,98265104,14.40,JBOS - Administration
BEIS,UKRI - BBSRC,23/08/2018,JBOS - Administration,Printing & Stationery,Banner Group Ltd,98265104,7.58,JBOS - Administration
BEIS,UKRI - BBSRC,23/08/2018,JBOS - Staff,Printing & Stationery,Banner Group Ltd,98265104,5.76,JBOS - Staff
BEIS,UKRI - BBSRC,23/08/2018,JBOS - Staff,Printing & Stationery,Banner Group Ltd,98265104,9.00,JBOS - Staff
BEIS,UKRI - BBSRC,23/08/2018,JBOS Health and Safety,Safety Materials & Equipment,Banner Group Ltd,98260559,18.96,JBOS Health and Safety
BEIS,UKRI - BBSRC,23/08/2018,JBOS Health and Safety,Safety Materials & Equipment,Banner Group Ltd,98260559,6.00,JBOS Health and Safety
BEIS,UKRI - BBSRC,23/08/2018,JBOS Health and Safety,Safety Materials & Equipment,Banner Group Ltd,98260559,3.10,JBOS Health and Safety
BEIS,UKRI - BBSRC,02/08/2018,CE - Chief Executive,Meetings & Catering,Baxter Storey Ltd,98251838,40.20,CE - Chief Executive
BEIS,UKRI - BBSRC,02/08/2018,CE - CPS,Meetings & Catering,Baxter Storey Ltd,98251838,3.00,CE - CPS
BEIS,UKRI - BBSRC,02/08/2018,FG - Accounts & Business Planning,Meetings & Catering,Baxter Storey Ltd,98251838,39.72,FG - Accounts & Business Planning
BEIS,UKRI - BBSRC,02/08/2018,Innovation and Skills Group,Meetings & Catering,Baxter Storey Ltd,98251838,40.20,Innovation and Skills Group
BEIS,UKRI - BBSRC,02/08/2018,Science Group,Meetings & Catering,Baxter Storey Ltd,98251838,16.08,Science Group
BEIS,UKRI - BBSRC,22/08/2018,PDG - Director,Health & Safety (inc. Medicals & Opticians),BMI Healthcare Limited,98262529,"2,432.10",PDG - Director
BEIS,UKRI - BBSRC,21/08/2018,CE - CPS,Telecoms - Tele/ Video conferencing,BT Conferencing,98264924,3.24,CE - CPS
BEIS,UKRI - BBSRC,21/08/2018,CE - CPS,Telecoms - Tele/ Video conferencing,BT Conferencing,98264924,50.85,CE - CPS
BEIS,UKRI - BBSRC,21/08/2018,CE - CPS,Telecoms - Tele/ Video conferencing,BT Conferencing,98264924,254.25,CE - CPS
BEIS,UKRI - BBSRC,21/08/2018,FG - Director,Telecoms - Tele/ Video conferencing,BT Conferencing,98264924,243.34,FG - Director
BEIS,UKRI - BBSRC,21/08/2018,Innovation and Skills Group,Telecoms - Tele/ Video conferencing,BT Conferencing,98264924,789.87,Innovation and Skills Group
BEIS,UKRI - BBSRC,21/08/2018,PDG - Director,Telecoms - Tele/ Video conferencing,BT Conferencing,98264924,94.26,PDG - Director
BEIS,UKRI - BBSRC,14/08/2018,JBOS - Restaurant,General Building Maintenance,Bureau Veritas Certification UK Ltd,98259598,"2,090.52",JBOS - Restaurant
BEIS,UKRI - BBSRC,21/08/2018,PDG - Director,Recruitment Costs,Cabinet Office,98264937,"1,584.24",PDG - Director
BEIS,UKRI - BBSRC,14/08/2018,CIMG - Council Secretariat,Corporate Events,Calder Conference Ltd,98259475,"4,915.69",CIMG - Council Secretariat
BEIS,UKRI - BBSRC,08/08/2018,CE - CPS,Other Programme Costs,Calder Conference Ltd,98255653,"9,015.98",CE - CPS
BEIS,UKRI - BBSRC,13/08/2018,Science Group,Other Programme Costs,Calder Conference Ltd,98244336,"1,699.20",Science Group
BEIS,UKRI - BBSRC,13/08/2018,Science Group � Programme Function,Other Programme Costs,Calder Conference Ltd,98250047,642.00,Science Group � Programme Function
BEIS,UKRI - BBSRC,02/08/2018,PDG - Director,Staff Training,Calder Conference Ltd,98252815,754.00,PDG - Director
BEIS,UKRI - BBSRC,13/08/2018,PDG - Director,Statutory Maternity/Paternity Pay,Calder Conference Ltd,98246393,775.00,PDG - Director
BEIS,UKRI - BBSRC,16/08/2018,CE - CPS,Other Programme Costs,Centre for Facilitation Ltd,98249744,"22,755.48",CE - CPS
BEIS,UKRI - BBSRC,28/08/2018,PDG - Director,Staff Training,CIPD Enterprises Ltd,98268844,"1,194.00",PDG - Director
BEIS,UKRI - BBSRC,15/08/2018,JBOS - Post Room,Postage & Courier Services,Unspecified,98261157,"3,293.50",JBOS - Post Room
BEIS,UKRI - BBSRC,15/08/2018,Balance Sheet,Voluntary Deductions,Civil Service Benevolent Fund,98259425,2.00,Balance Sheet
BEIS,UKRI - BBSRC,14/08/2018,CIMG - Council Secretariat,T&S UK - Other Charges,Corporate Airport Transfers,98252551,165.12,CIMG - Council Secretariat
BEIS,UKRI - BBSRC,03/08/2018,CE - IRU,T&S UK - Public Transport,Corporate Airport Transfers,98236976,231.60,CE - IRU
BEIS,UKRI - BBSRC,03/08/2018,CE - IRU,T&S UK - Public Transport,Corporate Airport Transfers,98250506,240.00,CE - IRU
BEIS,UKRI - BBSRC,21/08/2018,CE - IRU,T&S UK - Vehicle Hire,Corporate Airport Transfers,98252531,199.20,CE - IRU
BEIS,UKRI - BBSRC,21/08/2018,CE - IRU,T&S UK - Vehicle Hire,Corporate Airport Transfers,98252547,211.20,CE - IRU
BEIS,UKRI - BBSRC,08/08/2018,RISD - UKRO,Non-staff travel and subsistance,Corporate Travel Management (North) Ltd,98255648,117.00,RISD - UKRO
BEIS,UKRI - BBSRC,08/08/2018,Science Group - Delivery Function,Non-staff travel and subsistance,Corporate Travel Management (North) Ltd,98255648,97.20,Science Group - Delivery Function
BEIS,UKRI - BBSRC,08/08/2018,Science Group - Delivery Function,Non-staff travel and subsistance,Corporate Travel Management (North) Ltd,98255648,47.80,Science Group - Delivery Function
BEIS,UKRI - BBSRC,08/08/2018,CE - CPS,T&S Overseas - Accommodation,Corporate Travel Management (North) Ltd,98255648,0.50,CE - CPS
BEIS,UKRI - BBSRC,08/08/2018,CE - CPS,T&S Overseas - Accommodation,Corporate Travel Management (North) Ltd,98255648,0.10,CE - CPS
BEIS,UKRI - BBSRC,08/08/2018,CE - IRU,T&S Overseas - Accommodation,Corporate Travel Management (North) Ltd,98255648,0.50,CE - IRU
BEIS,UKRI - BBSRC,08/08/2018,CE - IRU,T&S Overseas - Accommodation,Corporate Travel Management (North) Ltd,98255648,346.58,CE - IRU
BEIS,UKRI - BBSRC,08/08/2018,CE - IRU,T&S Overseas - Accommodation,Corporate Travel Management (North) Ltd,98255648,140.53,CE - IRU
BEIS,UKRI - BBSRC,08/08/2018,CE - IRU,T&S Overseas - Accommodation,Corporate Travel Management (North) Ltd,98255648,140.53,CE - IRU
BEIS,UKRI - BBSRC,08/08/2018,CE - IRU,T&S Overseas - Accommodation,Corporate Travel Management (North) Ltd,98255648,0.50,CE - IRU
BEIS,UKRI - BBSRC,08/08/2018,CE - IRU,T&S Overseas - Accommodation,Corporate Travel Management (North) Ltd,98255648,0.50,CE - IRU
BEIS,UKRI - BBSRC,08/08/2018,CE - IRU,T&S Overseas - Accommodation,Corporate Travel Management (North) Ltd,98255648,0.50,CE - IRU
BEIS,UKRI - BBSRC,08/08/2018,CE - IRU,T&S Overseas - Accommodation,Corporate Travel Management (North) Ltd,98255648,0.50,CE - IRU
BEIS,UKRI - BBSRC,08/08/2018,CE - IRU,T&S Overseas - Accommodation,Corporate Travel Management (North) Ltd,98255648,1.44,CE - IRU
BEIS,UKRI - BBSRC,08/08/2018,CE - IRU,T&S Overseas - Accommodation,Corporate Travel Management (North) Ltd,98255648,0.50,CE - IRU
BEIS,UKRI - BBSRC,08/08/2018,CE - IRU,T&S Overseas - Accommodation,Corporate Travel Management (North) Ltd,98255648,1.44,CE - IRU
BEIS,UKRI - BBSRC,08/08/2018,CE - IRU,T&S Overseas - Accommodation,Corporate Travel Management (North) Ltd,98255648,0.78,CE - IRU
BEIS,UKRI - BBSRC,08/08/2018,CE - IRU,T&S Overseas - Accommodation,Corporate Travel Management (North) Ltd,98255648,0.20,CE - IRU
BEIS,UKRI - BBSRC,08/08/2018,CE - IRU,T&S Overseas - Accommodation,Corporate Travel Management (North) Ltd,98255648,0.20,CE - IRU
BEIS,UKRI - BBSRC,08/08/2018,CIMG - External Relations,T&S Overseas - Accommodation,Corporate Travel Management (North) Ltd,98255648,0.50,CIMG - External Relations
BEIS,UKRI - BBSRC,08/08/2018,CIMG - External Relations,T&S Overseas - Accommodation,Corporate Travel Management (North) Ltd,98255648,0.50,CIMG - External Relations
BEIS,UKRI - BBSRC,08/08/2018,CIMG - External Relations,T&S Overseas - Accommodation,Corporate Travel Management (North) Ltd,98255648,0.20,CIMG - External Relations
BEIS,UKRI - BBSRC,08/08/2018,European Initiatives,T&S Overseas - Accommodation,Corporate Travel Management (North) Ltd,98255648,0.50,European Initiatives
BEIS,UKRI - BBSRC,08/08/2018,European Initiatives,T&S Overseas - Accommodation,Corporate Travel Management (North) Ltd,98255648,0.10,European Initiatives
BEIS,UKRI - BBSRC,08/08/2018,Science Group,T&S Overseas - Accommodation,Corporate Travel Management (North) Ltd,98255648,0.50,Science Group
BEIS,UKRI - BBSRC,08/08/2018,Science Group,T&S Overseas - Accommodation,Corporate Travel Management (North) Ltd,98255648,0.10,Science Group
BEIS,UKRI - BBSRC,08/08/2018,CE - IRU,T&S Overseas - Flights,Corporate Travel Management (North) Ltd,98255648,278.00,CE - IRU
BEIS,UKRI - BBSRC,08/08/2018,CE - IRU,T&S Overseas - Flights,Corporate Travel Management (North) Ltd,98255648,2.16,CE - IRU
BEIS,UKRI - BBSRC,08/08/2018,CE - IRU,T&S Overseas - Flights,Corporate Travel Management (North) Ltd,98255648,"2,279.21",CE - IRU
BEIS,UKRI - BBSRC,08/08/2018,CE - IRU,T&S Overseas - Flights,Corporate Travel Management (North) Ltd,98255648,208.60,CE - IRU
BEIS,UKRI - BBSRC,08/08/2018,CE - IRU,T&S Overseas - Flights,Corporate Travel Management (North) Ltd,98255648,6.75,CE - IRU
BEIS,UKRI - BBSRC,08/08/2018,CE - IRU,T&S Overseas - Flights,Corporate Travel Management (North) Ltd,98255648,218.73,CE - IRU
BEIS,UKRI - BBSRC,08/08/2018,CE - IRU,T&S Overseas - Flights,Corporate Travel Management (North) Ltd,98255648,302.00,CE - IRU
BEIS,UKRI - BBSRC,08/08/2018,CE - IRU,T&S Overseas - Flights,Corporate Travel Management (North) Ltd,98255648,45.10,CE - IRU
BEIS,UKRI - BBSRC,08/08/2018,CIMG - External Relations,T&S Overseas - Flights,Corporate Travel Management (North) Ltd,98255648,284.95,CIMG - External Relations
BEIS,UKRI - BBSRC,08/08/2018,European Initiatives,T&S Overseas - Flights,Corporate Travel Management (North) Ltd,98255648,278.00,European Initiatives
BEIS,UKRI - BBSRC,08/08/2018,European Initiatives,T&S Overseas - Flights,Corporate Travel Management (North) Ltd,98255648,371.40,European Initiatives
BEIS,UKRI - BBSRC,08/08/2018,European Initiatives,T&S Overseas - Flights,Corporate Travel Management (North) Ltd,98255648,154.30,European Initiatives
BEIS,UKRI - BBSRC,08/08/2018,Science Group,T&S Overseas - Flights,Corporate Travel Management (North) Ltd,98255648,422.30,Science Group
BEIS,UKRI - BBSRC,08/08/2018,Innovation and Skills Group,T&S Overseas - Public Transport,Corporate Travel Management (North) Ltd,98255648,157.00,Innovation and Skills Group
BEIS,UKRI - BBSRC,08/08/2018,RISD - UKRO,T&S Overseas - Public Transport,Corporate Travel Management (North) Ltd,98255648,355.00,RISD - UKRO
BEIS,UKRI - BBSRC,08/08/2018,RISD - UKRO,T&S Overseas - Public Transport,Corporate Travel Management (North) Ltd,98255648,2.16,RISD - UKRO
BEIS,UKRI - BBSRC,08/08/2018,RISD - UKRO,T&S Overseas - Public Transport,Corporate Travel Management (North) Ltd,98255648,56.00,RISD - UKRO
BEIS,UKRI - BBSRC,08/08/2018,RISD - UKRO,T&S Overseas - Public Transport,Corporate Travel Management (North) Ltd,98255648,172.00,RISD - UKRO
BEIS,UKRI - BBSRC,08/08/2018,RISD - UKRO,T&S Overseas - Public Transport,Corporate Travel Management (North) Ltd,98255648,179.00,RISD - UKRO
BEIS,UKRI - BBSRC,08/08/2018,RISD - UKRO,T&S Overseas - Public Transport,Corporate Travel Management (North) Ltd,98255648,104.50,RISD - UKRO
BEIS,UKRI - BBSRC,08/08/2018,RISD - UKRO,T&S Overseas - Public Transport,Corporate Travel Management (North) Ltd,98255648,2.16,RISD - UKRO
BEIS,UKRI - BBSRC,08/08/2018,RISD - UKRO,T&S Overseas - Public Transport,Corporate Travel Management (North) Ltd,98255648,30.00,RISD - UKRO
BEIS,UKRI - BBSRC,08/08/2018,RISD - UKRO,T&S Overseas - Public Transport,Corporate Travel Management (North) Ltd,98255648,193.00,RISD - UKRO
BEIS,UKRI - BBSRC,08/08/2018,RISD - UKRO,T&S Overseas - Public Transport,Corporate Travel Management (North) Ltd,98255648,239.56,RISD - UKRO
BEIS,UKRI - BBSRC,08/08/2018,RISD - UKRO,T&S Overseas - Public Transport,Corporate Travel Management (North) Ltd,98255648,253.00,RISD - UKRO
BEIS,UKRI - BBSRC,08/08/2018,RISD - UKRO,T&S Overseas - Public Transport,Corporate Travel Management (North) Ltd,98255648,2.16,RISD - UKRO
BEIS,UKRI - BBSRC,08/08/2018,RISD - UKRO,T&S Overseas - Public Transport,Corporate Travel Management (North) Ltd,98255648,117.00,RISD - UKRO
BEIS,UKRI - BBSRC,08/08/2018,RISD - UKRO,T&S Overseas - Public Transport,Corporate Travel Management (North) Ltd,98255648,2.16,RISD - UKRO
BEIS,UKRI - BBSRC,08/08/2018,RISD - UKRO,T&S Overseas - Public Transport,Corporate Travel Management (North) Ltd,98255648,30.00,RISD - UKRO
BEIS,UKRI - BBSRC,08/08/2018,BBSRC Champions,T&S UK - Accommodation,Corporate Travel Management (North) Ltd,98255648,0.50,BBSRC Champions
BEIS,UKRI - BBSRC,08/08/2018,BBSRC Champions,T&S UK - Accommodation,Corporate Travel Management (North) Ltd,98255648,1.44,BBSRC Champions
BEIS,UKRI - BBSRC,08/08/2018,BBSRC Champions,T&S UK - Accommodation,Corporate Travel Management (North) Ltd,98255648,165.00,BBSRC Champions
BEIS,UKRI - BBSRC,08/08/2018,BBSRC Champions,T&S UK - Accommodation,Corporate Travel Management (North) Ltd,98255648,0.39,BBSRC Champions
BEIS,UKRI - BBSRC,08/08/2018,CE - Chief Executive,T&S UK - Accommodation,Corporate Travel Management (North) Ltd,98255648,8.81,CE - Chief Executive
BEIS,UKRI - BBSRC,08/08/2018,CE - Chief Executive,T&S UK - Accommodation,Corporate Travel Management (North) Ltd,98255648,273.60,CE - Chief Executive
BEIS,UKRI - BBSRC,08/08/2018,CE - Chief Executive,T&S UK - Accommodation,Corporate Travel Management (North) Ltd,98255648,0.50,CE - Chief Executive
BEIS,UKRI - BBSRC,08/08/2018,CE - Chief Executive,T&S UK - Accommodation,Corporate Travel Management (North) Ltd,98255648,180.00,CE - Chief Executive
BEIS,UKRI - BBSRC,08/08/2018,CE - Chief Executive,T&S UK - Accommodation,Corporate Travel Management (North) Ltd,98255648,0.10,CE - Chief Executive
BEIS,UKRI - BBSRC,08/08/2018,CIMG - External Relations,T&S UK - Accommodation,Corporate Travel Management (North) Ltd,98255648,0.50,CIMG - External Relations
BEIS,UKRI - BBSRC,08/08/2018,CIMG - External Relations,T&S UK - Accommodation,Corporate Travel Management (North) Ltd,98255648,218.50,CIMG - External Relations
BEIS,UKRI - BBSRC,08/08/2018,CIMG - External Relations,T&S UK - Accommodation,Corporate Travel Management (North) Ltd,98255648,0.50,CIMG - External Relations
BEIS,UKRI - BBSRC,08/08/2018,CIMG - External Relations,T&S UK - Accommodation,Corporate Travel Management (North) Ltd,98255648,218.50,CIMG - External Relations
BEIS,UKRI - BBSRC,08/08/2018,CIMG - External Relations,T&S UK - Accommodation,Corporate Travel Management (North) Ltd,98255648,0.50,CIMG - External Relations
BEIS,UKRI - BBSRC,08/08/2018,CIMG - External Relations,T&S UK - Accommodation,Corporate Travel Management (North) Ltd,98255648,1.44,CIMG - External Relations
BEIS,UKRI - BBSRC,08/08/2018,CIMG - External Relations,T&S UK - Accommodation,Corporate Travel Management (North) Ltd,98255648,0.50,CIMG - External Relations
BEIS,UKRI - BBSRC,08/08/2018,CIMG - External Relations,T&S UK - Accommodation,Corporate Travel Management (North) Ltd,98255648,118.80,CIMG - External Relations
BEIS,UKRI - BBSRC,08/08/2018,CIMG - External Relations,T&S UK - Accommodation,Corporate Travel Management (North) Ltd,98255648,0.50,CIMG - External Relations
BEIS,UKRI - BBSRC,08/08/2018,CIMG - External Relations,T&S UK - Accommodation,Corporate Travel Management (North) Ltd,98255648,1.44,CIMG - External Relations
BEIS,UKRI - BBSRC,08/08/2018,CIMG - External Relations,T&S UK - Accommodation,Corporate Travel Management (North) Ltd,98255648,77.50,CIMG - External Relations
BEIS,UKRI - BBSRC,08/08/2018,CIMG - External Relations,T&S UK - Accommodation,Corporate Travel Management (North) Ltd,98255648,0.50,CIMG - External Relations
BEIS,UKRI - BBSRC,08/08/2018,CIMG - External Relations,T&S UK - Accommodation,Corporate Travel Management (North) Ltd,98255648,118.80,CIMG - External Relations
BEIS,UKRI - BBSRC,08/08/2018,CIMG - External Relations,T&S UK - Accommodation,Corporate Travel Management (North) Ltd,98255648,0.50,CIMG - External Relations
BEIS,UKRI - BBSRC,08/08/2018,CIMG - External Relations,T&S UK - Accommodation,Corporate Travel Management (North) Ltd,98255648,117.50,CIMG - External Relations
BEIS,UKRI - BBSRC,08/08/2018,CIMG - External Relations,T&S UK - Accommodation,Corporate Travel Management (North) Ltd,98255648,0.39,CIMG - External Relations
BEIS,UKRI - BBSRC,08/08/2018,CIMG - External Relations,T&S UK - Accommodation,Corporate Travel Management (North) Ltd,98255648,0.89,CIMG - External Relations
BEIS,UKRI - BBSRC,08/08/2018,CIMG - Programme Office,T&S UK - Accommodation,Corporate Travel Management (North) Ltd,98255648,0.50,CIMG - Programme Office
BEIS,UKRI - BBSRC,08/08/2018,CIMG - Programme Office,T&S UK - Accommodation,Corporate Travel Management (North) Ltd,98255648,100.00,CIMG - Programme Office
BEIS,UKRI - BBSRC,08/08/2018,CIMG - Programme Office,T&S UK - Accommodation,Corporate Travel Management (North) Ltd,98255648,0.10,CIMG - Programme Office
BEIS,UKRI - BBSRC,08/08/2018,European Initiatives,T&S UK - Accommodation,Corporate Travel Management (North) Ltd,98255648,0.50,European Initiatives
BEIS,UKRI - BBSRC,08/08/2018,European Initiatives,T&S UK - Accommodation,Corporate Travel Management (North) Ltd,98255648,72.00,European Initiatives
BEIS,UKRI - BBSRC,08/08/2018,European Initiatives,T&S UK - Accommodation,Corporate Travel Management (North) Ltd,98255648,0.10,European Initiatives
BEIS,UKRI - BBSRC,08/08/2018,FG - Accounts & Business Planning,T&S UK - Accommodation,Corporate Travel Management (North) Ltd,98255648,95.28,FG - Accounts & Business Planning
BEIS,UKRI - BBSRC,08/08/2018,FG - Accounts & Business Planning,T&S UK - Accommodation,Corporate Travel Management (North) Ltd,98255648,95.28,FG - Accounts & Business Planning
BEIS,UKRI - BBSRC,08/08/2018,FG - Director,T&S UK - Accommodation,Corporate Travel Management (North) Ltd,98255648,0.50,FG - Director
BEIS,UKRI - BBSRC,08/08/2018,FG - Director,T&S UK - Accommodation,Corporate Travel Management (North) Ltd,98255648,114.00,FG - Director
BEIS,UKRI - BBSRC,08/08/2018,FG - Director,T&S UK - Accommodation,Corporate Travel Management (North) Ltd,98255648,0.50,FG - Director
BEIS,UKRI - BBSRC,08/08/2018,FG - Director,T&S UK - Accommodation,Corporate Travel Management (North) Ltd,98255648,162.00,FG - Director
BEIS,UKRI - BBSRC,08/08/2018,FG - Director,T&S UK - Accommodation,Corporate Travel Management (North) Ltd,98255648,0.20,FG - Director
BEIS,UKRI - BBSRC,08/08/2018,FG - Estates,T&S UK - Accommodation,Corporate Travel Management (North) Ltd,98255648,0.50,FG - Estates
BEIS,UKRI - BBSRC,08/08/2018,FG - Estates,T&S UK - Accommodation,Corporate Travel Management (North) Ltd,98255648,85.00,FG - Estates
BEIS,UKRI - BBSRC,08/08/2018,FG - Estates,T&S UK - Accommodation,Corporate Travel Management (North) Ltd,98255648,0.50,FG - Estates
BEIS,UKRI - BBSRC,08/08/2018,FG - Estates,T&S UK - Accommodation,Corporate Travel Management (North) Ltd,98255648,119.00,FG - Estates
BEIS,UKRI - BBSRC,08/08/2018,FG - Estates,T&S UK - Accommodation,Corporate Travel Management (North) Ltd,98255648,0.50,FG - Estates
BEIS,UKRI - BBSRC,08/08/2018,FG - Estates,T&S UK - Accommodation,Corporate Travel Management (North) Ltd,98255648,102.00,FG - Estates
BEIS,UKRI - BBSRC,08/08/2018,FG - Estates,T&S UK - Accommodation,Corporate Travel Management (North) Ltd,98255648,0.50,FG - Estates
BEIS,UKRI - BBSRC,08/08/2018,FG - Estates,T&S UK - Accommodation,Corporate Travel Management (North) Ltd,98255648,94.00,FG - Estates
BEIS,UKRI - BBSRC,08/08/2018,FG - Estates,T&S UK - Accommodation,Corporate Travel Management (North) Ltd,98255648,0.50,FG - Estates
BEIS,UKRI - BBSRC,08/08/2018,FG - Estates,T&S UK - Accommodation,Corporate Travel Management (North) Ltd,98255648,69.07,FG - Estates
BEIS,UKRI - BBSRC,08/08/2018,FG - Estates,T&S UK - Accommodation,Corporate Travel Management (North) Ltd,98255648,0.50,FG - Estates
BEIS,UKRI - BBSRC,08/08/2018,FG - Estates,T&S UK - Accommodation,Corporate Travel Management (North) Ltd,98255648,112.50,FG - Estates
BEIS,UKRI - BBSRC,08/08/2018,FG - Estates,T&S UK - Accommodation,Corporate Travel Management (North) Ltd,98255648,0.50,FG - Estates
BEIS,UKRI - BBSRC,08/08/2018,FG - Estates,T&S UK - Accommodation,Corporate Travel Management (North) Ltd,98255648,114.50,FG - Estates
BEIS,UKRI - BBSRC,08/08/2018,FG - Estates,T&S UK - Accommodation,Corporate Travel Management (North) Ltd,98255648,0.50,FG - Estates
BEIS,UKRI - BBSRC,08/08/2018,FG - Estates,T&S UK - Accommodation,Corporate Travel Management (North) Ltd,98255648,90.00,FG - Estates
BEIS,UKRI - BBSRC,08/08/2018,FG - Estates,T&S UK - Accommodation,Corporate Travel Management (North) Ltd,98255648,0.50,FG - Estates
BEIS,UKRI - BBSRC,08/08/2018,FG - Estates,T&S UK - Accommodation,Corporate Travel Management (North) Ltd,98255648,80.00,FG - Estates
BEIS,UKRI - BBSRC,08/08/2018,FG - Estates,T&S UK - Accommodation,Corporate Travel Management (North) Ltd,98255648,0.30,FG - Estates
BEIS,UKRI - BBSRC,08/08/2018,FG - Estates,T&S UK - Accommodation,Corporate Travel Management (North) Ltd,98255648,0.60,FG - Estates
BEIS,UKRI - BBSRC,08/08/2018,FG - RCUK Assurance,T&S UK - Accommodation,Corporate Travel Management (North) Ltd,98255648,0.50,FG - RCUK Assurance
BEIS,UKRI - BBSRC,08/08/2018,FG - RCUK Assurance,T&S UK - Accommodation,Corporate Travel Management (North) Ltd,98255648,324.00,FG - RCUK Assurance
BEIS,UKRI - BBSRC,08/08/2018,FG - RCUK Assurance,T&S UK - Accommodation,Corporate Travel Management (North) Ltd,98255648,0.50,FG - RCUK Assurance
BEIS,UKRI - BBSRC,08/08/2018,FG - RCUK Assurance,T&S UK - Accommodation,Corporate Travel Management (North) Ltd,98255648,162.00,FG - RCUK Assurance
BEIS,UKRI - BBSRC,08/08/2018,FG - RCUK Assurance,T&S UK - Accommodation,Corporate Travel Management (North) Ltd,98255648,0.20,FG - RCUK Assurance
BEIS,UKRI - BBSRC,08/08/2018,Innovation and Skills Group,T&S UK - Accommodation,Corporate Travel Management (North) Ltd,98255648,0.50,Innovation and Skills Group
BEIS,UKRI - BBSRC,08/08/2018,Innovation and Skills Group,T&S UK - Accommodation,Corporate Travel Management (North) Ltd,98255648,1.44,Innovation and Skills Group
BEIS,UKRI - BBSRC,08/08/2018,Innovation and Skills Group,T&S UK - Accommodation,Corporate Travel Management (North) Ltd,98255648,105.00,Innovation and Skills Group
BEIS,UKRI - BBSRC,08/08/2018,Innovation and Skills Group,T&S UK - Accommodation,Corporate Travel Management (North) Ltd,98255648,0.50,Innovation and Skills Group
BEIS,UKRI - BBSRC,08/08/2018,Innovation and Skills Group,T&S UK - Accommodation,Corporate Travel Management (North) Ltd,98255648,0.50,Innovation and Skills Group
BEIS,UKRI - BBSRC,08/08/2018,Innovation and Skills Group,T&S UK - Accommodation,Corporate Travel Management (North) Ltd,98255648,0.50,Innovation and Skills Group
BEIS,UKRI - BBSRC,08/08/2018,Innovation and Skills Group,T&S UK - Accommodation,Corporate Travel Management (North) Ltd,98255648,180.00,Innovation and Skills Group
BEIS,UKRI - BBSRC,08/08/2018,Innovation and Skills Group,T&S UK - Accommodation,Corporate Travel Management (North) Ltd,98255648,0.50,Innovation and Skills Group
BEIS,UKRI - BBSRC,08/08/2018,Innovation and Skills Group,T&S UK - Accommodation,Corporate Travel Management (North) Ltd,98255648,158.00,Innovation and Skills Group
BEIS,UKRI - BBSRC,08/08/2018,Innovation and Skills Group,T&S UK - Accommodation,Corporate Travel Management (North) Ltd,98255648,0.79,Innovation and Skills Group
BEIS,UKRI - BBSRC,08/08/2018,Innovation and Skills Group CDSU,T&S UK - Accommodation,Corporate Travel Management (North) Ltd,98255648,0.50,Innovation and Skills Group CDSU
BEIS,UKRI - BBSRC,08/08/2018,Innovation and Skills Group CDSU,T&S UK - Accommodation,Corporate Travel Management (North) Ltd,98255648,89.00,Innovation and Skills Group CDSU
BEIS,UKRI - BBSRC,08/08/2018,Innovation and Skills Group CDSU,T&S UK - Accommodation,Corporate Travel Management (North) Ltd,98255648,0.10,Innovation and Skills Group CDSU
BEIS,UKRI - BBSRC,08/08/2018,RISD - UKRO,T&S UK - Accommodation,Corporate Travel Management (North) Ltd,98255648,0.50,RISD - UKRO
BEIS,UKRI - BBSRC,08/08/2018,RISD - UKRO,T&S UK - Accommodation,Corporate Travel Management (North) Ltd,98255648,167.00,RISD - UKRO
BEIS,UKRI - BBSRC,08/08/2018,RISD - UKRO,T&S UK - Accommodation,Corporate Travel Management (North) Ltd,98255648,0.50,RISD - UKRO
BEIS,UKRI - BBSRC,08/08/2018,RISD - UKRO,T&S UK - Accommodation,Corporate Travel Management (North) Ltd,98255648,0.50,RISD - UKRO
BEIS,UKRI - BBSRC,08/08/2018,RISD - UKRO,T&S UK - Accommodation,Corporate Travel Management (North) Ltd,98255648,137.00,RISD - UKRO
BEIS,UKRI - BBSRC,08/08/2018,RISD - UKRO,T&S UK - Accommodation,Corporate Travel Management (North) Ltd,98255648,0.30,RISD - UKRO
BEIS,UKRI - BBSRC,08/08/2018,Science Group,T&S UK - Accommodation,Corporate Travel Management (North) Ltd,98255648,0.50,Science Group
BEIS,UKRI - BBSRC,08/08/2018,Science Group,T&S UK - Accommodation,Corporate Travel Management (North) Ltd,98255648,0.50,Science Group
BEIS,UKRI - BBSRC,08/08/2018,Science Group,T&S UK - Accommodation,Corporate Travel Management (North) Ltd,98255648,0.50,Science Group
BEIS,UKRI - BBSRC,08/08/2018,Science Group,T&S UK - Accommodation,Corporate Travel Management (North) Ltd,98255648,160.00,Science Group
BEIS,UKRI - BBSRC,08/08/2018,Science Group,T&S UK - Accommodation,Corporate Travel Management (North) Ltd,98255648,0.50,Science Group
BEIS,UKRI - BBSRC,08/08/2018,Science Group,T&S UK - Accommodation,Corporate Travel Management (North) Ltd,98255648,130.50,Science Group
BEIS,UKRI - BBSRC,08/08/2018,Science Group,T&S UK - Accommodation,Corporate Travel Management (North) Ltd,98255648,0.50,Science Group
BEIS,UKRI - BBSRC,08/08/2018,Science Group,T&S UK - Accommodation,Corporate Travel Management (North) Ltd,98255648,85.00,Science Group
BEIS,UKRI - BBSRC,08/08/2018,Science Group,T&S UK - Accommodation,Corporate Travel Management (North) Ltd,98255648,0.50,Science Group
BEIS,UKRI - BBSRC,08/08/2018,Science Group,T&S UK - Accommodation,Corporate Travel Management (North) Ltd,98255648,139.50,Science Group
BEIS,UKRI - BBSRC,08/08/2018,Science Group,T&S UK - Accommodation,Corporate Travel Management (North) Ltd,98255648,0.50,Science Group
BEIS,UKRI - BBSRC,08/08/2018,Science Group,T&S UK - Accommodation,Corporate Travel Management (North) Ltd,98255648,109.00,Science Group
BEIS,UKRI - BBSRC,08/08/2018,Science Group,T&S UK - Accommodation,Corporate Travel Management (North) Ltd,98255648,0.50,Science Group
BEIS,UKRI - BBSRC,08/08/2018,Science Group,T&S UK - Accommodation,Corporate Travel Management (North) Ltd,98255648,184.50,Science Group
BEIS,UKRI - BBSRC,08/08/2018,Science Group,T&S UK - Accommodation,Corporate Travel Management (North) Ltd,98255648,0.50,Science Group
BEIS,UKRI - BBSRC,08/08/2018,Science Group,T&S UK - Accommodation,Corporate Travel Management (North) Ltd,98255648,109.00,Science Group
BEIS,UKRI - BBSRC,08/08/2018,Science Group,T&S UK - Accommodation,Corporate Travel Management (North) Ltd,98255648,0.50,Science Group
BEIS,UKRI - BBSRC,08/08/2018,Science Group,T&S UK - Accommodation,Corporate Travel Management (North) Ltd,98255648,95.00,Science Group
BEIS,UKRI - BBSRC,08/08/2018,Science Group,T&S UK - Accommodation,Corporate Travel Management (North) Ltd,98255648,0.50,Science Group
BEIS,UKRI - BBSRC,08/08/2018,Science Group,T&S UK - Accommodation,Corporate Travel Management (North) Ltd,98255648,92.65,Science Group
BEIS,UKRI - BBSRC,08/08/2018,Science Group,T&S UK - Accommodation,Corporate Travel Management (North) Ltd,98255648,0.50,Science Group
BEIS,UKRI - BBSRC,08/08/2018,Science Group,T&S UK - Accommodation,Corporate Travel Management (North) Ltd,98255648,81.00,Science Group
BEIS,UKRI - BBSRC,08/08/2018,Science Group,T&S UK - Accommodation,Corporate Travel Management (North) Ltd,98255648,0.50,Science Group
BEIS,UKRI - BBSRC,08/08/2018,Science Group,T&S UK - Accommodation,Corporate Travel Management (North) Ltd,98255648,89.00,Science Group
BEIS,UKRI - BBSRC,08/08/2018,Science Group,T&S UK - Accommodation,Corporate Travel Management (North) Ltd,98255648,0.50,Science Group
BEIS,UKRI - BBSRC,08/08/2018,Science Group,T&S UK - Accommodation,Corporate Travel Management (North) Ltd,98255648,182.00,Science Group
BEIS,UKRI - BBSRC,08/08/2018,Science Group,T&S UK - Accommodation,Corporate Travel Management (North) Ltd,98255648,0.50,Science Group
BEIS,UKRI - BBSRC,08/08/2018,Science Group,T&S UK - Accommodation,Corporate Travel Management (North) Ltd,98255648,180.00,Science Group
BEIS,UKRI - BBSRC,08/08/2018,Science Group,T&S UK - Accommodation,Corporate Travel Management (North) Ltd,98255648,0.50,Science Group
BEIS,UKRI - BBSRC,08/08/2018,Science Group,T&S UK - Accommodation,Corporate Travel Management (North) Ltd,98255648,0.30,Science Group
BEIS,UKRI - BBSRC,08/08/2018,Science Group,T&S UK - Accommodation,Corporate Travel Management (North) Ltd,98255648,0.10,Science Group
BEIS,UKRI - BBSRC,08/08/2018,Science Group,T&S UK - Accommodation,Corporate Travel Management (North) Ltd,98255648,0.10,Science Group
BEIS,UKRI - BBSRC,08/08/2018,Science Group,T&S UK - Accommodation,Corporate Travel Management (North) Ltd,98255648,0.80,Science Group
BEIS,UKRI - BBSRC,08/08/2018,Science Group,T&S UK - Accommodation,Corporate Travel Management (North) Ltd,98255648,0.30,Science Group
BEIS,UKRI - BBSRC,08/08/2018,Science Group - Delivery Function,T&S UK - Accommodation,Corporate Travel Management (North) Ltd,98255648,0.50,Science Group - Delivery Function
BEIS,UKRI - BBSRC,08/08/2018,Science Group - Delivery Function,T&S UK - Accommodation,Corporate Travel Management (North) Ltd,98255648,260.00,Science Group - Delivery Function
BEIS,UKRI - BBSRC,08/08/2018,Science Group - Delivery Function,T&S UK - Accommodation,Corporate Travel Management (North) Ltd,98255648,0.10,Science Group - Delivery Function
BEIS,UKRI - BBSRC,08/08/2018,CIMG - External Relations,T&S UK - Flights,Corporate Travel Management (North) Ltd,98255648,143.59,CIMG - External Relations
BEIS,UKRI - BBSRC,08/08/2018,Innovation and Skills Group,T&S UK - Flights,Corporate Travel Management (North) Ltd,98255648,313.94,Innovation and Skills Group
BEIS,UKRI - BBSRC,08/08/2018,Science Group,T&S UK - Flights,Corporate Travel Management (North) Ltd,98255648,106.30,Science Group
BEIS,UKRI - BBSRC,08/08/2018,CE - Chief Executive,T&S UK - Public Transport,Corporate Travel Management (North) Ltd,98255648,172.00,CE - Chief Executive
BEIS,UKRI - BBSRC,08/08/2018,CE - Chief Executive,T&S UK - Public Transport,Corporate Travel Management (North) Ltd,98255648,109.80,CE - Chief Executive
BEIS,UKRI - BBSRC,08/08/2018,CE - Chief Executive,T&S UK - Public Transport,Corporate Travel Management (North) Ltd,98255648,172.00,CE - Chief Executive
BEIS,UKRI - BBSRC,08/08/2018,CE - Chief Executive,T&S UK - Public Transport,Corporate Travel Management (North) Ltd,98255648,100.70,CE - Chief Executive
BEIS,UKRI - BBSRC,08/08/2018,CE - Chief Executive,T&S UK - Public Transport,Corporate Travel Management (North) Ltd,98255648,69.20,CE - Chief Executive
BEIS,UKRI - BBSRC,08/08/2018,CE - Chief Executive,T&S UK - Public Transport,Corporate Travel Management (North) Ltd,98255648,101.20,CE - Chief Executive
BEIS,UKRI - BBSRC,08/08/2018,CE - CPS,T&S UK - Public Transport,Corporate Travel Management (North) Ltd,98255648,-47.60,CE - CPS
BEIS,UKRI - BBSRC,08/08/2018,CE - CPS,T&S UK - Public Transport,Corporate Travel Management (North) Ltd,98255648,100.70,CE - CPS
BEIS,UKRI - BBSRC,08/08/2018,CE - CPS,T&S UK - Public Transport,Corporate Travel Management (North) Ltd,98255648,20.90,CE - CPS
BEIS,UKRI - BBSRC,08/08/2018,CE - CPS,T&S UK - Public Transport,Corporate Travel Management (North) Ltd,98255648,100.70,CE - CPS
BEIS,UKRI - BBSRC,08/08/2018,CE - CPS,T&S UK - Public Transport,Corporate Travel Management (North) Ltd,98255648,67.90,CE - CPS
BEIS,UKRI - BBSRC,08/08/2018,CE - CPS,T&S UK - Public Transport,Corporate Travel Management (North) Ltd,98255648,68.30,CE - CPS
BEIS,UKRI - BBSRC,08/08/2018,CE - CPS,T&S UK - Public Transport,Corporate Travel Management (North) Ltd,98255648,46.10,CE - CPS
BEIS,UKRI - BBSRC,08/08/2018,CE - CPS,T&S UK - Public Transport,Corporate Travel Management (North) Ltd,98255648,56.40,CE - CPS
BEIS,UKRI - BBSRC,08/08/2018,CE - CPS,T&S UK - Public Transport,Corporate Travel Management (North) Ltd,98255648,12.70,CE - CPS
BEIS,UKRI - BBSRC,08/08/2018,CE - CPS,T&S UK - Public Transport,Corporate Travel Management (North) Ltd,98255648,12.70,CE - CPS
BEIS,UKRI - BBSRC,08/08/2018,CE - CPS,T&S UK - Public Transport,Corporate Travel Management (North) Ltd,98255648,94.70,CE - CPS
BEIS,UKRI - BBSRC,08/08/2018,CE - CPS,T&S UK - Public Transport,Corporate Travel Management (North) Ltd,98255648,111.00,CE - CPS
BEIS,UKRI - BBSRC,08/08/2018,CE - IRU,T&S UK - Public Transport,Corporate Travel Management (North) Ltd,98255648,105.00,CE - IRU
BEIS,UKRI - BBSRC,08/08/2018,CE - IRU,T&S UK - Public Transport,Corporate Travel Management (North) Ltd,98255648,113.25,CE - IRU
BEIS,UKRI - BBSRC,08/08/2018,CE - IRU,T&S UK - Public Transport,Corporate Travel Management (North) Ltd,98255648,1.00,CE - IRU
BEIS,UKRI - BBSRC,08/08/2018,CE - IRU,T&S UK - Public Transport,Corporate Travel Management (North) Ltd,98255648,22.30,CE - IRU
BEIS,UKRI - BBSRC,08/08/2018,CE - IRU,T&S UK - Public Transport,Corporate Travel Management (North) Ltd,98255648,72.10,CE - IRU
BEIS,UKRI - BBSRC,08/08/2018,CE - IRU,T&S UK - Public Transport,Corporate Travel Management (North) Ltd,98255648,5.00,CE - IRU
BEIS,UKRI - BBSRC,08/08/2018,CE - IRU,T&S UK - Public Transport,Corporate Travel Management (North) Ltd,98255648,-72.40,CE - IRU
BEIS,UKRI - BBSRC,08/08/2018,CIMG - Council Secretariat,T&S UK - Public Transport,Corporate Travel Management (North) Ltd,98255648,57.60,CIMG - Council Secretariat
BEIS,UKRI - BBSRC,08/08/2018,CIMG - Council Secretariat,T&S UK - Public Transport,Corporate Travel Management (North) Ltd,98255648,66.10,CIMG - Council Secretariat
BEIS,UKRI - BBSRC,08/08/2018,CIMG - Council Secretariat,T&S UK - Public Transport,Corporate Travel Management (North) Ltd,98255648,94.70,CIMG - Council Secretariat
BEIS,UKRI - BBSRC,08/08/2018,CIMG - Director,T&S UK - Public Transport,Corporate Travel Management (North) Ltd,98255648,100.70,CIMG - Director
BEIS,UKRI - BBSRC,08/08/2018,CIMG - Director,T&S UK - Public Transport,Corporate Travel Management (North) Ltd,98255648,37.40,CIMG - Director
BEIS,UKRI - BBSRC,08/08/2018,CIMG - External Relations,T&S UK - Public Transport,Corporate Travel Management (North) Ltd,98255648,47.60,CIMG - External Relations
BEIS,UKRI - BBSRC,08/08/2018,CIMG - External Relations,T&S UK - Public Transport,Corporate Travel Management (North) Ltd,98255648,10.50,CIMG - External Relations
BEIS,UKRI - BBSRC,08/08/2018,CIMG - External Relations,T&S UK - Public Transport,Corporate Travel Management (North) Ltd,98255648,72.10,CIMG - External Relations
BEIS,UKRI - BBSRC,08/08/2018,CIMG - External Relations,T&S UK - Public Transport,Corporate Travel Management (North) Ltd,98255648,16.00,CIMG - External Relations
BEIS,UKRI - BBSRC,08/08/2018,CIMG - Programme Office,T&S UK - Public Transport,Corporate Travel Management (North) Ltd,98255648,100.70,CIMG - Programme Office
BEIS,UKRI - BBSRC,08/08/2018,CIMG - Programme Office,T&S UK - Public Transport,Corporate Travel Management (North) Ltd,98255648,111.00,CIMG - Programme Office
BEIS,UKRI - BBSRC,08/08/2018,CIMG - Programme Office,T&S UK - Public Transport,Corporate Travel Management (North) Ltd,98255648,67.90,CIMG - Programme Office
BEIS,UKRI - BBSRC,08/08/2018,European Initiatives,T&S UK - Public Transport,Corporate Travel Management (North) Ltd,98255648,5.00,European Initiatives
BEIS,UKRI - BBSRC,08/08/2018,European Initiatives,T&S UK - Public Transport,Corporate Travel Management (North) Ltd,98255648,-150.70,European Initiatives
BEIS,UKRI - BBSRC,08/08/2018,European Initiatives,T&S UK - Public Transport,Corporate Travel Management (North) Ltd,98255648,72.10,European Initiatives
BEIS,UKRI - BBSRC,08/08/2018,FG - Director,T&S UK - Public Transport,Corporate Travel Management (North) Ltd,98255648,186.60,FG - Director
BEIS,UKRI - BBSRC,08/08/2018,FG - Director,T&S UK - Public Transport,Corporate Travel Management (North) Ltd,98255648,99.40,FG - Director
BEIS,UKRI - BBSRC,08/08/2018,FG - Director,T&S UK - Public Transport,Corporate Travel Management (North) Ltd,98255648,99.40,FG - Director
BEIS,UKRI - BBSRC,08/08/2018,FG - Director,T&S UK - Public Transport,Corporate Travel Management (North) Ltd,98255648,91.20,FG - Director
BEIS,UKRI - BBSRC,08/08/2018,FG - Director,T&S UK - Public Transport,Corporate Travel Management (North) Ltd,98255648,101.20,FG - Director
BEIS,UKRI - BBSRC,08/08/2018,FG - RCUK Assurance,T&S UK - Public Transport,Corporate Travel Management (North) Ltd,98255648,139.60,FG - RCUK Assurance
BEIS,UKRI - BBSRC,08/08/2018,FG - RCUK Assurance,T&S UK - Public Transport,Corporate Travel Management (North) Ltd,98255648,69.20,FG - RCUK Assurance
BEIS,UKRI - BBSRC,08/08/2018,FG - RCUK Assurance,T&S UK - Public Transport,Corporate Travel Management (North) Ltd,98255648,141.40,FG - RCUK Assurance
BEIS,UKRI - BBSRC,08/08/2018,FG - RCUK Assurance,T&S UK - Public Transport,Corporate Travel Management (North) Ltd,98255648,69.20,FG - RCUK Assurance
BEIS,UKRI - BBSRC,08/08/2018,Innovation and Skills Group,T&S UK - Public Transport,Corporate Travel Management (North) Ltd,98255648,66.80,Innovation and Skills Group
BEIS,UKRI - BBSRC,08/08/2018,Innovation and Skills Group,T&S UK - Public Transport,Corporate Travel Management (North) Ltd,98255648,111.00,Innovation and Skills Group
BEIS,UKRI - BBSRC,08/08/2018,Innovation and Skills Group,T&S UK - Public Transport,Corporate Travel Management (North) Ltd,98255648,-25.90,Innovation and Skills Group
BEIS,UKRI - BBSRC,08/08/2018,Innovation and Skills Group,T&S UK - Public Transport,Corporate Travel Management (North) Ltd,98255648,139.60,Innovation and Skills Group
BEIS,UKRI - BBSRC,08/08/2018,Innovation and Skills Group,T&S UK - Public Transport,Corporate Travel Management (North) Ltd,98255648,140.60,Innovation and Skills Group
BEIS,UKRI - BBSRC,08/08/2018,Innovation and Skills Group,T&S UK - Public Transport,Corporate Travel Management (North) Ltd,98255648,139.60,Innovation and Skills Group
BEIS,UKRI - BBSRC,08/08/2018,Innovation and Skills Group,T&S UK - Public Transport,Corporate Travel Management (North) Ltd,98255648,-25.90,Innovation and Skills Group
BEIS,UKRI - BBSRC,08/08/2018,Innovation and Skills Group,T&S UK - Public Transport,Corporate Travel Management (North) Ltd,98255648,-18.20,Innovation and Skills Group
BEIS,UKRI - BBSRC,08/08/2018,Innovation and Skills Group,T&S UK - Public Transport,Corporate Travel Management (North) Ltd,98255648,5.00,Innovation and Skills Group
BEIS,UKRI - BBSRC,08/08/2018,Innovation and Skills Group,T&S UK - Public Transport,Corporate Travel Management (North) Ltd,98255648,-90.70,Innovation and Skills Group
BEIS,UKRI - BBSRC,08/08/2018,Innovation and Skills Group,T&S UK - Public Transport,Corporate Travel Management (North) Ltd,98255648,-134.60,Innovation and Skills Group
BEIS,UKRI - BBSRC,08/08/2018,Innovation and Skills Group,T&S UK - Public Transport,Corporate Travel Management (North) Ltd,98255648,140.30,Innovation and Skills Group
BEIS,UKRI - BBSRC,08/08/2018,Innovation and Skills Group,T&S UK - Public Transport,Corporate Travel Management (North) Ltd,98255648,140.30,Innovation and Skills Group
BEIS,UKRI - BBSRC,08/08/2018,Innovation and Skills Group,T&S UK - Public Transport,Corporate Travel Management (North) Ltd,98255648,60.30,Innovation and Skills Group
BEIS,UKRI - BBSRC,08/08/2018,Innovation and Skills Group,T&S UK - Public Transport,Corporate Travel Management (North) Ltd,98255648,41.20,Innovation and Skills Group
BEIS,UKRI - BBSRC,08/08/2018,Innovation and Skills Group,T&S UK - Public Transport,Corporate Travel Management (North) Ltd,98255648,23.20,Innovation and Skills Group
BEIS,UKRI - BBSRC,08/08/2018,Innovation and Skills Group,T&S UK - Public Transport,Corporate Travel Management (North) Ltd,98255648,69.80,Innovation and Skills Group
BEIS,UKRI - BBSRC,08/08/2018,Innovation and Skills Group,T&S UK - Public Transport,Corporate Travel Management (North) Ltd,98255648,139.60,Innovation and Skills Group
BEIS,UKRI - BBSRC,08/08/2018,Innovation and Skills Group,T&S UK - Public Transport,Corporate Travel Management (North) Ltd,98255648,53.70,Innovation and Skills Group
BEIS,UKRI - BBSRC,08/08/2018,Innovation and Skills Group,T&S UK - Public Transport,Corporate Travel Management (North) Ltd,98255648,-25.30,Innovation and Skills Group
BEIS,UKRI - BBSRC,08/08/2018,Innovation and Skills Group,T&S UK - Public Transport,Corporate Travel Management (North) Ltd,98255648,28.00,Innovation and Skills Group
BEIS,UKRI - BBSRC,08/08/2018,Innovation and Skills Group,T&S UK - Public Transport,Corporate Travel Management (North) Ltd,98255648,140.30,Innovation and Skills Group
BEIS,UKRI - BBSRC,08/08/2018,Innovation and Skills Group,T&S UK - Public Transport,Corporate Travel Management (North) Ltd,98255648,40.50,Innovation and Skills Group
BEIS,UKRI - BBSRC,08/08/2018,Innovation and Skills Group,T&S UK - Public Transport,Corporate Travel Management (North) Ltd,98255648,53.90,Innovation and Skills Group
BEIS,UKRI - BBSRC,08/08/2018,Innovation and Skills Group,T&S UK - Public Transport,Corporate Travel Management (North) Ltd,98255648,-80.80,Innovation and Skills Group
BEIS,UKRI - BBSRC,08/08/2018,Innovation and Skills Group CDSU,T&S UK - Public Transport,Corporate Travel Management (North) Ltd,98255648,139.60,Innovation and Skills Group CDSU
BEIS,UKRI - BBSRC,08/08/2018,Innovation and Skills Group CDSU,T&S UK - Public Transport,Corporate Travel Management (North) Ltd,98255648,59.10,Innovation and Skills Group CDSU
BEIS,UKRI - BBSRC,08/08/2018,Innovation and Skills Group CDSU,T&S UK - Public Transport,Corporate Travel Management (North) Ltd,98255648,139.60,Innovation and Skills Group CDSU
BEIS,UKRI - BBSRC,08/08/2018,Innovation and Skills Group CDSU,T&S UK - Public Transport,Corporate Travel Management (North) Ltd,98255648,140.30,Innovation and Skills Group CDSU
BEIS,UKRI - BBSRC,08/08/2018,Innovation and Skills Group CDSU,T&S UK - Public Transport,Corporate Travel Management (North) Ltd,98255648,-20.00,Innovation and Skills Group CDSU
BEIS,UKRI - BBSRC,08/08/2018,Innovation and Skills Group CDSU,T&S UK - Public Transport,Corporate Travel Management (North) Ltd,98255648,95.70,Innovation and Skills Group CDSU
BEIS,UKRI - BBSRC,08/08/2018,PDG - Director,T&S UK - Public Transport,Corporate Travel Management (North) Ltd,98255648,82.40,PDG - Director
BEIS,UKRI - BBSRC,08/08/2018,PDG - Director,T&S UK - Public Transport,Corporate Travel Management (North) Ltd,98255648,128.80,PDG - Director
BEIS,UKRI - BBSRC,08/08/2018,PDG - Director,T&S UK - Public Transport,Corporate Travel Management (North) Ltd,98255648,196.80,PDG - Director
BEIS,UKRI - BBSRC,08/08/2018,PDG - Director,T&S UK - Public Transport,Corporate Travel Management (North) Ltd,98255648,100.20,PDG - Director
BEIS,UKRI - BBSRC,08/08/2018,PDG - Director,T&S UK - Public Transport,Corporate Travel Management (North) Ltd,98255648,196.80,PDG - Director
BEIS,UKRI - BBSRC,08/08/2018,PDG - Director,T&S UK - Public Transport,Corporate Travel Management (North) Ltd,98255648,100.20,PDG - Director
BEIS,UKRI - BBSRC,08/08/2018,PDG - Director,T&S UK - Public Transport,Corporate Travel Management (North) Ltd,98255648,63.20,PDG - Director
BEIS,UKRI - BBSRC,08/08/2018,RISD - UKRO,T&S UK - Public Transport,Corporate Travel Management (North) Ltd,98255648,1.00,RISD - UKRO
BEIS,UKRI - BBSRC,08/08/2018,RISD - UKRO,T&S UK - Public Transport,Corporate Travel Management (North) Ltd,98255648,17.00,RISD - UKRO
BEIS,UKRI - BBSRC,08/08/2018,RISD - UKRO,T&S UK - Public Transport,Corporate Travel Management (North) Ltd,98255648,2.00,RISD - UKRO
BEIS,UKRI - BBSRC,08/08/2018,RISD - UKRO,T&S UK - Public Transport,Corporate Travel Management (North) Ltd,98255648,12.60,RISD - UKRO
BEIS,UKRI - BBSRC,08/08/2018,RISD - UKRO,T&S UK - Public Transport,Corporate Travel Management (North) Ltd,98255648,22.00,RISD - UKRO
BEIS,UKRI - BBSRC,08/08/2018,RISD - UKRO,T&S UK - Public Transport,Corporate Travel Management (North) Ltd,98255648,1.00,RISD - UKRO
BEIS,UKRI - BBSRC,08/08/2018,RISD - UKRO,T&S UK - Public Transport,Corporate Travel Management (North) Ltd,98255648,53.90,RISD - UKRO
BEIS,UKRI - BBSRC,08/08/2018,RISD - UKRO,T&S UK - Public Transport,Corporate Travel Management (North) Ltd,98255648,1.00,RISD - UKRO
BEIS,UKRI - BBSRC,08/08/2018,RISD - UKRO,T&S UK - Public Transport,Corporate Travel Management (North) Ltd,98255648,37.00,RISD - UKRO
BEIS,UKRI - BBSRC,08/08/2018,Science Group,T&S UK - Public Transport,Corporate Travel Management (North) Ltd,98255648,24.80,Science Group
BEIS,UKRI - BBSRC,08/08/2018,Science Group,T&S UK - Public Transport,Corporate Travel Management (North) Ltd,98255648,69.20,Science Group
BEIS,UKRI - BBSRC,08/08/2018,Science Group,T&S UK - Public Transport,Corporate Travel Management (North) Ltd,98255648,45.10,Science Group
BEIS,UKRI - BBSRC,08/08/2018,Science Group,T&S UK - Public Transport,Corporate Travel Management (North) Ltd,98255648,265.80,Science Group
BEIS,UKRI - BBSRC,08/08/2018,Science Group,T&S UK - Public Transport,Corporate Travel Management (North) Ltd,98255648,139.60,Science Group
BEIS,UKRI - BBSRC,08/08/2018,Science Group,T&S UK - Public Transport,Corporate Travel Management (North) Ltd,98255648,37.30,Science Group
BEIS,UKRI - BBSRC,08/08/2018,Science Group,T&S UK - Public Transport,Corporate Travel Management (North) Ltd,98255648,52.90,Science Group
BEIS,UKRI - BBSRC,08/08/2018,Science Group,T&S UK - Public Transport,Corporate Travel Management (North) Ltd,98255648,14.60,Science Group
BEIS,UKRI - BBSRC,08/08/2018,Science Group,T&S UK - Public Transport,Corporate Travel Management (North) Ltd,98255648,181.00,Science Group
BEIS,UKRI - BBSRC,08/08/2018,Science Group,T&S UK - Public Transport,Corporate Travel Management (North) Ltd,98255648,133.60,Science Group
BEIS,UKRI - BBSRC,08/08/2018,Science Group,T&S UK - Public Transport,Corporate Travel Management (North) Ltd,98255648,108.70,Science Group
BEIS,UKRI - BBSRC,08/08/2018,Science Group,T&S UK - Public Transport,Corporate Travel Management (North) Ltd,98255648,54.70,Science Group
BEIS,UKRI - BBSRC,08/08/2018,Science Group,T&S UK - Public Transport,Corporate Travel Management (North) Ltd,98255648,80.50,Science Group
BEIS,UKRI - BBSRC,08/08/2018,Science Group,T&S UK - Public Transport,Corporate Travel Management (North) Ltd,98255648,70.60,Science Group
BEIS,UKRI - BBSRC,08/08/2018,Science Group,T&S UK - Public Transport,Corporate Travel Management (North) Ltd,98255648,100.70,Science Group
BEIS,UKRI - BBSRC,08/08/2018,Science Group,T&S UK - Public Transport,Corporate Travel Management (North) Ltd,98255648,161.20,Science Group
BEIS,UKRI - BBSRC,08/08/2018,Science Group,T&S UK - Public Transport,Corporate Travel Management (North) Ltd,98255648,140.30,Science Group
BEIS,UKRI - BBSRC,08/08/2018,Science Group,T&S UK - Public Transport,Corporate Travel Management (North) Ltd,98255648,14.80,Science Group
BEIS,UKRI - BBSRC,08/08/2018,Science Group,T&S UK - Public Transport,Corporate Travel Management (North) Ltd,98255648,35.70,Science Group
BEIS,UKRI - BBSRC,08/08/2018,Science Group,T&S UK - Public Transport,Corporate Travel Management (North) Ltd,98255648,84.90,Science Group
BEIS,UKRI - BBSRC,08/08/2018,Science Group,T&S UK - Public Transport,Corporate Travel Management (North) Ltd,98255648,140.30,Science Group
BEIS,UKRI - BBSRC,08/08/2018,Science Group,T&S UK - Public Transport,Corporate Travel Management (North) Ltd,98255648,5.00,Science Group
BEIS,UKRI - BBSRC,08/08/2018,Science Group,T&S UK - Public Transport,Corporate Travel Management (North) Ltd,98255648,-7.70,Science Group
BEIS,UKRI - BBSRC,08/08/2018,Science Group,T&S UK - Public Transport,Corporate Travel Management (North) Ltd,98255648,-90.70,Science Group
BEIS,UKRI - BBSRC,08/08/2018,Science Group,T&S UK - Public Transport,Corporate Travel Management (North) Ltd,98255648,171.60,Science Group
BEIS,UKRI - BBSRC,08/08/2018,Science Group,T&S UK - Public Transport,Corporate Travel Management (North) Ltd,98255648,178.00,Science Group
BEIS,UKRI - BBSRC,08/08/2018,Science Group,T&S UK - Public Transport,Corporate Travel Management (North) Ltd,98255648,46.80,Science Group
BEIS,UKRI - BBSRC,08/08/2018,Science Group,T&S UK - Public Transport,Corporate Travel Management (North) Ltd,98255648,35.00,Science Group
BEIS,UKRI - BBSRC,08/08/2018,Science Group,T&S UK - Public Transport,Corporate Travel Management (North) Ltd,98255648,195.20,Science Group
BEIS,UKRI - BBSRC,08/08/2018,Science Group,T&S UK - Public Transport,Corporate Travel Management (North) Ltd,98255648,181.30,Science Group
BEIS,UKRI - BBSRC,08/08/2018,Science Group,T&S UK - Public Transport,Corporate Travel Management (North) Ltd,98255648,34.90,Science Group
BEIS,UKRI - BBSRC,08/08/2018,Science Group,T&S UK - Public Transport,Corporate Travel Management (North) Ltd,98255648,111.00,Science Group
BEIS,UKRI - BBSRC,08/08/2018,Science Group,T&S UK - Public Transport,Corporate Travel Management (North) Ltd,98255648,30.90,Science Group
BEIS,UKRI - BBSRC,08/08/2018,Science Group,T&S UK - Public Transport,Corporate Travel Management (North) Ltd,98255648,156.90,Science Group
BEIS,UKRI - BBSRC,08/08/2018,Science Group,T&S UK - Public Transport,Corporate Travel Management (North) Ltd,98255648,94.70,Science Group
BEIS,UKRI - BBSRC,08/08/2018,Science Group,T&S UK - Public Transport,Corporate Travel Management (North) Ltd,98255648,178.00,Science Group
BEIS,UKRI - BBSRC,08/08/2018,Science Group,T&S UK - Public Transport,Corporate Travel Management (North) Ltd,98255648,180.30,Science Group
BEIS,UKRI - BBSRC,08/08/2018,Science Group,T&S UK - Public Transport,Corporate Travel Management (North) Ltd,98255648,211.40,Science Group
BEIS,UKRI - BBSRC,08/08/2018,Science Group,T&S UK - Public Transport,Corporate Travel Management (North) Ltd,98255648,139.60,Science Group
BEIS,UKRI - BBSRC,08/08/2018,Science Group,T&S UK - Public Transport,Corporate Travel Management (North) Ltd,98255648,2.00,Science Group
BEIS,UKRI - BBSRC,08/08/2018,Science Group,T&S UK - Public Transport,Corporate Travel Management (North) Ltd,98255648,70.20,Science Group
BEIS,UKRI - BBSRC,08/08/2018,Science Group,T&S UK - Public Transport,Corporate Travel Management (North) Ltd,98255648,120.90,Science Group
BEIS,UKRI - BBSRC,08/08/2018,Science Group,T&S UK - Public Transport,Corporate Travel Management (North) Ltd,98255648,1.00,Science Group
BEIS,UKRI - BBSRC,08/08/2018,Science Group,T&S UK - Public Transport,Corporate Travel Management (North) Ltd,98255648,119.90,Science Group
BEIS,UKRI - BBSRC,08/08/2018,Science Group,T&S UK - Public Transport,Corporate Travel Management (North) Ltd,98255648,99.40,Science Group
BEIS,UKRI - BBSRC,08/08/2018,Science Group,T&S UK - Public Transport,Corporate Travel Management (North) Ltd,98255648,119.90,Science Group
BEIS,UKRI - BBSRC,08/08/2018,Science Group,T&S UK - Public Transport,Corporate Travel Management (North) Ltd,98255648,94.70,Science Group
BEIS,UKRI - BBSRC,08/08/2018,Science Group,T&S UK - Public Transport,Corporate Travel Management (North) Ltd,98255648,56.10,Science Group
BEIS,UKRI - BBSRC,08/08/2018,Science Group,T&S UK - Public Transport,Corporate Travel Management (North) Ltd,98255648,139.00,Science Group
BEIS,UKRI - BBSRC,08/08/2018,Science Group,T&S UK - Public Transport,Corporate Travel Management (North) Ltd,98255648,71.20,Science Group
BEIS,UKRI - BBSRC,08/08/2018,Science Group - Delivery Function,T&S UK - Public Transport,Corporate Travel Management (North) Ltd,98255648,71.30,Science Group - Delivery Function
BEIS,UKRI - BBSRC,08/08/2018,Science Group - Delivery Function,T&S UK - Public Transport,Corporate Travel Management (North) Ltd,98255648,53.90,Science Group - Delivery Function
BEIS,UKRI - BBSRC,08/08/2018,Science Group - Delivery Function,T&S UK - Public Transport,Corporate Travel Management (North) Ltd,98255648,18.30,Science Group - Delivery Function
BEIS,UKRI - BBSRC,08/08/2018,Science Group - Delivery Function,T&S UK - Public Transport,Corporate Travel Management (North) Ltd,98255648,21.20,Science Group - Delivery Function
BEIS,UKRI - BBSRC,08/08/2018,Science Group - Delivery Function,T&S UK - Public Transport,Corporate Travel Management (North) Ltd,98255648,14.00,Science Group - Delivery Function
BEIS,UKRI - BBSRC,08/08/2018,FG - RCUK Assurance,T&S UK - Vehicle Hire,Corporate Travel Management (North) Ltd,98255648,125.86,FG - RCUK Assurance
BEIS,UKRI - BBSRC,08/08/2018,FG - RCUK Assurance,T&S UK - Vehicle Hire,Corporate Travel Management (North) Ltd,98255648,232.50,FG - RCUK Assurance
BEIS,UKRI - BBSRC,08/08/2018,FG - RCUK Assurance,T&S UK - Vehicle Hire,Corporate Travel Management (North) Ltd,98255648,124.14,FG - RCUK Assurance
BEIS,UKRI - BBSRC,08/08/2018,Innovation and Skills Group,T&S UK - Vehicle Hire,Corporate Travel Management (North) Ltd,98255648,17.23,Innovation and Skills Group
BEIS,UKRI - BBSRC,08/08/2018,Innovation and Skills Group,T&S UK - Vehicle Hire,Corporate Travel Management (North) Ltd,98255648,17.90,Innovation and Skills Group
BEIS,UKRI - BBSRC,08/08/2018,Innovation and Skills Group,T&S UK - Vehicle Hire,Corporate Travel Management (North) Ltd,98255648,21.71,Innovation and Skills Group
BEIS,UKRI - BBSRC,30/08/2018,FG - RCUK Assurance,Conferences & Seminars,Council of Higher Education Internal Auditors (CHEIA),98269442,"1,190.00",FG - RCUK Assurance
BEIS,UKRI - BBSRC,13/08/2018,JBOS Health and Safety,T&S UK - Vehicle Hire,Cross Street Cars,98256150,8.20,JBOS Health and Safety
BEIS,UKRI - BBSRC,01/08/2018,JBOS - Post Room,Postage & Courier Services,unspecified,98250555,928.95,JBOS - Post Room
BEIS,UKRI - BBSRC,15/08/2018,JBOS - Post Room,Postage & Courier Services,unspecified,98261159,527.70,JBOS - Post Room
BEIS,UKRI - BBSRC,15/08/2018,JBOS - Post Room,Postage & Courier Services,unspecified,98261167,442.27,JBOS - Post Room
BEIS,UKRI - BBSRC,16/08/2018,JBOS - Post Room,Postage & Courier Services,unspecified,98262763,-147.50,JBOS - Post Room
BEIS,UKRI - BBSRC,16/08/2018,JBOS - Post Room,Postage & Courier Services,unspecified,98262765,177.00,JBOS - Post Room
BEIS,UKRI - BBSRC,16/08/2018,FG - Estates,Electricity,E.ON Energy,98261731,122.76,FG - Estates
BEIS,UKRI - BBSRC,16/08/2018,FG - Estates,Electricity,E.ON Energy,98262714,101.66,FG - Estates
BEIS,UKRI - BBSRC,17/08/2018,TGAC,International Awards - Non Capital,Earlham Institute,98251872,"153,881.76",TGAC
BEIS,UKRI - BBSRC,17/08/2018,TGAC,Research Institutes - Competitive Strategic Grant,Earlham Institute,98252302,"175,152.14",TGAC
BEIS,UKRI - BBSRC,17/08/2018,TGAC,Research Institutes - Competitive Strategic Grant,Earlham Institute,98252302,"72,565.05",TGAC
BEIS,UKRI - BBSRC,17/08/2018,TGAC,Research Institutes - Competitive Strategic Grant,Earlham Institute,98252302,"46,166.70",TGAC
BEIS,UKRI - BBSRC,17/08/2018,TGAC,Research Institutes - Competitive Strategic Grant,Earlham Institute,98252302,"33,333.36",TGAC
BEIS,UKRI - BBSRC,17/08/2018,TGAC,Research Institutes - Competitive Strategic Grant,Earlham Institute,98252302,"111,533.08",TGAC
BEIS,UKRI - BBSRC,17/08/2018,TGAC,Research Institutes - Competitive Strategic Grant,Earlham Institute,98252302,"2,916.67",TGAC
BEIS,UKRI - BBSRC,16/08/2018,JBOS - Staff,Secondments,Economic & Social Research Council,98250950,"1,754.92",JBOS - Staff
BEIS,UKRI - BBSRC,13/08/2018,PDG - Director,Other Staff Benefits,EDENRED (UK GROUP) LTD,98259200,13.03,PDG - Director
BEIS,UKRI - BBSRC,07/08/2018,JBOS - Maintenance,Electricity,EDF Energy,98254362,"21,334.39",JBOS - Maintenance
BEIS,UKRI - BBSRC,23/08/2018,JBOS - Maintenance,Electricity,EDF Energy,98254360,"-21,334.37",JBOS - Maintenance
BEIS,UKRI - BBSRC,23/08/2018,JBOS - Maintenance,Electricity,EDF Energy,98267641,"31,053.67",JBOS - Maintenance
BEIS,UKRI - BBSRC,08/08/2018,Estates - Projects,Research Institutes - Capital Grants: Major Works,EMBL (European Molecular Biology Laboratory),98254733,"12,832.75",Estates - Projects
BEIS,UKRI - BBSRC,24/08/2018,Estates - Projects,Research Institutes - Capital Grants: Major Works,EMBL (European Molecular Biology Laboratory),98254220,"76,843.37",Estates - Projects
BEIS,UKRI - BBSRC,24/08/2018,Estates - Projects,Research Institutes - Capital Grants: Major Works,EMBL (European Molecular Biology Laboratory),98255838,"109,990.00",Estates - Projects
BEIS,UKRI - BBSRC,16/08/2018,FG - Accounts & Business Planning,Photocopy Costs,Engineering & Physical Sciences Research Council,98239921,"5,072.60",FG - Accounts & Business Planning
BEIS,UKRI - BBSRC,16/08/2018,RISD - UKRO,Secondments,Engineering & Physical Sciences Research Council,98226189,"11,965.47",RISD - UKRO
BEIS,UKRI - BBSRC,16/08/2018,PDG - Director,Staff Training,Engineering & Physical Sciences Research Council,98247674,256.09,PDG - Director
BEIS,UKRI - BBSRC,16/08/2018,PDG - Director,Staff Training,Engineering & Physical Sciences Research Council,98261575,768.27,PDG - Director
BEIS,UKRI - BBSRC,08/08/2018,Science Group,T&S UK - Accommodation,Enterprise Rent-A-Car UK Ltd,98255757,86.78,Science Group
BEIS,UKRI - BBSRC,29/08/2018,Science Group,T&S UK - Accommodation,Enterprise Rent-A-Car UK Ltd,98270098,68.52,Science Group
BEIS,UKRI - BBSRC,29/08/2018,Science Group,T&S UK - Accommodation,Enterprise Rent-A-Car UK Ltd,98270098,13.70,Science Group
BEIS,UKRI - BBSRC,08/08/2018,CE - CPS,T&S UK - Vehicle Hire,Enterprise Rent-A-Car UK Ltd,98255757,38.86,CE - CPS
BEIS,UKRI - BBSRC,21/08/2018,CE - IRU,T&S UK - Vehicle Hire,Enterprise Rent-A-Car UK Ltd,98264975,78.40,CE - IRU
BEIS,UKRI - BBSRC,21/08/2018,FG - Accounts & Business Planning,T&S UK - Vehicle Hire,Enterprise Rent-A-Car UK Ltd,98264975,113.18,FG - Accounts & Business Planning
BEIS,UKRI - BBSRC,08/08/2018,FG - Director,T&S UK - Vehicle Hire,Enterprise Rent-A-Car UK Ltd,98255757,167.12,FG - Director
BEIS,UKRI - BBSRC,29/08/2018,FG - Director,T&S UK - Vehicle Hire,Enterprise Rent-A-Car UK Ltd,98270098,17.10,FG - Director
BEIS,UKRI - BBSRC,29/08/2018,FG - Director,T&S UK - Vehicle Hire,Enterprise Rent-A-Car UK Ltd,98270098,85.51,FG - Director
BEIS,UKRI - BBSRC,15/08/2018,FG - Estates,T&S UK - Vehicle Hire,Enterprise Rent-A-Car UK Ltd,98261113,57.55,FG - Estates
BEIS,UKRI - BBSRC,15/08/2018,FG - Estates,T&S UK - Vehicle Hire,Enterprise Rent-A-Car UK Ltd,98261113,202.75,FG - Estates
BEIS,UKRI - BBSRC,15/08/2018,FG - Estates,T&S UK - Vehicle Hire,Enterprise Rent-A-Car UK Ltd,98261113,84.98,FG - Estates
BEIS,UKRI - BBSRC,08/08/2018,Innovation and Skills Group,T&S UK - Vehicle Hire,Enterprise Rent-A-Car UK Ltd,98255757,53.71,Innovation and Skills Group
BEIS,UKRI - BBSRC,14/08/2018,FG - Accounts & Business Planning,Apprenticeship Levy,HM Revenue & Customs,98251173,199.00,FG - Accounts & Business Planning
BEIS,UKRI - BBSRC,14/08/2018,FG - Accounts & Business Planning,Apprenticeship Levy,HM Revenue & Customs,98259423,"4,041.00",FG - Accounts & Business Planning
BEIS,UKRI - BBSRC,14/08/2018,Balance Sheet,NI Payable Salaries,HM Revenue & Customs,98251172,809.38,Balance Sheet
BEIS,UKRI - BBSRC,14/08/2018,Balance Sheet,NI Payable Salaries,HM Revenue & Customs,98259422,"148,905.99",Balance Sheet
BEIS,UKRI - BBSRC,14/08/2018,Balance Sheet,PAYE Payable Salaries,HM Revenue & Customs,98251171,"13,438.44",Balance Sheet
BEIS,UKRI - BBSRC,14/08/2018,Balance Sheet,PAYE Payable Salaries,HM Revenue & Customs,98259420,"116,416.80",Balance Sheet
BEIS,UKRI - BBSRC,14/08/2018,Balance Sheet,Student Loans,HM Revenue & Customs,98259421,"5,673.00",Balance Sheet
BEIS,UKRI - BBSRC,17/08/2018,IBERS,Research Institutes - Competitive Strategic Grant,Ibers - Aberystwyth University,98252048,"97,156.16",IBERS
BEIS,UKRI - BBSRC,17/08/2018,IBERS,Research Institutes - Competitive Strategic Grant,Ibers - Aberystwyth University,98252048,"52,853.25",IBERS
BEIS,UKRI - BBSRC,17/08/2018,IBERS,Research Institutes - Competitive Strategic Grant,Ibers - Aberystwyth University,98252048,"2,916.67",IBERS
BEIS,UKRI - BBSRC,28/08/2018,JBOS - Maintenance,General Building Maintenance,Interior Design And Developments,98261556,"7,224.00",JBOS - Maintenance
BEIS,UKRI - BBSRC,20/08/2018,JBOS - Maintenance,Grounds Maintenance,Interior Design And Developments,98261734,"3,234.00",JBOS - Maintenance
BEIS,UKRI - BBSRC,29/08/2018,Science Group,Other Programme Costs,INTERNATIONAL INSTITUTE OF TROPICAL AGRICULTURE (IITA),98268350,"1,742.71",Science Group
BEIS,UKRI - BBSRC,09/08/2018,CIMG - Information Management,Storage & Archiving Costs,Iron Mountain (UK) PLC,98256165,592.15,CIMG - Information Management
BEIS,UKRI - BBSRC,09/08/2018,PDG - JSS,Storage & Archiving Costs,Iron Mountain (UK) PLC,98257106,498.09,PDG - JSS
BEIS,UKRI - BBSRC,09/08/2018,Balance Sheet,VAT Input Tax Control (for UK VAT),Iron Mountain (UK) PLC,98257106,99.62,Balance Sheet
BEIS,UKRI - BBSRC,17/08/2018,JIC,International Awards - Non Capital,John Innes Centre,98252005,"250,164.36",JIC
BEIS,UKRI - BBSRC,24/08/2018,JIC,Research Institutes - Capital Grants: Major Works,John Innes Centre,98258305,"147,671.34",JIC
BEIS,UKRI - BBSRC,24/08/2018,JIC,Research Institutes - Capital Grants: Minor Works,John Innes Centre,98267631,"191,384.86",JIC
BEIS,UKRI - BBSRC,10/08/2018,JIC,Research Institutes - Competitive Strategic Grant,John Innes Centre,98253139,"41,667.00",JIC
BEIS,UKRI - BBSRC,17/08/2018,JIC,Research Institutes - Competitive Strategic Grant,John Innes Centre,98253140,"20,583.33",JIC
BEIS,UKRI - BBSRC,17/08/2018,JIC,Research Institutes - Competitive Strategic Grant,John Innes Centre,98253140,"483,416.52",JIC
BEIS,UKRI - BBSRC,17/08/2018,JIC,Research Institutes - Competitive Strategic Grant,John Innes Centre,98253140,"65,333.31",JIC
BEIS,UKRI - BBSRC,17/08/2018,JIC,Research Institutes - Competitive Strategic Grant,John Innes Centre,98253140,"530,666.51",JIC
BEIS,UKRI - BBSRC,17/08/2018,JIC,Research Institutes - Competitive Strategic Grant,John Innes Centre,98253140,"7,083.33",JIC
BEIS,UKRI - BBSRC,08/08/2018,PDG - Director,Recruitment Costs,Leonard Cheshire Disability Centre,98254566,"3,900.00",PDG - Director
BEIS,UKRI - BBSRC,16/08/2018,FG - Accounts & Business Planning,Research Grant Expenditure,Medical Research Council,98249723,"8,403.66",FG - Accounts & Business Planning
BEIS,UKRI - BBSRC,16/08/2018,Science Group,Research Grant Expenditure,Medical Research Council,98249711,"5,786.49",Science Group
BEIS,UKRI - BBSRC,16/08/2018,Science Group,Research Grant Expenditure,Medical Research Council,98249711,"19,489.50",Science Group
BEIS,UKRI - BBSRC,16/08/2018,Science Group,Research Grant Expenditure,Medical Research Council,98249711,"94,246.53",Science Group
BEIS,UKRI - BBSRC,15/08/2018,CE - IRU,Telecoms - Tele/ Video conferencing,MeetingZone Ltd,98256571,66.13,CE - IRU
BEIS,UKRI - BBSRC,15/08/2018,CE - IRU,Telecoms - Tele/ Video conferencing,MeetingZone Ltd,98256571,254.47,CE - IRU
BEIS,UKRI - BBSRC,15/08/2018,Science Group,Telecoms - Tele/ Video conferencing,MeetingZone Ltd,98256571,402.52,Science Group
BEIS,UKRI - BBSRC,09/08/2018,FG - Estates,Legal & Professional Services,MORTON FRASER LLP,98255664,"1,986.80",FG - Estates
BEIS,UKRI - BBSRC,15/08/2018,Science Group,Other Programme Costs,Mosaic Events Ltd,98256550,244.00,Science Group
BEIS,UKRI - BBSRC,30/08/2018,RISD - UKRO,Conferences & Seminars,Natural History Museum,98270479,794.00,RISD - UKRO
BEIS,UKRI - BBSRC,10/08/2018,Science Group,Other Programme Costs,NCRI - National Cancer Research Institute,98257165,"4,198.00",Science Group
BEIS,UKRI - BBSRC,06/08/2018,JBOS - Maintenance,Mechanical & Electrical Maintenance,Newjax Drainage and Property Maintenance Ltd,98175260,216.00,JBOS - Maintenance
BEIS,UKRI - BBSRC,16/08/2018,CE - CPS,Non-staff travel and subsistance,Non Employee Expenses Supplier,98261682,130.82,CE - CPS
BEIS,UKRI - BBSRC,16/08/2018,CE - CPS,Non-staff travel and subsistance,Non Employee Expenses Supplier,98261683,252.80,CE - CPS
BEIS,UKRI - BBSRC,16/08/2018,CE - CPS,Non-staff travel and subsistance,Non Employee Expenses Supplier,98261684,137.43,CE - CPS
BEIS,UKRI - BBSRC,16/08/2018,CE - CPS,Non-staff travel and subsistance,Non Employee Expenses Supplier,98261685,739.53,CE - CPS
BEIS,UKRI - BBSRC,16/08/2018,CE - CPS,Non-staff travel and subsistance,Non Employee Expenses Supplier,98261686,820.20,CE - CPS
BEIS,UKRI - BBSRC,16/08/2018,CE - CPS,Non-staff travel and subsistance,Non Employee Expenses Supplier,98261687,56.09,CE - CPS
BEIS,UKRI - BBSRC,16/08/2018,CE - CPS,Non-staff travel and subsistance,Non Employee Expenses Supplier,98261688,329.00,CE - CPS
BEIS,UKRI - BBSRC,16/08/2018,CE - CPS,Non-staff travel and subsistance,Non Employee Expenses Supplier,98261689,237.37,CE - CPS
BEIS,UKRI - BBSRC,16/08/2018,CE - CPS,Non-staff travel and subsistance,Non Employee Expenses Supplier,98261690,219.60,CE - CPS
BEIS,UKRI - BBSRC,16/08/2018,CE - CPS,Non-staff travel and subsistance,Non Employee Expenses Supplier,98261691,611.60,CE - CPS
BEIS,UKRI - BBSRC,16/08/2018,CE - CPS,Non-staff travel and subsistance,Non Employee Expenses Supplier,98261692,189.78,CE - CPS
BEIS,UKRI - BBSRC,16/08/2018,CE - CPS,Non-staff travel and subsistance,Non Employee Expenses Supplier,98261722,257.10,CE - CPS
BEIS,UKRI - BBSRC,16/08/2018,CE - CPS,Non-staff travel and subsistance,Non Employee Expenses Supplier,98261723,336.09,CE - CPS
BEIS,UKRI - BBSRC,16/08/2018,CE - CPS,Non-staff travel and subsistance,Non Employee Expenses Supplier,98261724,428.49,CE - CPS
BEIS,UKRI - BBSRC,16/08/2018,CE - CPS,Non-staff travel and subsistance,Non Employee Expenses Supplier,98261725,149.40,CE - CPS
BEIS,UKRI - BBSRC,16/08/2018,CE - CPS,Non-staff travel and subsistance,Non Employee Expenses Supplier,98261726,213.20,CE - CPS
BEIS,UKRI - BBSRC,16/08/2018,CE - CPS,Non-staff travel and subsistance,Non Employee Expenses Supplier,98261727,316.80,CE - CPS
BEIS,UKRI - BBSRC,17/08/2018,CE - CPS,Non-staff travel and subsistance,Non Employee Expenses Supplier,98261914,425.16,CE - CPS
BEIS,UKRI - BBSRC,21/08/2018,CE - CPS,Non-staff travel and subsistance,Non Employee Expenses Supplier,98265752,331.00,CE - CPS
BEIS,UKRI - BBSRC,21/08/2018,CE - CPS,Non-staff travel and subsistance,Non Employee Expenses Supplier,98265753,220.00,CE - CPS
BEIS,UKRI - BBSRC,21/08/2018,CE - CPS,Non-staff travel and subsistance,Non Employee Expenses Supplier,98265754,176.50,CE - CPS
BEIS,UKRI - BBSRC,21/08/2018,CE - CPS,Non-staff travel and subsistance,Non Employee Expenses Supplier,98265755,332.60,CE - CPS
BEIS,UKRI - BBSRC,21/08/2018,CE - CPS,Non-staff travel and subsistance,Non Employee Expenses Supplier,98265756,293.10,CE - CPS
BEIS,UKRI - BBSRC,28/08/2018,CE - CPS,Non-staff travel and subsistance,Non Employee Expenses Supplier,98267608,206.92,CE - CPS
BEIS,UKRI - BBSRC,28/08/2018,CE - CPS,Non-staff travel and subsistance,Non Employee Expenses Supplier,98267609,780.22,CE - CPS
BEIS,UKRI - BBSRC,28/08/2018,CE - CPS,Non-staff travel and subsistance,Non Employee Expenses Supplier,98267610,349.60,CE - CPS
BEIS,UKRI - BBSRC,16/08/2018,CE - IRU,Non-staff travel and subsistance,Non Employee Expenses Supplier,98261715,237.05,CE - IRU
BEIS,UKRI - BBSRC,16/08/2018,CE - IRU,Non-staff travel and subsistance,Non Employee Expenses Supplier,98261719,116.70,CE - IRU
BEIS,UKRI - BBSRC,16/08/2018,CIMG - Council Secretariat,Non-staff travel and subsistance,Non Employee Expenses Supplier,98261699,37.50,CIMG - Council Secretariat
BEIS,UKRI - BBSRC,16/08/2018,CIMG - Council Secretariat,Non-staff travel and subsistance,Non Employee Expenses Supplier,98261700,77.80,CIMG - Council Secretariat
BEIS,UKRI - BBSRC,16/08/2018,CIMG - Council Secretariat,Non-staff travel and subsistance,Non Employee Expenses Supplier,98261701,159.50,CIMG - Council Secretariat
BEIS,UKRI - BBSRC,16/08/2018,CIMG - Council Secretariat,Non-staff travel and subsistance,Non Employee Expenses Supplier,98261716,91.20,CIMG - Council Secretariat
BEIS,UKRI - BBSRC,16/08/2018,CIMG - Council Secretariat,Non-staff travel and subsistance,Non Employee Expenses Supplier,98261717,160.60,CIMG - Council Secretariat
BEIS,UKRI - BBSRC,16/08/2018,CIMG - Council Secretariat,Non-staff travel and subsistance,Non Employee Expenses Supplier,98261721,139.77,CIMG - Council Secretariat
BEIS,UKRI - BBSRC,23/08/2018,CIMG - Council Secretariat,Non-staff travel and subsistance,Non Employee Expenses Supplier,98267673,198.50,CIMG - Council Secretariat
BEIS,UKRI - BBSRC,23/08/2018,CIMG - Council Secretariat,Non-staff travel and subsistance,Non Employee Expenses Supplier,98267674,211.30,CIMG - Council Secretariat
BEIS,UKRI - BBSRC,16/08/2018,European Initiatives,Non-staff travel and subsistance,Non Employee Expenses Supplier,98261714,480.90,European Initiatives
BEIS,UKRI - BBSRC,22/08/2018,European Initiatives,Non-staff travel and subsistance,Non Employee Expenses Supplier,98262638,524.62,European Initiatives
BEIS,UKRI - BBSRC,22/08/2018,European Initiatives,Non-staff travel and subsistance,Non Employee Expenses Supplier,98262639,523.22,European Initiatives
BEIS,UKRI - BBSRC,16/08/2018,Innovation and Skills Group CDSU,Non-staff travel and subsistance,Non Employee Expenses Supplier,98261693,256.00,Innovation and Skills Group CDSU
BEIS,UKRI - BBSRC,16/08/2018,Innovation and Skills Group CDSU,Non-staff travel and subsistance,Non Employee Expenses Supplier,98261694,99.90,Innovation and Skills Group CDSU
BEIS,UKRI - BBSRC,16/08/2018,Innovation and Skills Group CDSU,Non-staff travel and subsistance,Non Employee Expenses Supplier,98261695,279.49,Innovation and Skills Group CDSU
BEIS,UKRI - BBSRC,16/08/2018,Innovation and Skills Group CDSU,Non-staff travel and subsistance,Non Employee Expenses Supplier,98261696,58.70,Innovation and Skills Group CDSU
BEIS,UKRI - BBSRC,16/08/2018,Innovation and Skills Group CDSU,Non-staff travel and subsistance,Non Employee Expenses Supplier,98261697,260.70,Innovation and Skills Group CDSU
BEIS,UKRI - BBSRC,16/08/2018,Innovation and Skills Group CDSU,Non-staff travel and subsistance,Non Employee Expenses Supplier,98261698,191.10,Innovation and Skills Group CDSU
BEIS,UKRI - BBSRC,28/08/2018,Innovation and Skills Group CDSU,Non-staff travel and subsistance,Non Employee Expenses Supplier,98267606,83.80,Innovation and Skills Group CDSU
BEIS,UKRI - BBSRC,28/08/2018,Innovation and Skills Group CDSU,Non-staff travel and subsistance,Non Employee Expenses Supplier,98267607,31.25,Innovation and Skills Group CDSU
BEIS,UKRI - BBSRC,28/08/2018,Innovation and Skills Group CDSU,Non-staff travel and subsistance,Non Employee Expenses Supplier,98267611,225.18,Innovation and Skills Group CDSU
BEIS,UKRI - BBSRC,21/08/2018,Science Group,Non-staff travel and subsistance,Non Employee Expenses Supplier,98265748,725.70,Science Group
BEIS,UKRI - BBSRC,21/08/2018,Science Group,Non-staff travel and subsistance,Non Employee Expenses Supplier,98265749,851.70,Science Group
BEIS,UKRI - BBSRC,13/08/2018,Science Group - Delivery Function,Non-staff travel and subsistance,Non Employee Expenses Supplier,98258889,75.90,Science Group - Delivery Function
BEIS,UKRI - BBSRC,13/08/2018,Science Group - Delivery Function,Non-staff travel and subsistance,Non Employee Expenses Supplier,98258890,65.70,Science Group - Delivery Function
BEIS,UKRI - BBSRC,13/08/2018,Science Group - Delivery Function,Non-staff travel and subsistance,Non Employee Expenses Supplier,98258891,137.00,Science Group - Delivery Function
BEIS,UKRI - BBSRC,13/08/2018,Science Group - Delivery Function,Non-staff travel and subsistance,Non Employee Expenses Supplier,98258892,84.80,Science Group - Delivery Function
BEIS,UKRI - BBSRC,13/08/2018,Science Group - Delivery Function,Non-staff travel and subsistance,Non Employee Expenses Supplier,98258893,97.20,Science Group - Delivery Function
BEIS,UKRI - BBSRC,13/08/2018,Science Group - Delivery Function,Non-staff travel and subsistance,Non Employee Expenses Supplier,98258894,173.15,Science Group - Delivery Function
BEIS,UKRI - BBSRC,13/08/2018,Science Group - Delivery Function,Non-staff travel and subsistance,Non Employee Expenses Supplier,98258895,160.72,Science Group - Delivery Function
BEIS,UKRI - BBSRC,13/08/2018,Science Group - Delivery Function,Non-staff travel and subsistance,Non Employee Expenses Supplier,98258896,190.80,Science Group - Delivery Function
BEIS,UKRI - BBSRC,13/08/2018,Science Group - Delivery Function,Non-staff travel and subsistance,Non Employee Expenses Supplier,98258897,64.00,Science Group - Delivery Function
BEIS,UKRI - BBSRC,13/08/2018,Science Group - Delivery Function,Non-staff travel and subsistance,Non Employee Expenses Supplier,98258898,120.40,Science Group - Delivery Function
BEIS,UKRI - BBSRC,13/08/2018,Science Group - Delivery Function,Non-staff travel and subsistance,Non Employee Expenses Supplier,98258899,172.30,Science Group - Delivery Function
BEIS,UKRI - BBSRC,13/08/2018,Science Group - Delivery Function,Non-staff travel and subsistance,Non Employee Expenses Supplier,98258900,62.10,Science Group - Delivery Function
BEIS,UKRI - BBSRC,13/08/2018,Science Group - Delivery Function,Non-staff travel and subsistance,Non Employee Expenses Supplier,98258901,72.90,Science Group - Delivery Function
BEIS,UKRI - BBSRC,13/08/2018,Science Group - Delivery Function,Non-staff travel and subsistance,Non Employee Expenses Supplier,98258903,48.94,Science Group - Delivery Function
BEIS,UKRI - BBSRC,13/08/2018,Science Group - Delivery Function,Non-staff travel and subsistance,Non Employee Expenses Supplier,98258904,82.50,Science Group - Delivery Function
BEIS,UKRI - BBSRC,13/08/2018,Science Group - Delivery Function,Non-staff travel and subsistance,Non Employee Expenses Supplier,98258905,81.25,Science Group - Delivery Function
BEIS,UKRI - BBSRC,13/08/2018,Science Group - Delivery Function,Non-staff travel and subsistance,Non Employee Expenses Supplier,98258906,88.80,Science Group - Delivery Function
BEIS,UKRI - BBSRC,13/08/2018,Science Group - Delivery Function,Non-staff travel and subsistance,Non Employee Expenses Supplier,98258907,204.94,Science Group - Delivery Function
BEIS,UKRI - BBSRC,13/08/2018,Science Group - Delivery Function,Non-staff travel and subsistance,Non Employee Expenses Supplier,98258908,47.30,Science Group - Delivery Function
BEIS,UKRI - BBSRC,13/08/2018,Science Group - Delivery Function,Non-staff travel and subsistance,Non Employee Expenses Supplier,98258909,117.00,Science Group - Delivery Function
BEIS,UKRI - BBSRC,13/08/2018,Science Group - Delivery Function,Non-staff travel and subsistance,Non Employee Expenses Supplier,98258910,68.15,Science Group - Delivery Function
BEIS,UKRI - BBSRC,13/08/2018,Science Group - Delivery Function,Non-staff travel and subsistance,Non Employee Expenses Supplier,98258911,107.10,Science Group - Delivery Function
BEIS,UKRI - BBSRC,13/08/2018,Science Group - Delivery Function,Non-staff travel and subsistance,Non Employee Expenses Supplier,98258912,127.25,Science Group - Delivery Function
BEIS,UKRI - BBSRC,13/08/2018,Science Group - Delivery Function,Non-staff travel and subsistance,Non Employee Expenses Supplier,98258913,180.20,Science Group - Delivery Function
BEIS,UKRI - BBSRC,13/08/2018,Science Group - Delivery Function,Non-staff travel and subsistance,Non Employee Expenses Supplier,98258914,191.55,Science Group - Delivery Function
BEIS,UKRI - BBSRC,13/08/2018,Science Group - Delivery Function,Non-staff travel and subsistance,Non Employee Expenses Supplier,98258915,132.85,Science Group - Delivery Function
BEIS,UKRI - BBSRC,13/08/2018,Science Group - Delivery Function,Non-staff travel and subsistance,Non Employee Expenses Supplier,98258916,47.70,Science Group - Delivery Function
BEIS,UKRI - BBSRC,13/08/2018,Science Group - Delivery Function,Non-staff travel and subsistance,Non Employee Expenses Supplier,98258917,39.10,Science Group - Delivery Function
BEIS,UKRI - BBSRC,13/08/2018,Science Group - Delivery Function,Non-staff travel and subsistance,Non Employee Expenses Supplier,98258918,131.90,Science Group - Delivery Function
BEIS,UKRI - BBSRC,13/08/2018,Science Group - Delivery Function,Non-staff travel and subsistance,Non Employee Expenses Supplier,98258919,344.01,Science Group - Delivery Function
BEIS,UKRI - BBSRC,13/08/2018,Science Group - Delivery Function,Non-staff travel and subsistance,Non Employee Expenses Supplier,98258920,40.50,Science Group - Delivery Function
BEIS,UKRI - BBSRC,13/08/2018,Science Group - Delivery Function,Non-staff travel and subsistance,Non Employee Expenses Supplier,98258921,127.95,Science Group - Delivery Function
BEIS,UKRI - BBSRC,13/08/2018,Science Group - Delivery Function,Non-staff travel and subsistance,Non Employee Expenses Supplier,98258923,115.20,Science Group - Delivery Function
BEIS,UKRI - BBSRC,13/08/2018,Science Group - Delivery Function,Non-staff travel and subsistance,Non Employee Expenses Supplier,98258924,42.30,Science Group - Delivery Function
BEIS,UKRI - BBSRC,13/08/2018,Science Group - Delivery Function,Non-staff travel and subsistance,Non Employee Expenses Supplier,98258925,185.45,Science Group - Delivery Function
BEIS,UKRI - BBSRC,13/08/2018,Science Group - Delivery Function,Non-staff travel and subsistance,Non Employee Expenses Supplier,98258926,27.00,Science Group - Delivery Function
BEIS,UKRI - BBSRC,13/08/2018,Science Group - Delivery Function,Non-staff travel and subsistance,Non Employee Expenses Supplier,98258927,72.53,Science Group - Delivery Function
BEIS,UKRI - BBSRC,13/08/2018,Science Group - Delivery Function,Non-staff travel and subsistance,Non Employee Expenses Supplier,98258928,48.40,Science Group - Delivery Function
BEIS,UKRI - BBSRC,13/08/2018,Science Group - Delivery Function,Non-staff travel and subsistance,Non Employee Expenses Supplier,98258929,76.05,Science Group - Delivery Function
BEIS,UKRI - BBSRC,13/08/2018,Science Group - Delivery Function,Non-staff travel and subsistance,Non Employee Expenses Supplier,98258930,148.00,Science Group - Delivery Function
BEIS,UKRI - BBSRC,13/08/2018,Science Group - Delivery Function,Non-staff travel and subsistance,Non Employee Expenses Supplier,98258931,145.90,Science Group - Delivery Function
BEIS,UKRI - BBSRC,13/08/2018,Science Group - Delivery Function,Non-staff travel and subsistance,Non Employee Expenses Supplier,98258932,346.02,Science Group - Delivery Function
BEIS,UKRI - BBSRC,13/08/2018,Science Group - Delivery Function,Non-staff travel and subsistance,Non Employee Expenses Supplier,98258933,113.30,Science Group - Delivery Function
BEIS,UKRI - BBSRC,13/08/2018,Science Group - Delivery Function,Non-staff travel and subsistance,Non Employee Expenses Supplier,98258934,158.60,Science Group - Delivery Function
BEIS,UKRI - BBSRC,13/08/2018,Science Group - Delivery Function,Non-staff travel and subsistance,Non Employee Expenses Supplier,98258935,112.23,Science Group - Delivery Function
BEIS,UKRI - BBSRC,13/08/2018,Science Group - Delivery Function,Non-staff travel and subsistance,Non Employee Expenses Supplier,98258936,130.40,Science Group - Delivery Function
BEIS,UKRI - BBSRC,13/08/2018,Science Group - Delivery Function,Non-staff travel and subsistance,Non Employee Expenses Supplier,98258937,294.75,Science Group - Delivery Function
BEIS,UKRI - BBSRC,13/08/2018,Science Group - Delivery Function,Non-staff travel and subsistance,Non Employee Expenses Supplier,98258938,70.20,Science Group - Delivery Function
BEIS,UKRI - BBSRC,13/08/2018,Science Group - Delivery Function,Non-staff travel and subsistance,Non Employee Expenses Supplier,98258939,110.00,Science Group - Delivery Function
BEIS,UKRI - BBSRC,13/08/2018,Science Group - Delivery Function,Non-staff travel and subsistance,Non Employee Expenses Supplier,98258940,147.28,Science Group - Delivery Function
BEIS,UKRI - BBSRC,13/08/2018,Science Group - Delivery Function,Non-staff travel and subsistance,Non Employee Expenses Supplier,98258941,69.10,Science Group - Delivery Function
BEIS,UKRI - BBSRC,13/08/2018,Science Group - Delivery Function,Non-staff travel and subsistance,Non Employee Expenses Supplier,98258942,50.40,Science Group - Delivery Function
BEIS,UKRI - BBSRC,13/08/2018,Science Group - Delivery Function,Non-staff travel and subsistance,Non Employee Expenses Supplier,98258943,110.00,Science Group - Delivery Function
BEIS,UKRI - BBSRC,13/08/2018,Science Group - Delivery Function,Non-staff travel and subsistance,Non Employee Expenses Supplier,98258944,57.85,Science Group - Delivery Function
BEIS,UKRI - BBSRC,13/08/2018,Science Group - Delivery Function,Non-staff travel and subsistance,Non Employee Expenses Supplier,98258945,93.60,Science Group - Delivery Function
BEIS,UKRI - BBSRC,13/08/2018,Science Group - Delivery Function,Non-staff travel and subsistance,Non Employee Expenses Supplier,98258946,115.20,Science Group - Delivery Function
BEIS,UKRI - BBSRC,13/08/2018,Science Group - Delivery Function,Non-staff travel and subsistance,Non Employee Expenses Supplier,98258947,154.05,Science Group - Delivery Function
BEIS,UKRI - BBSRC,13/08/2018,Science Group - Delivery Function,Non-staff travel and subsistance,Non Employee Expenses Supplier,98258948,158.00,Science Group - Delivery Function
BEIS,UKRI - BBSRC,13/08/2018,Science Group - Delivery Function,Non-staff travel and subsistance,Non Employee Expenses Supplier,98258949,82.35,Science Group - Delivery Function
BEIS,UKRI - BBSRC,16/08/2018,Science Group - Delivery Function,Non-staff travel and subsistance,Non Employee Expenses Supplier,98261702,63.00,Science Group - Delivery Function
BEIS,UKRI - BBSRC,16/08/2018,Science Group - Delivery Function,Non-staff travel and subsistance,Non Employee Expenses Supplier,98261703,223.54,Science Group - Delivery Function
BEIS,UKRI - BBSRC,16/08/2018,Science Group - Delivery Function,Non-staff travel and subsistance,Non Employee Expenses Supplier,98261704,68.60,Science Group - Delivery Function
BEIS,UKRI - BBSRC,16/08/2018,Science Group - Delivery Function,Non-staff travel and subsistance,Non Employee Expenses Supplier,98261705,63.80,Science Group - Delivery Function
BEIS,UKRI - BBSRC,16/08/2018,Science Group - Delivery Function,Non-staff travel and subsistance,Non Employee Expenses Supplier,98261706,195.05,Science Group - Delivery Function
BEIS,UKRI - BBSRC,16/08/2018,Science Group - Delivery Function,Non-staff travel and subsistance,Non Employee Expenses Supplier,98261707,45.70,Science Group - Delivery Function
BEIS,UKRI - BBSRC,16/08/2018,Science Group - Delivery Function,Non-staff travel and subsistance,Non Employee Expenses Supplier,98261708,59.10,Science Group - Delivery Function
BEIS,UKRI - BBSRC,16/08/2018,Science Group - Delivery Function,Non-staff travel and subsistance,Non Employee Expenses Supplier,98261709,100.90,Science Group - Delivery Function
BEIS,UKRI - BBSRC,16/08/2018,Science Group - Delivery Function,Non-staff travel and subsistance,Non Employee Expenses Supplier,98261710,156.90,Science Group - Delivery Function
BEIS,UKRI - BBSRC,16/08/2018,Science Group - Delivery Function,Non-staff travel and subsistance,Non Employee Expenses Supplier,98261711,200.18,Science Group - Delivery Function
BEIS,UKRI - BBSRC,16/08/2018,Science Group - Delivery Function,Non-staff travel and subsistance,Non Employee Expenses Supplier,98261713,70.40,Science Group - Delivery Function
BEIS,UKRI - BBSRC,16/08/2018,Science Group - Delivery Function,Non-staff travel and subsistance,Non Employee Expenses Supplier,98261718,110.00,Science Group - Delivery Function
BEIS,UKRI - BBSRC,21/08/2018,Science Group - Delivery Function,Non-staff travel and subsistance,Non Employee Expenses Supplier,98265750,75.20,Science Group - Delivery Function
BEIS,UKRI - BBSRC,21/08/2018,Science Group - Delivery Function,Non-staff travel and subsistance,Non Employee Expenses Supplier,98265751,268.43,Science Group - Delivery Function
BEIS,UKRI - BBSRC,22/08/2018,Science Group - Delivery Function,Non-staff travel and subsistance,Non Employee Expenses Supplier,98262640,796.16,Science Group - Delivery Function
BEIS,UKRI - BBSRC,23/08/2018,Science Group - Delivery Function,Non-staff travel and subsistance,Non Employee Expenses Supplier,98267675,8.10,Science Group - Delivery Function
BEIS,UKRI - BBSRC,24/08/2018,Science Group - Delivery Function,Non-staff travel and subsistance,Non Employee Expenses Supplier,98267950,64.80,Science Group - Delivery Function
BEIS,UKRI - BBSRC,28/08/2018,Science Group - Delivery Function,Other Programme Costs,Non Employee Expenses Supplier,98267605,708.10,Science Group - Delivery Function
BEIS,UKRI - BBSRC,30/08/2018,PDG - Director,Other Staff Benefits,Officedrop Ltd,98269060,336.00,PDG - Director
BEIS,UKRI - BBSRC,08/08/2018,PDG - Director,Recruitment Costs,Onefix Recruitment Ltd,98256692,250.00,PDG - Director
BEIS,UKRI - BBSRC,28/08/2018,JBOS - Maintenance,Security Services,OSE Security Systems Ltd,98265282,"1,214.40",JBOS - Maintenance
BEIS,UKRI - BBSRC,30/08/2018,JBOS - Maintenance,Security Services,OSE Security Systems Ltd,98270471,"1,144.80",JBOS - Maintenance
BEIS,UKRI - BBSRC,15/08/2018,Balance Sheet,Union Deductions,PCS Union,98259426,180.05,Balance Sheet
BEIS,UKRI - BBSRC,15/08/2018,JBOS Health and Safety,Health & Safety (inc. Medicals & Opticians),Posturite Ltd,98261291,423.36,JBOS Health and Safety
BEIS,UKRI - BBSRC,28/08/2018,JBOS Health and Safety,Health & Safety (inc. Medicals & Opticians),Posturite Ltd,98268332,83.94,JBOS Health and Safety
BEIS,UKRI - BBSRC,15/08/2018,PDG - Director,Health & Safety (inc. Medicals & Opticians),Posturite Ltd,98261295,161.96,PDG - Director
BEIS,UKRI - BBSRC,15/08/2018,PDG - Director,Health & Safety (inc. Medicals & Opticians),Posturite Ltd,98261295,-305.82,PDG - Director
BEIS,UKRI - BBSRC,28/08/2018,PDG - Director,Health & Safety (inc. Medicals & Opticians),Posturite Ltd,98268330,29.94,PDG - Director
BEIS,UKRI - BBSRC,15/08/2018,FG - Estates,Legal & Professional Services,Powis Hughes Ltd,98260285,79.70,FG - Estates
BEIS,UKRI - BBSRC,15/08/2018,FG - Estates,Legal & Professional Services,Powis Hughes Ltd,98261135,79.69,FG - Estates
BEIS,UKRI - BBSRC,20/08/2018,JBOS Health and Safety,Safety Materials & Equipment,Premier Farnell UK Ltd T/A Farnell Onecall,98261951,9.58,JBOS Health and Safety
BEIS,UKRI - BBSRC,17/08/2018,IFR,International Awards - Non Capital,Quadram Institute Bioscience,98252746,0.46,IFR
BEIS,UKRI - BBSRC,17/08/2018,IFR,International Awards - Non Capital,Quadram Institute Bioscience,98252746,"162,572.57",IFR
BEIS,UKRI - BBSRC,17/08/2018,IFR,Research Institutes - Capital Grants: Major Works,Quadram Institute Bioscience,98252303,"121,516.00",IFR
BEIS,UKRI - BBSRC,17/08/2018,IFR,Research Institutes - Competitive Strategic Grant,Quadram Institute Bioscience,98257311,"328,623.18",IFR
BEIS,UKRI - BBSRC,17/08/2018,IFR,Research Institutes - Competitive Strategic Grant,Quadram Institute Bioscience,98257311,"46,083.29",IFR
BEIS,UKRI - BBSRC,17/08/2018,IFR,Research Institutes - Competitive Strategic Grant,Quadram Institute Bioscience,98257311,"304,426.20",IFR
BEIS,UKRI - BBSRC,17/08/2018,IFR,Research Institutes - Competitive Strategic Grant,Quadram Institute Bioscience,98257311,"5,833.33",IFR
BEIS,UKRI - BBSRC,15/08/2018,Balance Sheet,Voluntary Deductions,Ramsden Fund,98259433,230.70,Balance Sheet
BEIS,UKRI - BBSRC,20/08/2018,JBOS - Administration,Printing & Stationery,Rapid Electronics Ltd,98263928,7.50,JBOS - Administration
BEIS,UKRI - BBSRC,23/08/2018,JBOS - Administration,Printing & Stationery,Rapid Electronics Ltd,98266886,6.05,JBOS - Administration
BEIS,UKRI - BBSRC,22/08/2018,PDG - Director,Staff Training,Roffey Park Institute Ltd,98251222,655.20,PDG - Director
BEIS,UKRI - BBSRC,17/08/2018,Rothamsted Research,Institute Grant Expenditure,Rothamsted Research Ltd,98258590,"49,250.00",Rothamsted Research
BEIS,UKRI - BBSRC,03/08/2018,Rothamsted Research,Research Grant Expenditure,Rothamsted Research Ltd,98251788,"149,419.40",Rothamsted Research
BEIS,UKRI - BBSRC,17/08/2018,Rothamsted Research,Research Grant Expenditure,Rothamsted Research Ltd,98259851,"141,940.99",Rothamsted Research
BEIS,UKRI - BBSRC,10/08/2018,Rothamsted Research,Research Institutes - Capital Grants: Minor Works,Rothamsted Research Ltd,98251792,"20,713.81",Rothamsted Research
BEIS,UKRI - BBSRC,10/08/2018,TGAC,Research Institutes - Capital Grants: Minor Works,Rothamsted Research Ltd,98251790,"197,153.30",TGAC
BEIS,UKRI - BBSRC,17/08/2018,Rothamsted Research,Research Institutes - Competitive Strategic Grant,Rothamsted Research Ltd,98258988,"110,672.84",Rothamsted Research
BEIS,UKRI - BBSRC,17/08/2018,Rothamsted Research,Research Institutes - Competitive Strategic Grant,Rothamsted Research Ltd,98258988,"416,233.45",Rothamsted Research
BEIS,UKRI - BBSRC,17/08/2018,Rothamsted Research,Research Institutes - Competitive Strategic Grant,Rothamsted Research Ltd,98258988,"64,329.25",Rothamsted Research
BEIS,UKRI - BBSRC,17/08/2018,Rothamsted Research,Research Institutes - Competitive Strategic Grant,Rothamsted Research Ltd,98258988,"195,972.09",Rothamsted Research
BEIS,UKRI - BBSRC,17/08/2018,Rothamsted Research,Research Institutes - Competitive Strategic Grant,Rothamsted Research Ltd,98258988,"7,046.37",Rothamsted Research
BEIS,UKRI - BBSRC,29/08/2018,FG - Accounts & Business Planning,Non-staff travel and subsistance,Science Foundation Ireland,98268496,195.39,FG - Accounts & Business Planning
BEIS,UKRI - BBSRC,28/08/2018,JBOS - Maintenance,Mechanical & Electrical Maintenance,Screenlink Sound and Vision,98261531,801.79,JBOS - Maintenance
BEIS,UKRI - BBSRC,22/08/2018,CIMG - Information Systems,IT Cloud Services,Softcat plc,98265006,196.34,CIMG - Information Systems
BEIS,UKRI - BBSRC,15/08/2018,JBOS Health and Safety,Staff Training,St John Ambulance Wiltshire,98261002,"1,860.00",JBOS Health and Safety
BEIS,UKRI - BBSRC,23/08/2018,JBOS Health and Safety,Staff Training,St John Ambulance Wiltshire,98266572,464.40,JBOS Health and Safety
BEIS,UKRI - BBSRC,23/08/2018,JBOS Health and Safety,Staff Training,St John Ambulance Wiltshire,98266573,"1,350.00",JBOS Health and Safety
BEIS,UKRI - BBSRC,30/08/2018,JBOS - Maintenance,Rates,Swindon Borough Council,98271653,"12,226.00",JBOS - Maintenance
BEIS,UKRI - BBSRC,03/08/2018,PDG - Director,Staff Training,Swindon College,98253918,-350.00,PDG - Director
BEIS,UKRI - BBSRC,22/08/2018,PDG - Director,Health & Safety (inc. Medicals & Opticians),Swindon Occupational Medical Services Ltd,98262516,900.00,PDG - Director
BEIS,UKRI - BBSRC,28/08/2018,Balance Sheet,Voluntary Deductions,Swindon Office Sports and Social Club,98259427,174.00,Balance Sheet
BEIS,UKRI - BBSRC,28/08/2018,Innovation and Skills Group CDSU,Research Grant Expenditure,Technology Strategy Board (Innovate UK),98266985,"54,725.43",Innovation and Skills Group CDSU
BEIS,UKRI - BBSRC,30/08/2018,CE - Chief Executive,Mobile Phone Costs,Telefonica UK Ltd (O2),98269579,6.25,CE - Chief Executive
BEIS,UKRI - BBSRC,30/08/2018,CE - Chief Executive,Mobile Phone Costs,Telefonica UK Ltd (O2),98269579,42.25,CE - Chief Executive
BEIS,UKRI - BBSRC,30/08/2018,CE - Chief Executive,Mobile Phone Costs,Telefonica UK Ltd (O2),98269579,35.00,CE - Chief Executive
BEIS,UKRI - BBSRC,30/08/2018,CE - Chief Executive,Mobile Phone Costs,Telefonica UK Ltd (O2),98269579,5.41,CE - Chief Executive
BEIS,UKRI - BBSRC,30/08/2018,CE - Chief Executive,Mobile Phone Costs,Telefonica UK Ltd (O2),98269579,5.00,CE - Chief Executive
BEIS,UKRI - BBSRC,30/08/2018,CE - Chief Executive,Mobile Phone Costs,Telefonica UK Ltd (O2),98269579,5.58,CE - Chief Executive
BEIS,UKRI - BBSRC,30/08/2018,CE - CPS,Mobile Phone Costs,Telefonica UK Ltd (O2),98269579,5.00,CE - CPS
BEIS,UKRI - BBSRC,30/08/2018,CE - CPS,Mobile Phone Costs,Telefonica UK Ltd (O2),98269579,6.25,CE - CPS
BEIS,UKRI - BBSRC,30/08/2018,CE - CPS,Mobile Phone Costs,Telefonica UK Ltd (O2),98269579,5.00,CE - CPS
BEIS,UKRI - BBSRC,30/08/2018,CE - CPS,Mobile Phone Costs,Telefonica UK Ltd (O2),98269579,6.25,CE - CPS
BEIS,UKRI - BBSRC,30/08/2018,CE - CPS,Mobile Phone Costs,Telefonica UK Ltd (O2),98269579,5.69,CE - CPS
BEIS,UKRI - BBSRC,30/08/2018,CE - CPS,Mobile Phone Costs,Telefonica UK Ltd (O2),98269579,5.00,CE - CPS
BEIS,UKRI - BBSRC,30/08/2018,CE - CPS,Mobile Phone Costs,Telefonica UK Ltd (O2),98269579,5.00,CE - CPS
BEIS,UKRI - BBSRC,30/08/2018,CE - CPS,Mobile Phone Costs,Telefonica UK Ltd (O2),98269579,5.00,CE - CPS
BEIS,UKRI - BBSRC,30/08/2018,CE - CPS,Mobile Phone Costs,Telefonica UK Ltd (O2),98269579,5.39,CE - CPS
BEIS,UKRI - BBSRC,30/08/2018,CE - CPS,Mobile Phone Costs,Telefonica UK Ltd (O2),98269579,3.25,CE - CPS
BEIS,UKRI - BBSRC,30/08/2018,CE - IRU,Mobile Phone Costs,Telefonica UK Ltd (O2),98269579,5.43,CE - IRU
BEIS,UKRI - BBSRC,30/08/2018,CE - IRU,Mobile Phone Costs,Telefonica UK Ltd (O2),98269579,5.00,CE - IRU
BEIS,UKRI - BBSRC,30/08/2018,CE - IRU,Mobile Phone Costs,Telefonica UK Ltd (O2),98269579,20.00,CE - IRU
BEIS,UKRI - BBSRC,30/08/2018,CE - IRU,Mobile Phone Costs,Telefonica UK Ltd (O2),98269579,11.62,CE - IRU
BEIS,UKRI - BBSRC,30/08/2018,CE - IRU,Mobile Phone Costs,Telefonica UK Ltd (O2),98269579,5.00,CE - IRU
BEIS,UKRI - BBSRC,30/08/2018,CE - IRU,Mobile Phone Costs,Telefonica UK Ltd (O2),98269579,6.25,CE - IRU
BEIS,UKRI - BBSRC,30/08/2018,CE - IRU,Mobile Phone Costs,Telefonica UK Ltd (O2),98269579,6.25,CE - IRU
BEIS,UKRI - BBSRC,30/08/2018,CE - IRU,Mobile Phone Costs,Telefonica UK Ltd (O2),98269579,54.17,CE - IRU
BEIS,UKRI - BBSRC,30/08/2018,CE - IRU,Mobile Phone Costs,Telefonica UK Ltd (O2),98269579,15.92,CE - IRU
BEIS,UKRI - BBSRC,30/08/2018,CE - IRU,Mobile Phone Costs,Telefonica UK Ltd (O2),98269579,6.25,CE - IRU
BEIS,UKRI - BBSRC,30/08/2018,CE - IRU,Mobile Phone Costs,Telefonica UK Ltd (O2),98269579,5.00,CE - IRU
BEIS,UKRI - BBSRC,30/08/2018,CE - IRU,Mobile Phone Costs,Telefonica UK Ltd (O2),98269579,9.09,CE - IRU
BEIS,UKRI - BBSRC,30/08/2018,CE - IRU,Mobile Phone Costs,Telefonica UK Ltd (O2),98269579,13.09,CE - IRU
BEIS,UKRI - BBSRC,30/08/2018,CIMG - Council Secretariat,Mobile Phone Costs,Telefonica UK Ltd (O2),98269579,5.00,CIMG - Council Secretariat
BEIS,UKRI - BBSRC,30/08/2018,CIMG - Council Secretariat,Mobile Phone Costs,Telefonica UK Ltd (O2),98269579,1.00,CIMG - Council Secretariat
BEIS,UKRI - BBSRC,30/08/2018,CIMG - Director,Mobile Phone Costs,Telefonica UK Ltd (O2),98269579,6.25,CIMG - Director
BEIS,UKRI - BBSRC,30/08/2018,CIMG - Director,Mobile Phone Costs,Telefonica UK Ltd (O2),98269579,5.00,CIMG - Director
BEIS,UKRI - BBSRC,30/08/2018,CIMG - Director,Mobile Phone Costs,Telefonica UK Ltd (O2),98269579,2.25,CIMG - Director
BEIS,UKRI - BBSRC,30/08/2018,CIMG - External Relations,Mobile Phone Costs,Telefonica UK Ltd (O2),98269579,5.00,CIMG - External Relations
BEIS,UKRI - BBSRC,30/08/2018,CIMG - External Relations,Mobile Phone Costs,Telefonica UK Ltd (O2),98269579,5.00,CIMG - External Relations
BEIS,UKRI - BBSRC,30/08/2018,CIMG - External Relations,Mobile Phone Costs,Telefonica UK Ltd (O2),98269579,6.25,CIMG - External Relations
BEIS,UKRI - BBSRC,30/08/2018,CIMG - External Relations,Mobile Phone Costs,Telefonica UK Ltd (O2),98269579,5.11,CIMG - External Relations
BEIS,UKRI - BBSRC,30/08/2018,CIMG - External Relations,Mobile Phone Costs,Telefonica UK Ltd (O2),98269579,6.25,CIMG - External Relations
BEIS,UKRI - BBSRC,30/08/2018,CIMG - External Relations,Mobile Phone Costs,Telefonica UK Ltd (O2),98269579,5.00,CIMG - External Relations
BEIS,UKRI - BBSRC,30/08/2018,CIMG - External Relations,Mobile Phone Costs,Telefonica UK Ltd (O2),98269579,8.00,CIMG - External Relations
BEIS,UKRI - BBSRC,30/08/2018,CIMG - External Relations,Mobile Phone Costs,Telefonica UK Ltd (O2),98269579,8.00,CIMG - External Relations
BEIS,UKRI - BBSRC,30/08/2018,CIMG - External Relations,Mobile Phone Costs,Telefonica UK Ltd (O2),98269579,5.00,CIMG - External Relations
BEIS,UKRI - BBSRC,30/08/2018,CIMG - External Relations,Mobile Phone Costs,Telefonica UK Ltd (O2),98269579,5.00,CIMG - External Relations
BEIS,UKRI - BBSRC,30/08/2018,CIMG - External Relations,Mobile Phone Costs,Telefonica UK Ltd (O2),98269579,5.00,CIMG - External Relations
BEIS,UKRI - BBSRC,30/08/2018,CIMG - External Relations,Mobile Phone Costs,Telefonica UK Ltd (O2),98269579,12.72,CIMG - External Relations
BEIS,UKRI - BBSRC,30/08/2018,CIMG - Information Systems,Mobile Phone Costs,Telefonica UK Ltd (O2),98269579,5.00,CIMG - Information Systems
BEIS,UKRI - BBSRC,30/08/2018,CIMG - Information Systems,Mobile Phone Costs,Telefonica UK Ltd (O2),98269579,6.25,CIMG - Information Systems
BEIS,UKRI - BBSRC,30/08/2018,CIMG - Information Systems,Mobile Phone Costs,Telefonica UK Ltd (O2),98269579,5.00,CIMG - Information Systems
BEIS,UKRI - BBSRC,30/08/2018,CIMG - Information Systems,Mobile Phone Costs,Telefonica UK Ltd (O2),98269579,5.00,CIMG - Information Systems
BEIS,UKRI - BBSRC,30/08/2018,CIMG - Information Systems,Mobile Phone Costs,Telefonica UK Ltd (O2),98269579,4.25,CIMG - Information Systems
BEIS,UKRI - BBSRC,30/08/2018,CIMG - Programme Office,Mobile Phone Costs,Telefonica UK Ltd (O2),98269579,5.58,CIMG - Programme Office
BEIS,UKRI - BBSRC,30/08/2018,CIMG - Programme Office,Mobile Phone Costs,Telefonica UK Ltd (O2),98269579,1.12,CIMG - Programme Office
BEIS,UKRI - BBSRC,30/08/2018,FG - Director,Mobile Phone Costs,Telefonica UK Ltd (O2),98269579,5.00,FG - Director
BEIS,UKRI - BBSRC,30/08/2018,FG - Director,Mobile Phone Costs,Telefonica UK Ltd (O2),98269579,6.25,FG - Director
BEIS,UKRI - BBSRC,30/08/2018,FG - Director,Mobile Phone Costs,Telefonica UK Ltd (O2),98269579,6.25,FG - Director
BEIS,UKRI - BBSRC,30/08/2018,FG - Director,Mobile Phone Costs,Telefonica UK Ltd (O2),98269579,6.25,FG - Director
BEIS,UKRI - BBSRC,30/08/2018,FG - Director,Mobile Phone Costs,Telefonica UK Ltd (O2),98269579,5.00,FG - Director
BEIS,UKRI - BBSRC,30/08/2018,FG - Director,Mobile Phone Costs,Telefonica UK Ltd (O2),98269579,5.75,FG - Director
BEIS,UKRI - BBSRC,30/08/2018,FG - Estates,Mobile Phone Costs,Telefonica UK Ltd (O2),98269579,5.00,FG - Estates
BEIS,UKRI - BBSRC,30/08/2018,FG - Estates,Mobile Phone Costs,Telefonica UK Ltd (O2),98269579,6.25,FG - Estates
BEIS,UKRI - BBSRC,30/08/2018,FG - Estates,Mobile Phone Costs,Telefonica UK Ltd (O2),98269579,6.25,FG - Estates
BEIS,UKRI - BBSRC,30/08/2018,FG - Estates,Mobile Phone Costs,Telefonica UK Ltd (O2),98269579,-4.77,FG - Estates
BEIS,UKRI - BBSRC,30/08/2018,FG - Estates,Mobile Phone Costs,Telefonica UK Ltd (O2),98269579,5.50,FG - Estates
BEIS,UKRI - BBSRC,30/08/2018,FG - Estates,Mobile Phone Costs,Telefonica UK Ltd (O2),98269579,5.00,FG - Estates
BEIS,UKRI - BBSRC,30/08/2018,FG - Estates,Mobile Phone Costs,Telefonica UK Ltd (O2),98269579,5.00,FG - Estates
BEIS,UKRI - BBSRC,30/08/2018,FG - Estates,Mobile Phone Costs,Telefonica UK Ltd (O2),98269579,5.00,FG - Estates
BEIS,UKRI - BBSRC,30/08/2018,FG - Estates,Mobile Phone Costs,Telefonica UK Ltd (O2),98269579,-0.66,FG - Estates
BEIS,UKRI - BBSRC,30/08/2018,FG - Estates,Mobile Phone Costs,Telefonica UK Ltd (O2),98269579,1.00,FG - Estates
BEIS,UKRI - BBSRC,30/08/2018,FG - Estates,Mobile Phone Costs,Telefonica UK Ltd (O2),98269579,5.52,FG - Estates
BEIS,UKRI - BBSRC,30/08/2018,FG - RCUK Assurance,Mobile Phone Costs,Telefonica UK Ltd (O2),98269579,72.50,FG - RCUK Assurance
BEIS,UKRI - BBSRC,30/08/2018,FG - RCUK Assurance,Mobile Phone Costs,Telefonica UK Ltd (O2),98269579,6.25,FG - RCUK Assurance
BEIS,UKRI - BBSRC,30/08/2018,FG - RCUK Assurance,Mobile Phone Costs,Telefonica UK Ltd (O2),98269579,6.25,FG - RCUK Assurance
BEIS,UKRI - BBSRC,30/08/2018,FG - RCUK Assurance,Mobile Phone Costs,Telefonica UK Ltd (O2),98269579,3.50,FG - RCUK Assurance
BEIS,UKRI - BBSRC,30/08/2018,Innovation and Skills Group,Mobile Phone Costs,Telefonica UK Ltd (O2),98269579,5.00,Innovation and Skills Group
BEIS,UKRI - BBSRC,30/08/2018,Innovation and Skills Group,Mobile Phone Costs,Telefonica UK Ltd (O2),98269579,5.00,Innovation and Skills Group
BEIS,UKRI - BBSRC,30/08/2018,Innovation and Skills Group,Mobile Phone Costs,Telefonica UK Ltd (O2),98269579,5.00,Innovation and Skills Group
BEIS,UKRI - BBSRC,30/08/2018,Innovation and Skills Group,Mobile Phone Costs,Telefonica UK Ltd (O2),98269579,5.00,Innovation and Skills Group
BEIS,UKRI - BBSRC,30/08/2018,Innovation and Skills Group,Mobile Phone Costs,Telefonica UK Ltd (O2),98269579,5.00,Innovation and Skills Group
BEIS,UKRI - BBSRC,30/08/2018,Innovation and Skills Group,Mobile Phone Costs,Telefonica UK Ltd (O2),98269579,5.00,Innovation and Skills Group
BEIS,UKRI - BBSRC,30/08/2018,Innovation and Skills Group,Mobile Phone Costs,Telefonica UK Ltd (O2),98269579,6.25,Innovation and Skills Group
BEIS,UKRI - BBSRC,30/08/2018,Innovation and Skills Group,Mobile Phone Costs,Telefonica UK Ltd (O2),98269579,5.00,Innovation and Skills Group
BEIS,UKRI - BBSRC,30/08/2018,Innovation and Skills Group,Mobile Phone Costs,Telefonica UK Ltd (O2),98269579,6.25,Innovation and Skills Group
BEIS,UKRI - BBSRC,30/08/2018,Innovation and Skills Group,Mobile Phone Costs,Telefonica UK Ltd (O2),98269579,5.00,Innovation and Skills Group
BEIS,UKRI - BBSRC,30/08/2018,Innovation and Skills Group,Mobile Phone Costs,Telefonica UK Ltd (O2),98269579,6.25,Innovation and Skills Group
BEIS,UKRI - BBSRC,30/08/2018,Innovation and Skills Group,Mobile Phone Costs,Telefonica UK Ltd (O2),98269579,6.25,Innovation and Skills Group
BEIS,UKRI - BBSRC,30/08/2018,Innovation and Skills Group,Mobile Phone Costs,Telefonica UK Ltd (O2),98269579,5.00,Innovation and Skills Group
BEIS,UKRI - BBSRC,30/08/2018,Innovation and Skills Group,Mobile Phone Costs,Telefonica UK Ltd (O2),98269579,5.00,Innovation and Skills Group
BEIS,UKRI - BBSRC,30/08/2018,Innovation and Skills Group,Mobile Phone Costs,Telefonica UK Ltd (O2),98269579,5.00,Innovation and Skills Group
BEIS,UKRI - BBSRC,30/08/2018,Innovation and Skills Group,Mobile Phone Costs,Telefonica UK Ltd (O2),98269579,5.00,Innovation and Skills Group
BEIS,UKRI - BBSRC,30/08/2018,Innovation and Skills Group,Mobile Phone Costs,Telefonica UK Ltd (O2),98269579,11.62,Innovation and Skills Group
BEIS,UKRI - BBSRC,30/08/2018,Innovation and Skills Group,Mobile Phone Costs,Telefonica UK Ltd (O2),98269579,5.00,Innovation and Skills Group
BEIS,UKRI - BBSRC,30/08/2018,Innovation and Skills Group,Mobile Phone Costs,Telefonica UK Ltd (O2),98269579,5.00,Innovation and Skills Group
BEIS,UKRI - BBSRC,30/08/2018,Innovation and Skills Group,Mobile Phone Costs,Telefonica UK Ltd (O2),98269579,5.00,Innovation and Skills Group
BEIS,UKRI - BBSRC,30/08/2018,Innovation and Skills Group,Mobile Phone Costs,Telefonica UK Ltd (O2),98269579,5.00,Innovation and Skills Group
BEIS,UKRI - BBSRC,30/08/2018,Innovation and Skills Group,Mobile Phone Costs,Telefonica UK Ltd (O2),98269579,5.00,Innovation and Skills Group
BEIS,UKRI - BBSRC,30/08/2018,Innovation and Skills Group,Mobile Phone Costs,Telefonica UK Ltd (O2),98269579,5.00,Innovation and Skills Group
BEIS,UKRI - BBSRC,30/08/2018,Innovation and Skills Group,Mobile Phone Costs,Telefonica UK Ltd (O2),98269579,6.25,Innovation and Skills Group
BEIS,UKRI - BBSRC,30/08/2018,Innovation and Skills Group,Mobile Phone Costs,Telefonica UK Ltd (O2),98269579,26.57,Innovation and Skills Group
BEIS,UKRI - BBSRC,30/08/2018,PDG - Director,Mobile Phone Costs,Telefonica UK Ltd (O2),98269579,5.00,PDG - Director
BEIS,UKRI - BBSRC,30/08/2018,PDG - Director,Mobile Phone Costs,Telefonica UK Ltd (O2),98269579,6.25,PDG - Director
BEIS,UKRI - BBSRC,30/08/2018,PDG - Director,Mobile Phone Costs,Telefonica UK Ltd (O2),98269579,5.00,PDG - Director
BEIS,UKRI - BBSRC,30/08/2018,PDG - Director,Mobile Phone Costs,Telefonica UK Ltd (O2),98269579,3.25,PDG - Director
BEIS,UKRI - BBSRC,30/08/2018,RISD - UKRO,Mobile Phone Costs,Telefonica UK Ltd (O2),98269579,5.57,RISD - UKRO
BEIS,UKRI - BBSRC,30/08/2018,RISD - UKRO,Mobile Phone Costs,Telefonica UK Ltd (O2),98269579,1.11,RISD - UKRO
BEIS,UKRI - BBSRC,30/08/2018,Science Group,Mobile Phone Costs,Telefonica UK Ltd (O2),98269579,6.25,Science Group
BEIS,UKRI - BBSRC,30/08/2018,Science Group,Mobile Phone Costs,Telefonica UK Ltd (O2),98269579,5.00,Science Group
BEIS,UKRI - BBSRC,30/08/2018,Science Group,Mobile Phone Costs,Telefonica UK Ltd (O2),98269579,8.00,Science Group
BEIS,UKRI - BBSRC,30/08/2018,Science Group,Mobile Phone Costs,Telefonica UK Ltd (O2),98269579,1.75,Science Group
BEIS,UKRI - BBSRC,30/08/2018,Science Group,Mobile Phone Costs,Telefonica UK Ltd (O2),98269579,5.00,Science Group
BEIS,UKRI - BBSRC,30/08/2018,Science Group,Mobile Phone Costs,Telefonica UK Ltd (O2),98269579,5.00,Science Group
BEIS,UKRI - BBSRC,30/08/2018,Science Group,Mobile Phone Costs,Telefonica UK Ltd (O2),98269579,5.00,Science Group
BEIS,UKRI - BBSRC,30/08/2018,Science Group,Mobile Phone Costs,Telefonica UK Ltd (O2),98269579,5.00,Science Group
BEIS,UKRI - BBSRC,30/08/2018,Science Group,Mobile Phone Costs,Telefonica UK Ltd (O2),98269579,5.00,Science Group
BEIS,UKRI - BBSRC,30/08/2018,Science Group,Mobile Phone Costs,Telefonica UK Ltd (O2),98269579,6.25,Science Group
BEIS,UKRI - BBSRC,30/08/2018,Science Group,Mobile Phone Costs,Telefonica UK Ltd (O2),98269579,5.00,Science Group
BEIS,UKRI - BBSRC,30/08/2018,Science Group,Mobile Phone Costs,Telefonica UK Ltd (O2),98269579,5.00,Science Group
BEIS,UKRI - BBSRC,30/08/2018,Science Group,Mobile Phone Costs,Telefonica UK Ltd (O2),98269579,6.25,Science Group
BEIS,UKRI - BBSRC,30/08/2018,Science Group,Mobile Phone Costs,Telefonica UK Ltd (O2),98269579,5.00,Science Group
BEIS,UKRI - BBSRC,30/08/2018,Science Group,Mobile Phone Costs,Telefonica UK Ltd (O2),98269579,5.00,Science Group
BEIS,UKRI - BBSRC,30/08/2018,Science Group,Mobile Phone Costs,Telefonica UK Ltd (O2),98269579,6.25,Science Group
BEIS,UKRI - BBSRC,30/08/2018,Science Group,Mobile Phone Costs,Telefonica UK Ltd (O2),98269579,5.00,Science Group
BEIS,UKRI - BBSRC,30/08/2018,Science Group,Mobile Phone Costs,Telefonica UK Ltd (O2),98269579,6.25,Science Group
BEIS,UKRI - BBSRC,30/08/2018,Science Group,Mobile Phone Costs,Telefonica UK Ltd (O2),98269579,19.20,Science Group
BEIS,UKRI - BBSRC,24/08/2018,Pirbright,International Awards - Non Capital,The Pirbright Institute,98253945,"103,591.93",Pirbright
BEIS,UKRI - BBSRC,24/08/2018,Pirbright,International Awards - Non Capital,The Pirbright Institute,98254748,"99,097.00",Pirbright
BEIS,UKRI - BBSRC,24/08/2018,Pirbright,Research Institutes - Capital Grants: Major Works,The Pirbright Institute,98265461,"532,784.27",Pirbright
BEIS,UKRI - BBSRC,17/08/2018,Pirbright,Research Institutes - Competitive Strategic Grant,The Pirbright Institute,98255930,"820,583.33",Pirbright
BEIS,UKRI - BBSRC,17/08/2018,Pirbright,Research Institutes - Competitive Strategic Grant,The Pirbright Institute,98255930,"234,583.33",Pirbright
BEIS,UKRI - BBSRC,17/08/2018,Pirbright,Research Institutes - Competitive Strategic Grant,The Pirbright Institute,98255930,"33,333.33",Pirbright
BEIS,UKRI - BBSRC,17/08/2018,Pirbright,Research Institutes - Competitive Strategic Grant,The Pirbright Institute,98255930,"194,916.67",Pirbright
BEIS,UKRI - BBSRC,17/08/2018,Pirbright,Research Institutes - Competitive Strategic Grant,The Pirbright Institute,98255930,"4,166.67",Pirbright
BEIS,UKRI - BBSRC,24/08/2018,Babraham Institute,Subsidiaries Expenditure,The Pirbright Institute,98266282,"-16,740.00",Babraham Institute
BEIS,UKRI - BBSRC,09/08/2018,Innovation and Skills Group CDSU,Other Programme Costs,The United Kingdom Science Park Association,98255812,"1,662.00",Innovation and Skills Group CDSU
BEIS,UKRI - BBSRC,20/08/2018,Innovation and Skills Group,Subsidiaries Expenditure,The University of Manchester,98158546,"85,138.72",Innovation and Skills Group
BEIS,UKRI - BBSRC,20/08/2018,Innovation and Skills Group,Subsidiaries Expenditure,The University of Manchester,98263698,"-85,138.72",Innovation and Skills Group
BEIS,UKRI - BBSRC,10/08/2018,PDG - JSS,Legal & Professional Services,UK Atomic Energy Authority,98257597,"2,361.75",PDG - JSS
BEIS,UKRI - BBSRC,20/08/2018,PDG - JSS,Legal & Professional Services,UK Atomic Energy Authority,98263594,782.02,PDG - JSS
BEIS,UKRI - BBSRC,10/08/2018,Balance Sheet,VAT Input Tax Control (for UK VAT),UK Atomic Energy Authority,98257597,472.35,Balance Sheet
BEIS,UKRI - BBSRC,20/08/2018,Balance Sheet,VAT Input Tax Control (for UK VAT),UK Atomic Energy Authority,98263594,156.40,Balance Sheet
BEIS,UKRI - BBSRC,15/08/2018,RISD - UKRO,Realised Gains,UK Research Office,98259686,"42,670.21",RISD - UKRO
BEIS,UKRI - BBSRC,28/08/2018,PDG - Director,Recruitment Costs,UK Shared Business Services Ltd,98262015,32.43,PDG - Director
BEIS,UKRI - BBSRC,16/08/2018,PDG - Director,Staff Training,UK Shared Business Services Ltd,98244727,"1,686.74",PDG - Director
BEIS,UKRI - BBSRC,16/08/2018,PDG - Director,Staff Training,UK Shared Business Services Ltd,98262627,"4,152.26",PDG - Director
BEIS,UKRI - BBSRC,16/08/2018,PDG - Director,Staff Training,UK Shared Business Services Ltd,98262657,755.65,PDG - Director
BEIS,UKRI - BBSRC,16/08/2018,PDG - Director,Staff Training,UK Shared Business Services Ltd,98262705,"1,466.03",PDG - Director
BEIS,UKRI - BBSRC,16/08/2018,Innovation and Skills Group CDSU,Other Programme Costs,University of Bristol,98253048,843.17,Innovation and Skills Group CDSU
BEIS,UKRI - BBSRC,02/08/2018,EBRC (Roslin),International Awards - Non Capital,University of Edinburgh,98251731,"112,554.98",EBRC (Roslin)
BEIS,UKRI - BBSRC,17/08/2018,EBRC (Roslin),Research Institutes - Competitive Strategic Grant,University of Edinburgh,98261752,"277,179.92",EBRC (Roslin)
BEIS,UKRI - BBSRC,17/08/2018,EBRC (Roslin),Research Institutes - Competitive Strategic Grant,University of Edinburgh,98261752,"206,087.50",EBRC (Roslin)
BEIS,UKRI - BBSRC,17/08/2018,EBRC (Roslin),Research Institutes - Competitive Strategic Grant,University of Edinburgh,98261752,"5,833.33",EBRC (Roslin)
BEIS,UKRI - BBSRC,17/08/2018,Balance Sheet,GPC Clearing - BBSRC,Unspecified,98262167,-339.88,Balance Sheet
BEIS,UKRI - BBSRC,14/08/2018,CE - IRU,Health & Safety (inc. Medicals & Opticians),Unspecified,98260739,25.00,CE - IRU
BEIS,UKRI - BBSRC,16/08/2018,RISD - UKRO,Health & Safety (inc. Medicals & Opticians),Unspecified,98262869,20.00,RISD - UKRO
BEIS,UKRI - BBSRC,06/08/2018,PDG - Director,Legal & Professional Services,Unspecified,98249239,"1,550.00",PDG - Director
BEIS,UKRI - BBSRC,10/08/2018,CIMG - External Relations,Other Income,Unspecified,98256356,"1,896.66",CIMG - External Relations
BEIS,UKRI - BBSRC,09/08/2018,European Initiatives,T&S Overseas - Accommodation,Unspecified,98257307,6.50,European Initiatives
BEIS,UKRI - BBSRC,17/08/2018,CE - IRU,T&S Overseas - Public Transport,Unspecified,98262167,62.18,CE - IRU
BEIS,UKRI - BBSRC,17/08/2018,CE - IRU,T&S Overseas - Public Transport,Unspecified,98262167,173.60,CE - IRU
BEIS,UKRI - BBSRC,09/08/2018,European Initiatives,T&S Overseas - Public Transport,Unspecified,98257307,18.94,European Initiatives
BEIS,UKRI - BBSRC,09/08/2018,European Initiatives,T&S Overseas - Public Transport,Unspecified,98257307,37.94,European Initiatives
BEIS,UKRI - BBSRC,07/08/2018,FG - Accounts & Business Planning,T&S Overseas - Public Transport,Unspecified,98241249,3.72,FG - Accounts & Business Planning
BEIS,UKRI - BBSRC,03/08/2018,CE - Chief Executive,T&S Overseas - Subsistence,Unspecified,98252587,7.92,CE - Chief Executive
BEIS,UKRI - BBSRC,03/08/2018,CE - Chief Executive,T&S Overseas - Subsistence,Unspecified,98252587,24.34,CE - Chief Executive
BEIS,UKRI - BBSRC,03/08/2018,CE - Chief Executive,T&S Overseas - Subsistence,Unspecified,98252587,10.98,CE - Chief Executive
BEIS,UKRI - BBSRC,17/08/2018,CE - IRU,T&S Overseas - Subsistence,Unspecified,98262167,20.00,CE - IRU
BEIS,UKRI - BBSRC,17/08/2018,CE - IRU,T&S Overseas - Subsistence,Unspecified,98262167,100.70,CE - IRU
BEIS,UKRI - BBSRC,17/08/2018,CE - IRU,T&S Overseas - Subsistence,Unspecified,98262167,3.40,CE - IRU
BEIS,UKRI - BBSRC,09/08/2018,European Initiatives,T&S Overseas - Subsistence,Unspecified,98257307,10.00,European Initiatives
BEIS,UKRI - BBSRC,09/08/2018,European Initiatives,T&S Overseas - Subsistence,Unspecified,98257307,81.03,European Initiatives
BEIS,UKRI - BBSRC,09/08/2018,European Initiatives,T&S Overseas - Subsistence,Unspecified,98257307,3.92,European Initiatives
BEIS,UKRI - BBSRC,09/08/2018,European Initiatives,T&S Overseas - Subsistence,Unspecified,98257307,5.73,European Initiatives
BEIS,UKRI - BBSRC,07/08/2018,FG - Accounts & Business Planning,T&S Overseas - Subsistence,Unspecified,98241249,13.01,FG - Accounts & Business Planning
BEIS,UKRI - BBSRC,07/08/2018,FG - Accounts & Business Planning,T&S Overseas - Subsistence,Unspecified,98241249,23.98,FG - Accounts & Business Planning
BEIS,UKRI - BBSRC,22/08/2018,CIMG - Programme Office,T&S UK - Accommodation,Unspecified,98265497,70.00,CIMG - Programme Office
BEIS,UKRI - BBSRC,15/08/2018,European Initiatives,T&S UK - Accommodation,Unspecified,98260377,6.43,European Initiatives
BEIS,UKRI - BBSRC,14/08/2018,CE - IRU,T&S UK - Mileage,Unspecified,98244538,108.00,CE - IRU
BEIS,UKRI - BBSRC,22/08/2018,CIMG - Programme Office,T&S UK - Mileage,Unspecified,98265497,129.15,CIMG - Programme Office
BEIS,UKRI - BBSRC,08/08/2018,FG - Director,T&S UK - Mileage,Unspecified,98256829,819.75,FG - Director
BEIS,UKRI - BBSRC,01/08/2018,FG - Estates,T&S UK - Mileage,Unspecified,98250571,117.00,FG - Estates
BEIS,UKRI - BBSRC,29/08/2018,FG - RCUK Assurance,T&S UK - Mileage,Unspecified,98269176,41.40,FG - RCUK Assurance
BEIS,UKRI - BBSRC,22/08/2018,Innovation and Skills Group,T&S UK - Mileage,Unspecified,98265503,33.30,Innovation and Skills Group
BEIS,UKRI - BBSRC,14/08/2018,Science Group,T&S UK - Mileage,Unspecified,98260738,88.65,Science Group
BEIS,UKRI - BBSRC,07/08/2018,CE - IRU,T&S UK - Other Charges,Unspecified,98255198,12.00,CE - IRU
BEIS,UKRI - BBSRC,23/08/2018,CE - IRU,T&S UK - Other Charges,Unspecified,98267744,2.00,CE - IRU
BEIS,UKRI - BBSRC,22/08/2018,CIMG - Programme Office,T&S UK - Other Charges,Unspecified,98265497,24.00,CIMG - Programme Office
BEIS,UKRI - BBSRC,22/08/2018,CIMG - Programme Office,T&S UK - Other Charges,Unspecified,98265502,30.00,CIMG - Programme Office
BEIS,UKRI - BBSRC,07/08/2018,FG - Accounts & Business Planning,T&S UK - Other Charges,Unspecified,98237075,110.00,FG - Accounts & Business Planning
BEIS,UKRI - BBSRC,09/08/2018,FG - Estates,T&S UK - Other Charges,Unspecified,98257309,7.75,FG - Estates
BEIS,UKRI - BBSRC,14/08/2018,JBOS - Administration,T&S UK - Other Charges,Unspecified,98260740,32.00,JBOS - Administration
BEIS,UKRI - BBSRC,08/08/2018,Science Group,T&S UK - Other Charges,Unspecified,98256831,15.81,Science Group
BEIS,UKRI - BBSRC,14/08/2018,CE - IRU,T&S UK - Parking Tolls Congestion Charges,Unspecified,98244538,12.00,CE - IRU
BEIS,UKRI - BBSRC,22/08/2018,CIMG - Programme Office,T&S UK - Parking Tolls Congestion Charges,Unspecified,98265497,5.60,CIMG - Programme Office
BEIS,UKRI - BBSRC,01/08/2018,FG - Estates,T&S UK - Parking Tolls Congestion Charges,Unspecified,98250571,17.20,FG - Estates
BEIS,UKRI - BBSRC,01/08/2018,FG - Estates,T&S UK - Parking Tolls Congestion Charges,Unspecified,98250573,4.00,FG - Estates
BEIS,UKRI - BBSRC,29/08/2018,FG - RCUK Assurance,T&S UK - Parking Tolls Congestion Charges,Unspecified,98269176,40.00,FG - RCUK Assurance
BEIS,UKRI - BBSRC,02/08/2018,Science Group,T&S UK - Parking Tolls Congestion Charges,Unspecified,98252849,5.20,Science Group
BEIS,UKRI - BBSRC,03/08/2018,CE - Chief Executive,T&S UK - Public Transport,Unspecified,98252586,40.00,CE - Chief Executive
BEIS,UKRI - BBSRC,22/08/2018,CE - Chief Executive,T&S UK - Public Transport,Unspecified,98265495,124.30,CE - Chief Executive
BEIS,UKRI - BBSRC,06/08/2018,CE - CPS,T&S UK - Public Transport,Unspecified,98253965,18.00,CE - CPS
BEIS,UKRI - BBSRC,22/08/2018,CE - IRU,T&S UK - Public Transport,Unspecified,98265499,36.40,CE - IRU
BEIS,UKRI - BBSRC,23/08/2018,CE - IRU,T&S UK - Public Transport,Unspecified,98267744,28.00,CE - IRU
BEIS,UKRI - BBSRC,01/08/2018,CIMG - Council Secretariat,T&S UK - Public Transport,Unspecified,98250570,35.20,CIMG - Council Secretariat
BEIS,UKRI - BBSRC,15/08/2018,European Initiatives,T&S UK - Public Transport,Unspecified,98260377,28.47,European Initiatives
BEIS,UKRI - BBSRC,29/08/2018,FG - RCUK Assurance,T&S UK - Public Transport,Unspecified,98269176,8.50,FG - RCUK Assurance
BEIS,UKRI - BBSRC,06/08/2018,Innovation and Skills Group,T&S UK - Public Transport,Unspecified,98253964,12.00,Innovation and Skills Group
BEIS,UKRI - BBSRC,09/08/2018,Innovation and Skills Group,T&S UK - Public Transport,Unspecified,98257310,11.00,Innovation and Skills Group
BEIS,UKRI - BBSRC,22/08/2018,Innovation and Skills Group CDSU,T&S UK - Public Transport,Unspecified,98265498,17.00,Innovation and Skills Group CDSU
BEIS,UKRI - BBSRC,02/08/2018,Science Group,T&S UK - Public Transport,Unspecified,98252851,5.00,Science Group
BEIS,UKRI - BBSRC,08/08/2018,Science Group,T&S UK - Public Transport,Unspecified,98256830,43.25,Science Group
BEIS,UKRI - BBSRC,09/08/2018,Science Group,T&S UK - Public Transport,Unspecified,98257306,2.70,Science Group
BEIS,UKRI - BBSRC,09/08/2018,Science Group,T&S UK - Public Transport,Unspecified,98257306,18.80,Science Group
BEIS,UKRI - BBSRC,23/08/2018,Science Group - Delivery Function,T&S UK - Public Transport,Unspecified,98267746,9.00,Science Group - Delivery Function
BEIS,UKRI - BBSRC,02/08/2018,CE - Chief Executive,T&S UK - Subsistence,Unspecified,98252850,55.00,CE - Chief Executive
BEIS,UKRI - BBSRC,22/08/2018,CE - Chief Executive,T&S UK - Subsistence,Unspecified,98265495,6.15,CE - Chief Executive
BEIS,UKRI - BBSRC,22/08/2018,CE - Chief Executive,T&S UK - Subsistence,Unspecified,98265495,34.18,CE - Chief Executive
BEIS,UKRI - BBSRC,06/08/2018,CE - CPS,T&S UK - Subsistence,Unspecified,98253965,19.77,CE - CPS
BEIS,UKRI - BBSRC,06/08/2018,CE - CPS,T&S UK - Subsistence,Unspecified,98253965,15.00,CE - CPS
BEIS,UKRI - BBSRC,06/08/2018,CE - CPS,T&S UK - Subsistence,Unspecified,98253965,9.05,CE - CPS
BEIS,UKRI - BBSRC,07/08/2018,CE - IRU,T&S UK - Subsistence,Unspecified,98255198,20.00,CE - IRU
BEIS,UKRI - BBSRC,17/08/2018,CE - IRU,T&S UK - Subsistence,Unspecified,98262169,5.00,CE - IRU
BEIS,UKRI - BBSRC,23/08/2018,CE - IRU,T&S UK - Subsistence,Unspecified,98267744,5.00,CE - IRU
BEIS,UKRI - BBSRC,01/08/2018,CIMG - Council Secretariat,T&S UK - Subsistence,Unspecified,98250570,6.88,CIMG - Council Secretariat
BEIS,UKRI - BBSRC,01/08/2018,CIMG - Council Secretariat,T&S UK - Subsistence,Unspecified,98250570,5.00,CIMG - Council Secretariat
BEIS,UKRI - BBSRC,22/08/2018,CIMG - Programme Office,T&S UK - Subsistence,Unspecified,98265497,42.70,CIMG - Programme Office
BEIS,UKRI - BBSRC,22/08/2018,CIMG - Programme Office,T&S UK - Subsistence,Unspecified,98265497,13.44,CIMG - Programme Office
BEIS,UKRI - BBSRC,22/08/2018,CIMG - Programme Office,T&S UK - Subsistence,Unspecified,98265497,10.00,CIMG - Programme Office
BEIS,UKRI - BBSRC,22/08/2018,CIMG - Programme Office,T&S UK - Subsistence,Unspecified,98265497,3.20,CIMG - Programme Office
BEIS,UKRI - BBSRC,15/08/2018,European Initiatives,T&S UK - Subsistence,Unspecified,98260377,80.90,European Initiatives
BEIS,UKRI - BBSRC,15/08/2018,European Initiatives,T&S UK - Subsistence,Unspecified,98260377,4.52,European Initiatives
BEIS,UKRI - BBSRC,15/08/2018,European Initiatives,T&S UK - Subsistence,Unspecified,98260377,10.00,European Initiatives
BEIS,UKRI - BBSRC,15/08/2018,European Initiatives,T&S UK - Subsistence,Unspecified,98260377,3.25,European Initiatives
BEIS,UKRI - BBSRC,15/08/2018,European Initiatives,T&S UK - Subsistence,Unspecified,98260377,2.45,European Initiatives
BEIS,UKRI - BBSRC,08/08/2018,FG - Director,T&S UK - Subsistence,Unspecified,98256829,30.00,FG - Director
BEIS,UKRI - BBSRC,01/08/2018,FG - Estates,T&S UK - Subsistence,Unspecified,98250571,66.67,FG - Estates
BEIS,UKRI - BBSRC,01/08/2018,FG - Estates,T&S UK - Subsistence,Unspecified,98250571,97.27,FG - Estates
BEIS,UKRI - BBSRC,01/08/2018,FG - Estates,T&S UK - Subsistence,Unspecified,98250571,20.00,FG - Estates
BEIS,UKRI - BBSRC,01/08/2018,FG - Estates,T&S UK - Subsistence,Unspecified,98250571,21.75,FG - Estates
BEIS,UKRI - BBSRC,01/08/2018,FG - Estates,T&S UK - Subsistence,Unspecified,98250573,25.00,FG - Estates
BEIS,UKRI - BBSRC,09/08/2018,FG - Estates,T&S UK - Subsistence,Unspecified,98257309,9.38,FG - Estates
BEIS,UKRI - BBSRC,09/08/2018,FG - Estates,T&S UK - Subsistence,Unspecified,98257309,19.99,FG - Estates
BEIS,UKRI - BBSRC,09/08/2018,FG - Estates,T&S UK - Subsistence,Unspecified,98257309,10.00,FG - Estates
BEIS,UKRI - BBSRC,06/08/2018,Innovation and Skills Group,T&S UK - Subsistence,Unspecified,98253964,5.00,Innovation and Skills Group
BEIS,UKRI - BBSRC,09/08/2018,Innovation and Skills Group,T&S UK - Subsistence,Unspecified,98257310,18.35,Innovation and Skills Group
BEIS,UKRI - BBSRC,09/08/2018,Innovation and Skills Group,T&S UK - Subsistence,Unspecified,98257310,5.00,Innovation and Skills Group
BEIS,UKRI - BBSRC,22/08/2018,Innovation and Skills Group,T&S UK - Subsistence,Unspecified,98265503,60.73,Innovation and Skills Group
BEIS,UKRI - BBSRC,22/08/2018,Innovation and Skills Group,T&S UK - Subsistence,Unspecified,98265503,44.28,Innovation and Skills Group
BEIS,UKRI - BBSRC,22/08/2018,Innovation and Skills Group CDSU,T&S UK - Subsistence,Unspecified,98265498,24.25,Innovation and Skills Group CDSU
BEIS,UKRI - BBSRC,22/08/2018,Innovation and Skills Group CDSU,T&S UK - Subsistence,Unspecified,98265498,5.98,Innovation and Skills Group CDSU
BEIS,UKRI - BBSRC,16/08/2018,RISD - UKRO,T&S UK - Subsistence,Unspecified,98262869,10.00,RISD - UKRO
BEIS,UKRI - BBSRC,01/08/2018,Science Group,T&S UK - Subsistence,Unspecified,98250569,13.79,Science Group
BEIS,UKRI - BBSRC,02/08/2018,Science Group,T&S UK - Subsistence,Unspecified,98252849,11.25,Science Group
BEIS,UKRI - BBSRC,02/08/2018,Science Group,T&S UK - Subsistence,Unspecified,98252851,8.50,Science Group
BEIS,UKRI - BBSRC,02/08/2018,Science Group,T&S UK - Subsistence,Unspecified,98252851,10.00,Science Group
BEIS,UKRI - BBSRC,02/08/2018,Science Group,T&S UK - Subsistence,Unspecified,98252851,1.60,Science Group
BEIS,UKRI - BBSRC,08/08/2018,Science Group,T&S UK - Subsistence,Unspecified,98256830,7.10,Science Group
